{"text_format":"1","workbook":"xlsx","n_sheets":2,"sheets":["Лист1","Лист2"],"not_rendered":{"charts":0,"images":0,"macros":1,"external_links":0,"defined_names":2,"comments":0,"pivot_tables":0},"unopened":[],"bounds":{"document_bytes":16777216,"sheet_cells":100000,"rows_first":2000,"rows_last":500,"rows_between":2000,"halvings":0,"cell_chars":16384,"cell_head_chars":4096},"cells_cut":0,"cells_raw":0,"read":"whole","date_system":"1900"}

{"sheet":"Лист1","index":0,"n_rows":1715,"n_cols":7,"rows_kept":1715,"cut":false,"hidden":false,"merged":[]}
[null,null,"Дата","Признак1","Признак2","Признак3","Признак4"]
[null,"Волошин Олександр Васильович","повт",1,"работает",3445545]
[null,"Нікіпорчук Володимир Леонідович","повт",2,"работает",123333]
[null,"Тараненко Жанна Леонідівна","перв",1,"не работает",1222]
[null,"Кубрак Лілія Петрівна","повт",3,"не работает","гггггг"]
[null,"Нежур Наталія Володимирівна","повт",4,"работает","абабаб"]
[null,"Дворжак Павло Валентинович","перв",2,"не работает","ааааа"]
[null,"Лапа Олександр Борисович","перв",3,"не работает","бббббб"]
[null,"Добронецька Олена Григорівна","повт",5,"Добронецька Олена Григорівна","Добронецька Олена Григорівна","Добронецька Олена Григорівна"]
[null,"Перчеклій Валерій Григорович","повт",6,"Перчеклій Валерій Григорович","Перчеклій Валерій Григорович","Перчеклій Валерій Григорович"]
[null,"Лук'яненко Артем Ігорович","перв",4,"Талавіра Владислав Васильович","Талавіра Владислав Васильович","Талавіра Владислав Васильович"]
[null,"Талавіра Владислав Васильович","повт",7,"Караваєва Зоя Олегівна","Караваєва Зоя Олегівна","Караваєва Зоя Олегівна"]
[null,"Кіран Степан Родіонович","перв",5,"Кушнєрьова Інна Георгіївна","Кушнєрьова Інна Георгіївна","Кушнєрьова Інна Георгіївна"]
[null,"Караваєва Зоя Олегівна","повт",8,"Трамбач Володимир Юрійович","Трамбач Володимир Юрійович","Трамбач Володимир Юрійович"]
[null,"Кушнєрьова Інна Георгіївна","повт",9,"Лисенко Юлія Олегівна","Лисенко Юлія Олегівна","Лисенко Юлія Олегівна"]
[null,"Чербаджи Іван Захарович","труд",1,"Комерзан Галина Іванівна","Комерзан Галина Іванівна","Комерзан Галина Іванівна"]
[null,"Ліпинський Віктор Вікторович","перв",6,"Коваль Андрій Костянтинович","Коваль Андрій Костянтинович","Коваль Андрій Костянтинович"]
[null,"Таранець Ігор Анатолійович","перв",7,"Гушан Юрій Олександрович","Гушан Юрій Олександрович","Гушан Юрій Олександрович"]
[null,"Трамбач Володимир Юрійович","повт",10,"Спиридонов Олександр Володимирович","Спиридонов Олександр Володимирович","Спиридонов Олександр Володимирович"]
[null,"Савченко Дмитро Олександрович","труд",2,"Петровський Михайло Олександрович","Петровський Михайло Олександрович","Петровський Михайло Олександрович"]
[null,"Доні Лілія Анатоліївна","труд",3,"Камінська Олена Едуардівна","Камінська Олена Едуардівна","Камінська Олена Едуардівна"]
[null,"Дзюба Олег Юрійович","перв",8,"Павленко Руслан Миколайович","Павленко Руслан Миколайович","Павленко Руслан Миколайович"]
[null,"Лисенко Юлія Олегівна","повт",11,"Чабан Наталія Василівна","Чабан Наталія Василівна","Чабан Наталія Василівна"]
[null,"Комерзан Галина Іванівна","повт",12,"Резніченко Андрій Анатолійович","Резніченко Андрій Анатолійович","Резніченко Андрій Анатолійович"]
[null,"Коваль Андрій Костянтинович","повт",13,"Брідун Георгій Анатолійович","Брідун Георгій Анатолійович","Брідун Георгій Анатолійович"]
[null,"Гушан Юрій Олександрович","повт",14,"Чумаченко Вадим Іванович","Чумаченко Вадим Іванович","Чумаченко Вадим Іванович"]
[null,"Сьомка Костянтин Віталійович","перв",9]
[null,"Попов Сергій Іванович","перв",10]
[null,"Хоронжук Валентин Олександрович","перв",11]
[null,"Ткачук Валентина Борисівна","перв",12]
[null,"Бойко Артур Геннадійович","перв",13]
[null,"Спиридонов Олександр Володимирович","повт",15]
[null,"Петровський Михайло Олександрович","повт",15]
[null,"Мірошніченко Лариса Василівна","перв",14]
[null,"Камінська Олена Едуардівна","повт",16]
[null,"Павленко Руслан Миколайович","повт",17]
[null,"Пріжбіло Сергій Михайлович","перв",16]
[null,"Чевдар Анатолій Володимирович","перв",17]
[null,"Костюк Оксана Василівна","л/н",1]
[null,"Сабурова Ганна Олександрівна","конс",0]
[null,"Арабаджі Ліліана Георгіївна","перв",18]
[null,"Чабан Наталія Василівна","повт",18]
[null,"Близнюк Наталія Василівна","перв",19]
[null,"Германович Вадим Олексійович","л/н",2]
[null,"Резніченко Андрій Анатолійович","повт",19]
[null,"Брідун Георгій Анатолійович","повт",20]
[null,"Чумаченко Вадим Іванович","повт",21]
[null,"Тутов Василь Степанович","труд",4]
[null,"Кузанов Ілля Валентинович","труд",5]
[null,"Цюкайло Леонід Михайлович","труд",6]
[null,"Татарчик Артур Володимирович","перв",20]
[null,"Пульчо Тетяна Валеріївна","перв",21]
[null,"Почтарьов Вячеслав Миколайович","конс",0]
[null,"Козенко Володимир Володимирович","труд",7]
[null,"Самойленко Михайло Іванович","конс",0]
[null,"Альохіна Тетяна Павлівна","перв",22]
[null,"Алієв Бахшеїш Рагім Огли","перв",23]
[null,"Павлов Владислав Марсович","труд",8]
[null,"Сікальчук Артем Васильович","конс",0]
[null,"Коропець Валентин Трифонович","труд",9]
[null,"Коваленко Галина Вікторівна","труд",10]
[null,"Ковтуненко Анастасія Юріївна","перв",24]
[null,"Бігняк Олег Олександрович","перв",25]
[null,"Меренков Андрій Борисович","л/н",3]
[null,"Іщук Алла Леонідівна","л/н",4]
[null,"Пасічна Любов Миколаївна","повт",22]
[null,"Борзов Микола Борисович","повт",23]
[null,"Сафанюк Григорій Васильович","повт",24]
[null,"Майструк Віктор Дмитрович","повт",25]
[null,"Афанасьєва Наталія Леонідівна","повт",26]
[null,"Рябухін Вадим Олександрович","повт",27]
[null,"Хомко Оксана Анатоліївна","перв",26]
[null,"Шмалько Ярослав Павлович","перв",27]
[null,"Самосьонок Михайло Анатолійович","перв",28]
[null,"Кузнєцов Денис Валерійович","конс",0]
[null,"Галинський Микола Іванович","конс",0]
[null,"Іванченко Тетяна Костянтинівна","перв",29]
[null,"Шевчук Віктор Миколайович","перв",30]
[null,"Захарієв Ігор Севдалінов","повт",28]
[null,"Торченюк Олексій Сергійович","повт",29]
[null,"Барбаренко Анастасія Геннадіївна","повт",30]
[null,"Мацибуренко Вадим Сергійович","повт",31]
[null,"Щербакова Олена Кирилівна","повт",32]
[null,"Ковбаса Володимир Борисович","повт",33]
[null,"Дзюба Ольга Миколаївна","повт",34]
[null,"Буров Олег Миколайович","перв",31]
[null,"Боєв Василь Дмитрович","повт",35]
[null,"Старчук Юрій Олексійович","повт",36]
[null,"Ковальчук Леонід Віталійович","повт",37]
[null,"Дмитрук Олександр Петрович","повт",38]
[null,"Антонюк Микола Дем'янович","труд",11]
[null,"Литвинова Валентина Миколаївна","конс",0]
[null,"Оляш Олексій Юрійович","перв",32]
[null,"Нємцев Віктор Валентинович","перв",33]
[null,"Сташенко Василь Васильович","перв",34]
[null,"Кедик Василь Васильович","повт",39]
[null,"Бібік Ксенія Максимівна","повт",40]
[null,"Харитонов Ігор Робертович","повт",41]
[null,"Вертилецький Ігор Георгійович","повт",42]
[null,"Кондратьєв Ігор Сергійович","повт",43]
[null,"Баюш Галина Трохимівна","повт",44]
[null,"Русол Олександр Володимирович","повт",45]
[null,"Соколов Андрій Андрійович","повт",46]
[null,"Табунщик Владислав Миколайович","повт",47]
[null,"Зелінський Ігор Георгійович","перв",35]
[null,"Бойко Леонід Григорович","перв",36]
[null,"Муха Андрій Олександрович","перв",37]
[null,"Додінська Неля Миколаївна","перв",38]
[null,"Степанець Сергій Миколайович","перв",39]
[null,"Пєнчєва Ірина Анатоліївна","повт",48]
[null,"Токарев Олександр Станіславович","перв",40]
[null,"Жура Віктор Афанасійович","перв",41]
[null,"Почтаренко Лариса Миколаївна","л/н",5]
[null,"Чубачкін Костянтин Анатолійович","повт",49]
[null,"Тимофєєв Сергій Миколайович","повт",50]
[null,"Шаповалов Олег Володимирович","повт",51]
[null,"Толмачевець Олександр Володимирович","повт",52]
[null,"Гончаренко Георгій Георгійович","повт",53]
[null,"Куліковська Оксана Савівна","повт",54]
[null,"Цимбалюк Дмитро Іванович","повт",55]
[null,"Мачулко Вадим Валерійович","перв",42]
[null,"Сікальчук Артем Васильович","перв",43]
[null,"Завгородній Євген Вікторович","перв",44]
[null,"Кіташевський Денис Аполлінарійович","повт",56]
[null,"Глуган Анатолій Анатолійович","перв",45]
[null,"Стадник Тетяна Іванівна","перв",46]
[null,"Дудченко Валерій Анатолійович","повт",57]
[null,"Рьовін Андрій","повт",58]
[null,"Гречанюк Іван Миколайович","повт",59]
[null,"Вакулич Віталій Федорович","повт",60]
[null,"Новік Сергій Іванович","повт",61]
[null,"Кобзар Володимир Володимирович","повт",62]
[null,"Канєв Олександр Олександрович","труд",12]
[null,"Кротенко Віталій Віталійович","л/н",6]
[null,"Матвієнко Костянтин Іванович","труд",13]
[null,"Самаркін Володимир Борисович","труд",14]
[null,"Стукало Євген Миколайович","труд",15]
[null,"Савранчук Віталій Вікторович","перв",47]
[null,"Антохін Вадим Леонідович","перв",48]
[null,"Устюгова Ірина Володимирівна","перв",49]
[null,"Мізерна Валентина Миколаївна","повт",63]
[null,"Біденко Володимир Ігорович","повт",64]
[null,"Волкова Оксана Семенівна","повт",65]
[null,"Горобець Олена Вікторівна","повт",66]
[null,"Сподарець Оксана Анатоліївна","повт",67]
[null,"Касанджий Віктор Вікторович","повт",68]
[null,"Плехотко Олександр Анатолійович","повт",69]
[null,"Мєдвєдєв Олексій Вікторович","повт",70]
[null,"Фатеєва Людмила Веніамінівна","повт",71]
[null,"Циганков Олексій Леонідович","перв",50]
[null,"Мирнинко Світлана Борисівна","перв",51]
[null,"Сажнєв Дмитро Васильович","перв",52]
[null,"Альчук Ярослав Олександрович","перв",53]
[null,"Довгополов Олександр Євгенович","перв",54]
[null,"Петровський Юрій Олексійович","повт",72]
[null,"Кашульський Євгеній Олексійович","повт",73]
[null,"Грабовенко Ольга Володимирівна","перв",55]
[null,"Кара Наталя Іванівна","конс",0]
[null,"Караханян Ашот Олександрович","перв",56]
[null,"Першин Віктор Юрійович","повт",74]
[null,"Степанов Микола Олександрович","перв",57]
[null,"Росенко Євгеній Геннадійович","перв",58]
[null,"Антонюк Валентин Петрович","повт",75]
[null,"Димитров Олександр Олександрович","повт",76]
[null,"Бунін Михайло Миколайович","труд",16]
[null,"Лунгу Анатолій Маринович","труд",17]
[null,"Тімотін Віктор Миколайович","труд",18]
[null,"Цуркан Сергій Ігорович","труд",19]
[null,"Коленковський Ігор Анатолійович","труд",20]
[null,"Тельпіс Захарій Дмитрович","повт",77]
[null,"Шандов Олександр Миколайович","труд",21]
[null,"Панеєва Олена Григорівна","конс",0]
[null,"Морозова Олена Олегівна","повт",78]
[null,"Галаш Віра Вікторівна","перв",59]
[null,"Данилов Сергій Олексійович","перв",60]
[null,"Паслар Олександр Іванович","повт",79]
[null,"Шапар Ірина Іванівна","повт",80]
[null,"Ольшевський Віталій Олексійович","л/н",7]
[null,"Блашковська Олена Миколаївна","л/н",8]
[null,"Мочалов Юрій Валерійович","перв",61]
[null,"Крутієв Олександр Володимирович","перв",62]
[null,"Іскренко Олександр Сергійович","перв",63]
[null,"Запорожан Валентин Анатолійович","перв",64]
[null,"Квітка Анастасія Геннадіївна","перв",65]
[null,"Арику Костянтин Анатолійович","перв",66]
[null,"Сидоровський Олександр Кузьмич","повт",81]
[null,"Дубовий Вячеслав Васильович","повт",82]
[null,"Каймачнікова Лариса Геннадіївна","конс",0]
[null,"Лебедєв Денис Вікторович","повт",83]
[null,"Романчук Анатолій Олександрович","перв",67]
[null,"Дирмо Ірина Вікторівна","л/н",9]
[null,"Гоношилов Валентин Валерійович","перв",68]
[null,"Дундук Юрій Іванович","перв",69]
[null,"Димов Денис Владиславович","перв",70]
[null,"Вариченко Сергій Дмитрович","перв",71]
[null,"Літвішко Ірина Петрівна","перв",72]
[null,"Галинський Микола Іванович","перв",73]
[null,"Гонцов Ігор Павлович","перв",74]
[null,"Андріцька Лариса Вікторівна","повт",84]
[null,"Петренко Олександр Володимирович","повт",85]
[null,"Гречкосій Микола Анатолійович","труд",22]
[null,"Черевенко Анатолій Олександрович","труд",23]
[null,"Куліш Володимир Володимирович","л/н",10]
[null,"Коваленко Володимир Анатолійович","труд",24]
[null,"Громюк Людмила Василівна","л/н",11]
[null,"Шевчук Віктор Тахірович","повт",86]
[null,"Чабан Сергій Васильович","повт",87]
[null,"Пилявець Сергій Захарович","повт",88]
[null,"Машнєва-Лещинська Наталя Юріївна","перв",75]
[null,"Мінаков Вадим Олексійович","повт",89]
[null,"Криницький Валерій Михайлович","повт",90]
[null,"Лавров Сергій Валерійович","повт",91]
[null,"Філенко Сергій Володимирович","повт",92]
[null,"Ніцов Валентин Михайлович","повт",93]
[null,"Шер Юрій Аркадійович","перв",76]
[null,"Чернєєв Сергій Михайлович","повт",94]
[null,"Мицак Микола Васильович","перв",77]
[null,"Боровський Ігор Анатолійович","перв",78]
[null,"Кузнєцов Сергій Олександрович","повт",95]
[null,"Дімчева Лариса Федорівна","повт",96]
[null,"Макарець Катерина Іванівна","перв",79]
[null,"Армаш Ольга Павлівна","перв",80]
[null,"Мазур Володимир Петрович","повт",97]
[null,"Пєйков Афанасій Петрович","л/н",12]
[null,"Мінеско Яна Іллієвна","л/н",13]
[null,"Савенко Ганна Василівна","л/н",14]
[null,"Плющ Поліна Павлівна","перв",81]
[null,"Кошельник Антоніна Юхимівна","перв",82]
[null,"Кулев Георгій Костянтинович","перв",83]
[null,"Потлог Ольга Михайлівна","повт",98]
[null,"Лебедєв Микола Гнатович","повт",99]
[null,"Завалій В'ячеслав Сергійович","труд",25]
[null,"Васянович В'ячеслав Васильович","л/н",15]
[null,"Волощук Наталія Сергіївна","повт",100]
[null,"Гирбу Ганна Василівна","повт",101]
[null,"Пінкевич Альберт Володимирович","перв",84]
[null,"Демчук Андрій Павлович","перв",85]
[null,"Страту Геннадій Ілліч","перв",86]
[null,"Боц Євгенія Василівна","повт",102]
[null,"Кожушко Олександр Юрійович","повт",103]
[null,"Стафій Григорій Миколайович","перв",87]
[null,"Кузнєцов Денис Валерійович","повт",104]
[null,"Сіротін Петро Михайлович","повт",105]
[null,"Здоренко Олександр Едуардович","перв",88]
[null,"Домашов Сергій Валентинович","перв",89]
[null,"Бухнацевич Ігор Адамович","перв",90]
[null,"Кириллов Віктор Олексійович","перв",91]
[null,"Хохлова Любов Касянівна","перв",92]
[null,"Хан Руслан Алікович","повт",106]
[null,"Карагедова Юлія Валеріївна","перв",93]
[null,"Ткачова Лідія Хомівна","повт",107]
[null,"Шалавило Іван Степанович","повт",108]
[null,"Пишной Олексій Миколайович","перв",94]
[null,"Грачов Олександр Сергійович","повт",109]
[null,"Руссу Оксана Степанівна","перв",95]
[null,"Костомаров Олександр Олександрович","повт",110]
[null,"Грунь Сергій Панасович","перв",96]
[null,"Бурлака Олександр Григорович","перв",97]
[null,"Лук'янчук Юрій Іванович","повт",111]
[null,"Вознюк Олена Олексіївна","повт",112]
[null,"Зімін Вячеслав Михайлович","перв",98]
[null,"Брошков Олег Васильович","повт",113]
[null,"Скрипник Домнікія Георгіївна","повт",114]
[null,"Бурдейний Вадим Володимирович","перв",99]
[null,"Пільніков Володимир Анатолійович","перв",100]
[null,"Беленький Александр Васильевич","труд",26]
[null,"Шмаков Роман Васильович","труд",27]
[null,"Яременко Григорій Вікторович","труд",28]
[null,"Гайдаржи Валерій Іванович","л/н",16]
[null,"Боячук Олександр Анатолійович","труд",29]
[null,"Серпутько Руслан Васильович","повт",115]
[null,"Ніколаєнко Світлана Павлівна","повт",116]
[null,"Баліка Сергій Петрович","повт",117]
[null,"Бичков Павло Михайлович","перв",101]
[null,"Уварова Олена Володимирівна","перв",102]
[null,"Гідлярчук Сергій Вячеславович","перв",103]
[null,"Григор'єв Сергій Леонідович","повт",118]
[null,"Олар Олександр Ілліч","повт",119]
[null,"Чибухов Юрій Сергійович","повт",120]
[null,"Ільченко Олексій Михайлович","повт",121]
[null,"Михайлов Анатолій Анатолійович","конс",0]
[null,"Яценко Алла Іванівна","повт",122]
[null,"Ліберова Тетяна Іванівна","перв",104]
[null,"Бербат Євгенія Григорівна","перв",105]
[null,"Плаксіва Лідія Степанівна","повт",123]
[null,"Красняк Ігор Васильович","повт",124]
[null,"Пометун Сергій Володимирович","повт",125]
[null,"Лобачова Валентина Яківна","перв",106]
[null,"Карасьова Ольга Іванівна","л/н",17]
[null,"Стаценко Роман В'ячеславович","л/н",18]
[null,"Яворський Олег Валерійович","конс",0]
[null,"Качуровська Євгенія Вікторівна","конс",0]
[null,"Малашевський Андрій Степанович","конс",0]
[null,"Моісеєв Іван Андрійович","перв",107]
[null,"Сивоконь Геннадій Костянтинович","повт",126]
[null,"Чернєв Іван Афанасійович","повт",127]
[null,"Саранчук Анатолій Іванович","перв",108]
[null,"Раскін Леонід Борисович","перв",109]
[null,"Омельченко Валентина Володимирівна","перв",110]
[null,"Арнаут Володимир Іванович","повт",128]
[null,"Гончаренко Сергій Дмитрович","труд",30]
[null,"Рябенко Сергій Валерійович","труд",31]
[null,"Суслов Микола Логинович","труд",32]
[null,"Сібіковський Вячеслав Вікторович","труд",33]
[null,"Котков Денис Олегович","л/н",19]
[null,"Зарапіна Лідія Сергіївна","труд",34]
[null,"Фрунза Віктор Валерійович","повт",129]
[null,"Назаров Дмитро Сабірович","повт",130]
[null,"Миронова Лариса Юріївна","повт",131]
[null,"Гнатюк Владислав Володимирович","повт",132]
[null,"Ребрій Роман Валентинович","перв",111]
[null,"Романенко Ганна Сергіївна","повт",133]
[null,"Голуб Іван Андрійович","повт",134]
[null,"Волянюк Євген Олександрович","повт",135]
[null,"Кречун Степан Гаврилович","перв",112]
[null,"Маринчук Наталя Анатоліївна","повт",136]
[null,"Плахотнюк Алла Григорівна","конс",0]
[null,"Мартиновська Юлія Ігорівна","повт",137]
[null,"Романенко Павло Іванович","перв",113]
[null,"Швець Євген Олександрович","перв",114]
[null,"Якимчук Олександр Ігорович","повт",138]
[null,"Дудар Тетяна Миколаївна","повт",139]
[null,"Мисько Світлана Дмитрівна","перв",115]
[null,"Тимофєєва Надія Іванівна","перв",116]
[null,"Шепетюк Мирослав Дмитрович","перв",117]
[null,"Кузьмін Ярослав Віталійович","повт",140]
[null,"Южбабенко Валерій Вікторович","повт",141]
[null,"Головей Андрій Вікторович","повт",142]
[null,"Васільєв Олександр Володимирович","повт",143]
[null,"Огарова Галина Іванівна","повт",144]
[null,"Грузюк Галина Юхимівна","перв",118]
[null,"Яценко Ірина Анатоліївна","л/н",20]
[null,"Авелічева Ірина Анатоліївна","л/н",21]
[null,"Павленко Антоніна Анатоліївна","конс",0]
[null,"Мілінчук Олександр Григорович","повт",145]
[null,"Бакаєва Світлана Павлівна","перв",119]
[null,"Фаст Едуард Федорович","повт",146]
[null,"Хазов Олег Сергійович","повт",147]
[null,"Турку Степан Георгійович","перв",120]
[null,"Шафранська Валентина Олександрівна","перв",121]
[null,"Дишлевий Володимир Васильович","перв",122]
[null,"Полянський Сергій Вікторович","повт",148]
[null,"Соколова Владислава Станіславівна","повт",149]
[null,"Цуман Микола Миколайович","труд",35]
[null,"Томашевська Тетяна Геннадіївна","труд",36]
[null,"Плотников Ілля Іванович","труд",37]
[null,"Ворганова Тетяна Вікторівна","перв",123]
[null,"Мельник Олексій Олексійович","повт",150]
[null,"Чернега Олександр Іванович","повт",151]
[null,"Влах Віра Федорівна","л/н",22]
[null,"Почтарьов Вячеслав Миколайович","повт",152]
[null,"Солошенко Інна Анатоліївна","повт",153]
[null,"Суман Михайло Сафронович","повт",154]
[null,"Сергієнко Олег Аркадійович","перв",124]
[null,"Сікора Андрій Петрович","повт",155]
[null,"Захаров Олег Борисович","повт",156]
[null,"Долганіна Світлана Леонідівна","перв",125]
[null,"Стоянов Віктор Вікторович","перв",126]
[null,"Коваль Анатолій Петрович","перв",127]
[null,"Дегтяренко Олексій Іванович","повт",157]
[null,"Рудчик Віталій Павлович","повт",158]
[null,"Осадча Олена Василівна","конс",0]
[null,"Мягкий Юрій Андрійович","конс",0]
[null,"Гураль Тетяна Валентинівна","повт",159]
[null,"Муратов Олексій Іванович","перв",128]
[null,"Караман Сергій Костянтинович","перв",129]
[null,"Гонза Ігор Григорович","повт",160]
[null,"Черемуш Владислав Миколайович","повт",161]
[null,"Костюк Оксана Василівна","перв",130]
[null,"Блащук Всеволод Васильович","перв",131]
[null,"Юлдашев Роман Намазалійович","перв",132]
[null,"Дерк Анатолій Олександрович","повт",162]
[null,"Стяглій Людмила Володимирівна","повт",163]
[null,"Савченко Олександр Миколайович","повт",164]
[null,"Єгоров Дмитро Юрійович","повт",165]
[null,"Гайдаєнко Микита Олександрович","повт",166]
[null,"Драгоморецький Микола Сергійович","труд",38]
[null,"Костюченко Олексій Володимирович","труд",39]
[null,"Котобан Костянтин Костянтинович","л/н",23]
[null,"Жданова Валентина Василівна","перв",133]
[null,"Могільова Наталія Володимирівна","перв",134]
[null,"Гнатенко Олександр Миколайович","перв",135]
[null,"Лука Олексій Іванович","перв",136]
[null,"Кликов Валерій Миколайович","перв",137]
[null,"Плахтій Андрій Вікторович","перв",138]
[null,"Буюклі Петро Дмитрович","повт",167]
[null,"Золотін Олександр Євгенович","перв",139]
[null,"Чельцова Наталія Валеріївна","повт",168]
[null,"Чорний Андрій Тимофійович","перв",140]
[null,"Соколова Світлана Сергіївна","повт",169]
[null,"Штирболова Домніка Федорівна","перв",141]
[null,"Марченко Олександр Ігорович","перв",142]
[null,"Вронський Олександр Павлович","перв",143]
[null,"Томіловський Олег Васильович","перв",144]
[null,"Беркатюк Євген Володимирович","перв",145]
[null,"Чернявський Андрій Петрович","л/н",24]
[null,"Горбунова Олена Михайлівна","л/н",25]
[null,"Москаленко Сергій Андрійович","повт",170]
[null,"Передерій Ігор Іванович","повт",171]
[null,"Бородинський Артем Вікторович","повт",172]
[null,"Поліщук Дмитро Валентинович","перв",146]
[null,"Нестерова Ніна Гаврилівна","перв",147]
[null,"Лук'янов Юрій Дмитрович","л/н",26]
[null,"Ступак Любов Олександрівна","л/н",27]
[null,"Троян Олена Сергіївна","л/н",28]
[null,"Крилов Яків Анатолійович","повт",173]
[null,"Летінський Олександр Анатолійович","перв",148]
[null,"Гроздєв Максим Михайлович","перв",149]
[null,"Сергєєнко Микола Вадимович","перв",150]
[null,"Михайлуца Микола Миколайович","повт",174]
[null,"Колеснікова Емілія Юріївна","повт",175]
[null,"Погоржельський Вячеслав Костянтинович","труд",40]
[null,"Жосан Тетяна Григорівна","труд",41]
[null,"Брошеван Вадим Васильович","л/н",29]
[null,"Подкопаєва Валентина Єрмолаївна","конс",0]
[null,"Лелюк Любов Іванівна","л/н",30]
[null,"Вікторенков Сергій Євгенійович","перв",151]
[null,"Бухур Петро Петрович","перв",152]
[null,"Бухтояров Артем Володимирович","перв",153]
[null,"Ністор Юрій Петрович","повт",176]
[null,"Петрова Ольга Євгенівна","л/н",31]
[null,"Мельников Сергій Валентинович","л/н",32]
[null,"Бойко Андрій Андрійович","перв",154]
[null,"Качан Лариса Михайлівна","повт",177]
[null,"Багнєва Тетяна Василівна","перв",155]
[null,"Вишняк Вадим Олександрович","перв",156]
[null,"Вільховецький Віктор Михайлович","перв",157]
[null,"Лаврінов Денис Вадимович","повт",178]
[null,"Васьковська Ольга Павлівна","повт",179]
[null,"Клименко Марія Олексіївна","л/н",33]
[null,"Власов Олександр Георгійович","конс",0]
[null,"Гуртовий Семен Олексійович","повт",180]
[null,"Терзі Дмитро Георгійович","повт",181]
[null,"Плотніков Михайло Федорович","повт",182]
[null,"Петрова Валентина Йосипівна","повт",183]
[null,"Чернобель Павло Васильович","перв",158]
[null,"Мельникова Олена Олексіївна","перв",159]
[null,"Слюсарьов Володимир Юрійович","л/н",34]
[null,"Звягіна Ганна Миколаївна","повт",184]
[null,"Осматескул Євгеній Вікторович","перв",160]
[null,"Кіосєв Іван Іванович","перв",161]
[null,"Чабанюк Валентина Митрофанівна","л/н",35]
[null,"Пікало Олександр Володимирович","повт",185]
[null,"Стружан Іван Георгійович","повт",186]
[null,"Остапенко Валентина Миколаївна","перв",162]
[null,"Соколов Григорій Іванович","перв",163]
[null,"Калініченко Валерій Анатолійович","перв",164]
[null,"Реброва Поліна Якимівна","повт",187]
[null,"Лихач Сергій Анатолійович","повт",188]
[null,"Завгородня Тетяна Олександрівна","труд",42]
[null,"Павлов Борис Маркович","труд",43]
[null,"Іванова Любов Гаврилівна","труд",44]
[null,"Франчук Микола Іванович","труд",45]
[null,"Войченко Володимир Андрійович","повт",189]
[null,"Мунтян Павло Юрійович","повт",190]
[null,"Косенко Максим Олександрович","повт",191]
[null,"Пендраківський Станіслав Анатолійович","л/н",36]
[null,"Орловська Світлана Миколаївна","перв",165]
[null,"Чумаченко Сергій Григорович","перв",166]
[null,"Топчу Петро Дмитрович","перв",167]
[null,"Леонова Надія Миколаївна","перв",168]
[null,"Пугач Віталій Володимирович","перв",169]
[null,"Черниш Олесандр Валерійович","перв",170]
[null,"Парфеніє Сергій Миколайович","повт",192]
[null,"Олійник Олександра Іванівна","повт",193]
[null,"Златов Сергій Петрович","повт",194]
[null,"Ладовиря Валерій Анатолійович","повт",195]
[null,"Волощук Максим Миколайович","повт",196]
[null,"Кравчинський Денис Вікторович","повт",197]
[null,"Дзіговська Тамара Микитівна","перв",171]
[null,"Терлецька Лариса Леонідівна","перв",172]
[null,"Поташнєр Максим Валерійович","повт",198]
[null,"Бєлянчиков Олександр Валентинович","перв",173]
[null,"Хомич Галина Петрівна","перв",174]
[null,"Скорецький Сергій Володимирович","перв",175]
[null,"Баришев Вагіф Вагіфович","конс",0]
[null,"Ротар Лариса Василівна","повт",199]
[null,"Кушнір Тетяна Сергіївна","повт",200]
[null,"Спусканюк Олександр Дмитрович","перв",176]
[null,"Колосова Валентина Вікторівна","перв",177]
[null,"Паларієв Володимир Олександрович","перв",178]
[null,"Малишев Віталій Борисович","повт",201]
[null,"Лавринович Ігор Миколайович","повт",202]
[null,"Романюк Олександр Григорійович","повт",203]
[null,"Нейков Іван Миколайович","повт",204]
[null,"Чекелєк Ілля Петрович","повт",205]
[null,"Вертелецька Валентина Вікторівна","повт",206]
[null,"Грицюк Вадим Юрійович","труд",46]
[null,"Кишлали Федора Миколаївна","труд",47]
[null,"Михальчук Олександр Анатолійович","повт",207]
[null,"Лєхов Олександр Миколайович","повт",208]
[null,"Сидоренко Ігор Валерійович","перв",179]
[null,"Шафаростова Лідія Федорівна","перв",180]
[null,"Дикун Руслан Володимирович","перв",181]
[null,"Малий Юрій Володимирович","перв",182]
[null,"Баумгартен Наталія Тимофіївна","перв",183]
[null,"Махсурян Радж Володимирович","повт",209]
[null,"Тичина Олена Миколаївна","повт",210]
[null,"Шевцов Андрій Якович","повт",211]
[null,"Петрова Тетяна Віталіївна","повт",212]
[null,"Авраменко Єгор Володимирович","перв",184]
[null,"Хусейїнова Світлана Анатоліївна","повт",213]
[null,"Станслер Олена Олександрівна","перв",185]
[null,"Попова Вікторія Адольфівна","повт",214]
[null,"Слєпцов Ігор Миколайович","л/н",37]
[null,"Малашевський Андрій Степанович","повт",215]
[null,"Хмарський Олександр Леонідович","повт",216]
[null,"Косенко Володимир Миколайович","перв",186]
[null,"Юсифова Тамара Михайлівна","перв",187]
[null,"Каранчел Олександр Іванович","повт",217]
[null,"Дембицький Арсеній Васильович","повт",218]
[null,"Дубчак Раїса Петрівна","труд",48]
[null,"Левицький Олександр Антонович","труд",49]
[null,"Терещенко Юрій Миколайович","л/н",38]
[null,"Одегова Ольга Миколаївна","конс",0]
[null,"Шевчук Дмитро Іванович","перв",188]
[null,"Карбашов Микола Васильович","перв",189]
[null,"Черненко Володимир Вікторович","перв",190]
[null,"Коваль Дмитро Володимирович","перв",191]
[null,"Щетінін Андрій","повт",219]
[null,"Задорожнюк Олег Михайлович","повт",220]
[null,"Жуковський Віталій Михайлович","повт",221]
[null,"Кочман Олег Іванович","л/н",39]
[null,"Владиченко Вікторія Олексіївна","л/н",40]
[null,"Сидоренко Олег Вікторович","перв",192]
[null,"Гудковська Вікторія Леонідівна","повт",222]
[null,"Поточенко Валентина Леонідівна","повт",223]
[null,"Хапокниш Сергій Миколайович","перв",193]
[null,"Яковлєв Ігор Вячеславович","перв",194]
[null,"Шульга Олександр Борисович","перв",195]
[null,"Донкоглова Лариса Тимофіївна","повт",224]
[null,"Анісімов Олександр Іванович","повт",225]
[null,"Лісова Антоніна Сергіївна","перв",196]
[null,"Читакова Тетяна Валеріївна","перв",197]
[null,"Чернишєв Денис Олексійович","перв",198]
[null,"Ковальова Ольга Тимофіївна","перв",199]
[null,"Казаков Володимир Станіславович","перв",200]
[null,"Бондар Юрій Леонідович","перв",201]
[null,"Сковородка Вячеслав Михайлович","перв",202]
[null,"Левицький Юрій Віталійович","перв",203]
[null,"Осовецький Володимир Олександрович","перв",204]
[null,"Станкова Ольга Федорівна","повт",226]
[null,"Гнатенко Оксана Юріївна","повт",227]
[null,"Званов Ігор Валерійович","перв",205]
[null,"Козачук Микола Олександрович","перв",206]
[null,"Брошеван Вадим Васильович","перв",207]
[null,"Кусьє Олег Степанович","труд",50]
[null,"Руднєв Микола Сергійович","труд",51]
[null,"Котобан Костянтин Костянтинович","труд",52]
[null,"Одегова Ольга Миколаївна","труд",53]
[null,"Горденко Людмила Анатоліївна","конс",0]
[null,"Веремеєнко Аркадій Леонідович","л/н",41]
[null,"Головко Олег Віталійович","повт",228]
[null,"Орлянська Оксана Петрівна","повт",229]
[null,"Лемачко Олена Ігорівна","повт",230]
[null,"Семерікова Наталія Юріївна","повт",231]
[null,"Михайльченко Євгеній Анатолійович","повт",232]
[null,"Жолкевський Віктор Броніславович","перв",208]
[null,"Сарафанов Євген Володимирович","перв",209]
[null,"Заярнюк Анжела Сергіївна","перв",210]
[null,"Сорочан Іван Петрович","перв",211]
[null,"Зайченко Сергій Володимирович","перв",212]
[null,"Данилюк Людмила Станіславівна","л/н",42]
[null,"Замфірова Олена Дмитрівна","перв",213]
[null,"Горбунова Олена Михайлівна","перв",214]
[null,"Козінцева Тетяна Миколаївна","перв",215]
[null,"Федоров Євген Олександрович","повт",233]
[null,"Бокій Володимир Михайлович","повт",234]
[null,"Семко Світлана Антонівна","конс",0]
[null,"Шестакова Галина Олександрівна","перв",216]
[null,"Урсалова Тамара Георгіївна","повт",235]
[null,"Галактіонова Лідія Василівна","перв",217]
[null,"Бабіченко Олександр Володимирович","повт",236]
[null,"Семененко Людмила Іллівна","перв",218]
[null,"Ширшов Микола Володимирович","перв",219]
[null,"Волченко Іван Васильович","перв",220]
[null,"Костюк Максим Борисович","перв",221]
[null,"Боровицька Світлана Іванівна","повт",237]
[null,"Мамедова Каріна Алієвна","повт",238]
[null,"Нікульча В'ячеслав Володимирович","повт",239]
[null,"Гєнова Майя Степанівна","повт",240]
[null,"Ющенко Лідія Павлівна","повт",241]
[null,"Кімерин Сергій Володимирович","труд",54]
[null,"Шереметьєв Іван Костянтинович","труд",55]
[null,"Антонов Сергій Вікторович","перв",222]
[null,"Соколов Олександр Васильович","перв",223]
[null,"Карлаш Олександр Федосійович","перв",224]
[null,"Карпін Іван Іванович","перв",225]
[null,"Чемиртан Василь Григорович","перв",226]
[null,"Поляков Олександр Васильович","повт",242]
[null,"Ромашов Василь Сергійович","повт",243]
[null,"Белік Лідія Петрівна","повт",244]
[null,"Журба Надія Іванівна","повт",245]
[null,"Філіпчук Неля Володимирівна","повт",246]
[null,"Каражов Юрій Георгійович","повт",247]
[null,"Єленок Едвард Юрійович","повт",248]
[null,"Курилко Тетяна Володимирівна","повт",249]
[null,"Чібукова Тетяна Анатоліївна","л/н",43]
[null,"Аведенко Настасія Іванівна","л/н",44]
[null,"Меренков Андрій Борисович","перв",227]
[null,"Чекан Ірина Степанівна","перв",228]
[null,"Базюк Петро Петрович","перв",229]
[null,"Токарева Лідія Анатоліївна","повт",250]
[null,"Морозова Зоя Володимирівна","перв",230]
[null,"Заплічко Валентина Андріївна","перв",231]
[null,"Утємішева Ірина Анатоліївна","л/н",45]
[null,"Підгорний Володимир Юрійович","л/н",46]
[null,"Балтянський Ігор Сергійович","перв",232]
[null,"Вінникова Валентина Олексіївна","перв",233]
[null,"Чашка Ганна Радіонівна","л/н",47]
[null,"Звіжинський Роман Степанович","л/н",48]
[null,"Кожухар Лілія Петрівна","повт",251]
[null,"Андрєєв Сергій Іванович","повт",252]
[null,"Калинку Марчея Савич","перв",234]
[null,"Бабенцов Юрій Васильович","перв",235]
[null,"Решетник Михайло Юрійович","перв",236]
[null,"Харковенко Людмила Василівна","повт",253]
[null,"Рудаков Юрій Юрійович","повт",254]
[null,"Михайленко Євгеній Олексійович","труд",56]
[null,"Іванько Раїса Василівна","труд",57]
[null,"Острик Юрій Васильович","труд",58]
[null,"Крупко Ніна Миколаївна","труд",59]
[null,"Гуцул Василь Іванович","труд",60]
[null,"Глазков Віктор Іванович","труд",61]
[null,"Таран Микола Гаврилович","труд",62]
[null,"Тризна Валентина Петрівна","л/н",49]
[null,"Кирилова Лада Миколаївна","перв",237]
[null,"Кабак Наталя Іванівна","перв",238]
[null,"Дротенко Григорій Іванович","повт",255]
[null,"Дума Борис Зіновійович","повт",256]
[null,"Поліщук Петро Ясонович","повт",257]
[null,"Плохой Володимир Анатолійович","повт",258]
[null,"Антохі Яків Степанович","повт",259]
[null,"Бабіченко Ігор Анатолійович","повт",260]
[null,"Войчишен Володимир Іванович","перв",239]
[null,"Качуровська Євгенія Вікторівна","перв",240]
[null,"Пушньов Олег Олегович","перв",241]
[null,"Пєтряєв Владислав Вікторович","перв",242]
[null,"Цвентух Микола Анатолійович","повт",261]
[null,"Тилков Валерій Вікторович","повт",262]
[null,"Ремез Сергій Миколайович","перв",243]
[null,"Пріліпко Едуард Іванович","перв",244]
[null,"Кучма Віра Антонівна","перв",245]
[null,"Малий Олександр Васильович","перв",246]
[null,"Нова Марія Сергіївна","перв",247]
[null,"Попов Сергій Ігорович","перв",248]
[null,"Пєйков Афанасій Петрович","перв",249]
[null,"Кудлач Василь Андрійович","перв",250]
[null,"Веліков Володимир Вікторович","повт",263]
[null,"Руденко Анна Віталіївна","повт",264]
[null,"Робертус Андрій Олександрович","труд",63]
[null,"Бойко Олег Іванович","повт",265]
[null,"Шендриков Сергій Володимирович","повт",266]
[null,"Полянська Людмила Лаврентіївна","конс",0]
[null,"Олексюк Віктор Миколайович","повт",267]
[null,"Авелічева Ірина Анатоліївна","перв",251]
[null,"Ростіков Олександр Павлович","перв",252]
[null,"Кіосе Олена Дмитрівна","повт",268]
[null,"Луканін Юрій Миколайович","повт",269]
[null,"Ботезат Дмитро Олександрович","повт",270]
[null,"Гінкул Юрій Іванович","повт",271]
[null,"Дьяченко Олексій Вікторович","повт",272]
[null,"Одноочко Софія Михайлівна","повт",273]
[null,"Берестова Євдокія Олександрівна","труд",64]
[null,"Коротков Ігор Віталійович","перв",253]
[null,"Марієвич Олег Григорович","перв",254]
[null,"Матвєєв Павло Юрійович","перв",255]
[null,"Федотова Любов Євгенівна","л/н",50]
[null,"Райнов Василь Іванович","перв",256]
[null,"Резніченко Ігор Анатолійович","перв",257]
[null,"Музиченко Тетяна Дмитрівна","перв",258]
[null,"Станков Георгій Валентинович","повт",274]
[null,"Дмитрієв Віктор Володимирович","повт",275]
[null,"Даскал Ірина Юріївна","повт",276]
[null,"Селіванова-Жукова Тетяна Володимирівна","повт",277]
[null,"Чернуха Олександр Васильович","повт",278]
[null,"Кравець Сергій Вікторович","повт",279]
[null,"Семенюк Сергій Олександрович","повт",280]
[null,"Кузнєцова Галина Олександрівна","повт",281]
[null,"Вихрист Світлана Володимирівна","конс",0]
[null,"Таганов Сергій Володимирович","перв",259]
[null,"Турковський Максим Вікторович","перв",260]
[null,"Данилов Сергій Андрійович","повт",282]
[null,"Чебан Микола Зіновійович","повт",283]
[null,"Проквас Світлана Олександрівна","труд",65]
[null,"Височина Людмила Вікторівна","труд",66]
[null,"Кротенко Віталій Віталійович","труд",67]
[null,"Домащенко Ольга Олександрівна","повт",284]
[null,"Панченко Олена Борисівна","л/н",51]
[null,"Шишко Павло Миколайович","конс",0]
[null,"Драгнєв Василь Миколайович","повт",285]
[null,"Базелюк Василь Іванович","повт",286]
[null,"Кулєшов Євген Олександрович","перв",261]
[null,"Іваньков Андрій Михайлович","перв",262]
[null,"Веремей Людмила Володимирівна","повт",287]
[null,"Феркаляк Михайло Михайлович","повт",288]
[null,"Гребенюк Олександр Валерійович","повт",289]
[null,"Пархоменко Павло Олексійович","повт",290]
[null,"Мацко Володимир Валентинович","перв",263]
[null,"Ярославська Лариса Іванівна","л/н",52]
[null,"Максименко Віталій Леонідович","перв",264]
[null,"Трофименко Людмила Леонідівна","перв",265]
[null,"Вербіцький Дмитро Іванович","перв",266]
[null,"Камінський Іван Олександрович","повт",291]
[null,"Гошко Олександр Васильович","повт",292]
[null,"Єлісеєва Лариса Анатоліївна","перв",267]
[null,"Попова Ірина Сергіївна","перв",268]
[null,"Вовк Євген Вікторович","повт",293]
[null,"Кімаченко Олександра Олександрівна","повт",294]
[null,"Стаднік Максим Михайлович","повт",295]
[null,"Арестов Вадим Анатолійович","повт",296]
[null,"Ющенко Юрій Сергійович","перв",269]
[null,"Соценко Світлана Володимирівна","перв",270]
[null,"Надольський Сергій Анатолійович","л/н",53]
[null,"Івахненко Валентин Вікторович","перв",271]
[null,"Гаврильчук Ярослав Іванович","перв",272]
[null,"Крюков Володимир Сергійович","перв",273]
[null,"Горбатюк Ірина Петрівна","повт",297]
[null,"Козарезнюк Олена Михайлівна","повт",298]
[null,"Шимчук Дмитро Сергійович","повт",299]
[null,"Гавенко Володимир Віталійович","повт",300]
[null,"Заковенко Валерій Петрович","повт",301]
[null,"Халак Денис Володимирович","повт",302]
[null,"Шаріпов Кирило Вячеславович","повт",303]
[null,"Абрашевська Олена Валентинівна","повт",304]
[null,"Бурлаков Віталій Юрійович","повт",305]
[null,"Бурлака Олександр Григорович","без акту",97]
[null,"Целіщева Світлана Франківна","конс",0]
[null,"Мельников Гліб Анатолійович","л/н",54]
[null,"Мишко Зінаїда Марківна","перв",274]
[null,"Токарев Іван Федорович","перв",275]
[null,"Носов Сергій Васильович","повт",306]
[null,"Барчанов Сергій Михайлович","повт",307]
[null,"Бутенко-Ніколаєвський Юрій Олександрович","повт",308]
[null,"Скляр Юлія Сергіївна","повт",309]
[null,"Кравцов Володимир Олександрович","повт",310]
[null,"Федорук Сергій Дмитрович","повт",311]
[null,"Небога Олена Іванівна","перв",276]
[null,"Лазаренко Ємілія Борисівна","перв",277]
[null,"Кузьмін Євген Миколайович","перв",278]
[null,"Галаш Юрій Геннадійович","перв",279]
[null,"Ященко Галина Андріївна","перв",280]
[null,"Алімпієва Ольга Володимирівна","конс",0]
[null,"Петренко Руслан Володимирович","повт",312]
[null,"Семко Світлана Антонівна","повт",313]
[null,"Волчанов Іван Васильович","повт",314]
[null,"Силка Алла Володимирівна","перв",281]
[null,"Дюкарєв Геннадій Михайлович","перв",282]
[null,"Мартиненко Вадим Олександрович","перв",283]
[null,"Романюк Сергій Миронович","повт",315]
[null,"Деменкова Тетяна Дем'янівна","повт",316]
[null,"Васильченко Олександр Васильович","повт",317]
[null,"Сіденко Руслан Юрійович","повт",318]
[null,"Дружиніна Тетяна Вікторівна","повт",319]
[null,"Науменко Надія Петрівна","труд",68]
[null,"Терещенко Юрій Миколайович","труд",69]
[null,"Касап Ігор Васильович","перв",284]
[null,"Кебап Віктор Миколайович","перв",285]
[null,"Кебап Людмила Валентинівна","перв",286]
[null,"Ноджак Світлана Володимирівна","перв",287]
[null,"Єфременко Наталія Іванівна","перв",288]
[null,"Река Володимир Григорович","повт",320]
[null,"Кожухарь Віталій Петрович","повт",321]
[null,"Ляховецька Ганна Іванівна","повт",322]
[null,"Златов Ілля Іванович","повт",323]
[null,"Богаченко Валерія Олександрівна","повт",324]
[null,"Трофименко Андрій Леонідович","перв",289]
[null,"Доброжан Сергій Васильович","перв",290]
[null,"Кінчева Тетяна Миколаївна","перв",291]
[null,"Партика Ірина Сергіївна","перв",292]
[null,"Чернова Світлана Олексіївна","перв",293]
[null,"Шевчук Олег Дмитрович","перв",294]
[null,"Засова Олена Миколаївна","перв",295]
[null,"Дауд Фарід Ахмад","конс",0]
[null,"Дубровець Петро Петрович","перв",296]
[null,"Малачли Петро Петрович","перв",297]
[null,"Скицько Михайло Миколайович","перв",298]
[null,"Ляховецька Тетяна Миколаївна","повт",325]
[null,"Мірошніченко Єгор Вікторович","повт",326]
[null,"Тиркало Володимир Михайлович","перв",299]
[null,"Балинський Сергій Іванович","перв",300]
[null,"Ставертій Олександр Вікторович","перв",301]
[null,"Артемоненко Олександр Миколайович","повт",327]
[null,"Мироненко Лідія Андріївна","перв",302]
[null,"Кирилова Лада Миколаївна","без акту",0]
[null,"Гродзенко Павло Святославович","перв",303]
[null,"Васянович В'ячеслав Васильович","перв",304]
[null,"Сатулов Іван Іванович","повт",328]
[null,"Блосков Афанасій Андрійович","повт",329]
[null,"Мазур Андрій Васильович","труд",70]
[null,"Елькіна Ніна Василівна","труд",71]
[null,"Попова Лариса Михайлівна","перв",305]
[null,"Скорік В'ячеслав Юрійович","перв",306]
[null,"Рилов Володимир Миколайович","л/н",55]
[null,"Гуцол Віктор Демьянович","л/н",56]
[null,"Бабій Олександр Васильович","перв",307]
[null,"Філіпенко Микола Володимирович","перв",308]
[null,"Манзюк Вадим Дмитрович","повт",330]
[null,"Ковальов Віктор Олегович","повт",331]
[null,"Гурбік Анна Сергіївна","повт",332]
[null,"Дацько Віталій Петрович","повт",333]
[null,"Ліщук Наталія Анатоліївна","перв",309]
[null,"Нікіфоров Тимофій Володимирович","повт",334]
[null,"Толмач Віктор Федорович","повт",335]
[null,"Черой Олександр Ілліч","повт",336]
[null,"Кириленко Ольга Іванівна","перв",310]
[null,"Яшонков Степан Володимирович","л/н",57]
[null,"Громюк Людмила Василівна","перв",311]
[null,"Волков Олег Петрович","перв",312]
[null,"Коротаєв Віктор Володимирович","повт",337]
[null,"Коваленко Олексій  Олегович","повт",338]
[null,"Оганезова Галина Іванівна","перв",313]
[null,"Лукашенко Валерій Васильович","перв",314]
[null,"Навроцький Володимир Анатолійович","повт",339]
[null,"Кравець Тетяна Валеріївна","перв",315]
[null,"Овсянніков Віктор Іванович","перв",316]
[null,"Щербина Марина Володимирівна","перв",317]
[null,"Зарічний Руслан Володимирович","перв",318]
[null,"Стружевська Ірина Олександрівна","л/н",58]
[null,"Скрипников Микола Миколайович","перв",319]
[null,"Таран Василь Іванович","перв",320]
[null,"Сімакова Тетяна Олександрівна","перв",321]
[null,"Замфіраки Данило Ігорович","перв",322]
[null,"Шульга Тетяна Іванівна","повт",340]
[null,"Маковейчук Євген Юрійович","повт",341]
[null,"Баштанар Валентин Миколайович","повт",342]
[null,"Токарчук Богдан Валерійович","повт",343]
[null,"Вишневська Наталя Миколаївна","повт",344]
[null,"Телещук Жанна Борисівна","повт",345]
[null,"Кашковська Юлія Степанівна","труд",72]
[null,"Ємельянов Олег Володимирович","труд",73]
[null,"Слободін Руслан Миколайович","труд",74]
[null,"Соловйов Вадим Олександрович","повт",346]
[null,"Федоренко Ольга Пантелеймонівна","повт",347]
[null,"Логінов Олександр Леонідович","повт",348]
[null,"Задорожний Віктор Андрійович","труд",75]
[null,"Глуган Олександр Олександрович","труд",76]
[null,"Прокоф'єв Олександр Миколайович","труд",77]
[null,"Долженко Віталій Михайлович","перв",323]
[null,"Савенко Ганна Василівна","перв",324]
[null,"Ревенюк Тетяна Іванівна","повт",349]
[null,"Дубина Віталій Вікторович","повт",350]
[null,"Гайдаржи Зінаїда Петрівна","повт",351]
[null,"Конопльов Олексій Вікторович","повт",352]
[null,"Савчук Владислав Юрійович","повт",353]
[null,"Матвієнко Юрій Геннадійович","повт",354]
[null,"Щетініна Людмила Павлівна","перв",325]
[null,"Бікяшова Тянзілія Ідгаріївна","перв",326]
[null,"Андрус Володимир Іванович","перв",327]
[null,"Бурдейна Людмила Павлівна","л/н",59]
[null,"Поліщук Алла Леонідівна","перв",328]
[null,"Гуцан Ганна Іванівна","перв",329]
[null,"Ващенко Олена Миколаївна","перв",330]
[null,"Стрельбицький Віталій Миколайович","перв",331]
[null,"Пойманов Віталій Володимирович","повт",355]
[null,"Колесник Іван Семенович","перв",332]
[null,"Лаврюкова Тетяна Володимирівна","перв",333]
[null,"Петрасюк Вікторія Петрівна","перв",334]
[null,"Константінов Анатолій Ігорович","конс",0]
[null,"Махновська Олена Григорівна","конс",0]
[null,"Янковський Микола Олександрович","повт",356]
[null,"Єрошкін Михайло Олегович","повт",357]
[null,"Калина Валентина Миколаївна","перв",335]
[null,"Сакалюк Володимир Михайлович","перв",336]
[null,"Волковська Олена Олексіївна","л/н",60]
[null,"Стрижак Ірина Олександрівна","л/н",61]
[null,"Груценко Ольга Василівна","л/н",62]
[null,"Єрошкін Михайло Олегович","повт",358]
[null,"Гужан Ігор Олексійович","перв",337]
[null,"Вітренко Любов Іванівна","перв",338]
[null,"Амонс Руслана Валентинівна","повт",359]
[null,"Дауд Фарід Ахмад","повт",360]
[null,"Заяць Олександр Михайлович","труд",78]
[null,"Аланія Бесікі","труд",79]
[null,"Крицький Андрій Володимирович","труд",80]
[null,"Драган Алла Леонідівна","перв",339]
[null,"Шведу Ілля Костянтинович","перв",340]
[null,"Сіренко Григорій Васильович","труд",81]
[null,"Савчихин Микола Михайлович","труд",82]
[null,"Кучірка Ольга Володимирівна","труд",83]
[null,"Новак Максим Васильович","л/н",63]
[null,"Мокрицький Леонід Миколайович","труд",84]
[null,"Бокій Вячеслав Володимирович","перв",341]
[null,"Брояк Віталій Володимирович","л/н",64]
[null,"Толпека Юрій Павлович","повт",361]
[null,"Попов Даніїл Олександрович","перв",342]
[null,"Глинська Оксана Миколаївна","перв",343]
[null,"Парфьонова Світлана Анатоліївна","повт",362]
[null,"Пчолко Інна Миколаївна","повт",363]
[null,"Касєєв Денис Володимирович","перв",344]
[null,"Криков Михайло Сергійович","перв",345]
[null,"Мазурак Марія Іванівна","перв",346]
[null,"Гнатищак Володимир Степанович","л/н",65]
[null,"Савченко Артур Сергійович","повт",364]
[null,"Черепуха Віктор Миколайович","перв",347]
[null,"Ступак Любов Олександрівна","перв",348]
[null,"Трегубова Людмила Олександрівна","повт",365]
[null,"Мінєва Ірина Валеріївна","повт",366]
[null,"Нікітіна Валерія Денисівна","повт",367]
[null,"Чугреєва Марина Іванівна","повт",368]
[null,"В'язовський Костянтин Сергійович","повт",369]
[null,"Клименко Олександр Вікторович","повт",370]
[null,"Вихрист Світлана Володимирівна","конс",0]
[null,"Лісогорова Алла Миколаївна","повт",371]
[null,"Анісімова Ніна Михайлівна","перв",349]
[null,"Шишко Павло Миколайович","перв",350]
[null,"Тишлер Галина Іванівна","повт",372]
[null,"Бобине Олександр Валерійович","перв",351]
[null,"Блажко Максим Миколайович","перв",352]
[null,"Стадніченко Семен Семенович","перв",353]
[null,"Горяйнов Олександр Вікторович","л/н",66]
[null,"Олексюк Людмила Володимирівна","повт",373]
[null,"Батезат Віра Іванівна","перв",354]
[null,"Володько Юрій Петрович","перв",355]
[null,"Попов Сергій Васильович","повт",374]
[null,"Ільницька Елла Василівна","повт",375]
[null,"Городецький Леонід Миколайович","повт",376]
[null,"Довженко Олег Валентинович","повт",377]
[null,"Требушевська Ганна Костянтинівна","повт",378]
[null,"Паламарчук Володимир Васильович","повт",379]
[null,"Гайдаржи Валерій Іванович","труд",85]
[null,"Поліковський Анатолій Францевич","труд",86]
[null,"Караулова Уляна Юхимівна","труд",87]
[null,"Уривський Андрій Олександрович","перв",356]
[null,"Кравченко Тетяна Вячеславівна","перв",357]
[null,"Іванюк Володимир Ілліч","труд",88]
[null,"Поляков Віталій Іванович","перв",358]
[null,"Ковальчук Ольга Володимирівна","л/н",67]
[null,"Бабкова Ольга Феодосіївна","перв",359]
[null,"Солопенко Михайло Андрійович","перв",360]
[null,"Скородкіна Ліліана Євгенівна","перв",361]
[null,"Карпенко Юлія Миколаївна","перв",362]
[null,"Тимченко Валентина Василівна","перв",363]
[null,"Трухачова Віра Миколаївна","перв",364]
[null,"Звонарьов Андрій Володимирович","повт",380]
[null,"Чорний Дмитро Олександрович","повт",381]
[null,"Кучеренко Денис Миколайович","повт",382]
[null,"Таран Любов Іванівна","повт",383]
[null,"Стрецкул Олександр Григорович","повт",384]
[null,"Бондар Віталій Андрійович","повт",385]
[null,"Коваль Андрій Вікторович","повт",386]
[null,"Царенко Геннадій Валентинович","повт",387]
[null,"Бахчиванжи Євген Іванович","повт",388]
[null,"Войтишен Євген Володимирович","повт",389]
[null,"Корсун Валентина Степанівна","перв",365]
[null,"Колпак Віктор Михайлович","перв",366]
[null,"Осадчий Ілля Володимирович","повт",390]
[null,"Гупанець Людмила Серафимівна","л/н",68]
[null,"Зазулінська Аліна Вадимівна","повт",391]
[null,"Шестакова Людмила Миколаївна","перв",367]
[null,"Балун Олег Миколайович","повт",392]
[null,"Ростіков Вячеслав Сергійович","повт",393]
[null,"Волошин Сергій Миколайович","повт",394]
[null,"Гладченко Денис Анатолійович","повт",395]
[null,"Попова Світлана Петрівна","повт",396]
[null,"Тищенко Любов Василівна","повт",397]
[null,"Богуцька Тетяна Григорівна","повт",398]
[null,"Ніколаєв Ігор Михайлович","повт",399]
[null,"Савін Максим Володимирович","труд",89]
[null,"Сидоренко Павло Дмитрович","труд",90]
[null,"Полонський Анатолій Леонідович","труд",91]
[null,"Светличний Сергій Сергійович","перв",368]
[null,"Чернов Віктор Наумович","труд",92]
[null,"Мунтян Микола Леонідович","конс",0]
[null,"Косар Василина Петрівна","л/н",69]
[null,"Хворостецький Юрій Володимирович","перв",369]
[null,"Галабурда Сергій Васильович","повт",400]
[null,"Маслінков Вячеслав Степанович","повт",401]
[null,"Кременюк Дмитро Юрійович","повт",402]
[null,"Іщенко Ірина Григорівна","повт",403]
[null,"Мельниченко Володимир Олександрович","повт",404]
[null,"Мацько Олег Вікторович","повт",405]
[null,"Ажидар'ян Віталій Вікторович","повт",406]
[null,"Лісішин Андрій Вікторович","повт",407]
[null,"Доні Олена Іванівна","повт",408]
[null,"Гавриленко Ольга Артурівна","повт",409]
[null,"Караянєв Вадим Дмитрович","перв",370]
[null,"Бойко Лариса Анатоліївна","перв",371]
[null,"Добронравов Олександр Юрійович","перв",372]
[null,"Кіскін Павло Іванович","перв",373]
[null,"Микулич Віталій Ярославович","перв",374]
[null,"Марущенко Вадим Валерійович","перв",375]
[null,"Маркан Наталія Василівна","перв",376]
[null,"Романюк Вероніка Миколаївна","перв",377]
[null,"Голікова Світлана Василівна","л/н",70]
[null,"Янін Сергій Олександрович","перв",378]
[null,"Ганіч Ірина Олександрівна","перв",379]
[null,"Влах Віра Федорівна","перв",380]
[null,"Целіщева Світлана Франківна","перв",381]
[null,"Бобров Володимир Віталійович","повт",410]
[null,"Барсуков Олексій Сергійович","труд",93]
[null,"Калиніченко Валерій Григорович","труд",94]
[null,"Фатєєва Тетяна Опанасівна","перв",382]
[null,"Агапова Людмила Сергіївна","повт",411]
[null,"Бурдюжа Олег Петрович","перв",383]
[null,"Івасько Павло Дмитрович","без акту",0]
[null,"Комнатний Іван Іванович","повт",412]
[null,"Мягкий Юрій Андрійович","перв",384]
[null,"Герасімов Руслан Володимирович","повт",413]
[null,"Зелінський Володимир Вікторович","повт",414]
[null,"Шкільнюк Юліана Олександрівна","перв",385]
[null,"Валевська Ганна Миколаївна","перв",386]
[null,"Корчинська Ольга Олександрівна","повт",415]
[null,"Іздепський Ігор Юрійович","повт",416]
[null,"Кафтан Микола Григорович","повт",417]
[null,"Бондаренко Андрій Валерійович","повт",418]
[null,"Хамінець Світлана Анатоліївна","повт",419]
[null,"Касьян Вікторія Сергіївна","повт",420]
[null,"Мельников Сергій Валентинович","перв",387]
[null,"Кузнецова Інга Петрівна","перв",388]
[null,"Денисенко Галина Олександрівна","повт",421]
[null,"Грінченко Ігор Петрович","повт",422]
[null,"Краснова Тамара Анатоліївна","повт",423]
[null,"Ртвеладзе Ігор Георгійович","повт",424]
[null,"Задворний Роман Павлович","перв",389]
[null,"Осипов Костянтин Володимирович","повт",425]
[null,"Герасименко Алла Іванівна","перв",390]
[null,"Кобилинський Денис Сергійович","перв",391]
[null,"Алієв Бахшеїш Рагім Огли","перв",392]
[null,"Риндич Людмила Валентинівна","перв",393]
[null,"Коренюк Віталій Петрович","повт",426]
[null,"Комар Анатолій Михайлович","конс",0]
[null,"Грозов Федір Дмитрович","перв",394]
[null,"Панасовська Людмила Миколаївна","перв",395]
[null,"Французан Олександр Миколайович","перв",396]
[null,"Кара Андрій Йосипович","повт",427]
[null,"Фардигола Галина Олексіївна","повт",428]
[null,"Авраменко Костянтин Сергійович","повт",429]
[null,"Ткаченко Віктор Миколайович","повт",430]
[null,"Мельник Олександр Євгенійович","повт",431]
[null,"Мальський Валентин Миколайович","повт",432]
[null,"Дмитрик Ольга Антонівна","повт",433]
[null,"Челак Семіон Петрович","повт",434]
[null,"Горбач Денис Сергійович","повт",435]
[null,"Палійчук Аліна Павлівна","повт",436]
[null,"Дєєв Володимир Васильович","труд",95]
[null,"Сухачова Зоя Олександрівна","труд",96]
[null,"Веремеєнко Аркадій Леонідович","труд",97]
[null,"Негруца Степан Якович","труд",98]
[null,"Красножон Євген Олександрович","л/н",71]
[null,"Івасько Павло Дмитрович","без акту",0]
[null,"Грибенюк Олена Олексіївна","л/н",72]
[null,"Пачева Ольга Олексіївна","перв",397]
[null,"Ганчев Петро Васильович","конс",0]
[null,"Карпенко Дмитро Вячеславович","повт",437]
[null,"Михайлов Владислав Сергійович","повт",438]
[null,"Гоголь Оксана Вікторівна","повт",439]
[null,"Бричак Леонід Олександрович","повт",440]
[null,"Поліщук Людмила Іванівна","повт",441]
[null,"Добровольський Юрій Анатолійович","повт",442]
[null,"Рославець Тамара Петрівна","перв",398]
[null,"Гончарук Олександр Васильович","перв",399]
[null,"Коцофляк Олександр Васильович","перв",400]
[null,"Чернявський Андрій Петрович","перв",401]
[null,"Славов Микола Ананійович","перв",402]
[null,"Войчишен Олександр Ананійович","повт",443]
[null,"Лазикін Віталій Анатолійович","перв",403]
[null,"Лінкевич Дмитро Вікторович","повт",444]
[null,"Сіраковська Таїсія Володимирівна","повт",445]
[null,"Шкуратов Михайло Вікторович","повт",446]
[null,"Паюл Георгій Олексійович","повт",447]
[null,"Ольхова Наталія Петрівна","повт",448]
[null,"Левицький Василь Вікторович","повт",449]
[null,"Малецька Світлана Леонідівна","повт",450]
[null,"Орлюк Олег В'ячеславович","перв",404]
[null,"Терзіогло Лілія Едипівна","перв",405]
[null,"Русескул Раїса Петрівна","конс",0]
[null,"Дукова Олена Георгіївна","повт",451]
[null,"Балашенко Роман Олександрович","повт",452]
[null,"Савчук Іван Анатолійович","повт",453]
[null,"Бондар Віктор Миколайович","повт",454]
[null,"Горбуненко Костянтин Олегович","повт",455]
[null,"Мелешак Олександр Петрович","повт",456]
[null,"Студницький Едуард Леонідович","труд",99]
[null,"Пушкіна Валентина Іванівна","повт",457]
[null,"Єфрем Раїса Дмитрівна","повт",458]
[null,"Гапчук Андрій Анатолійович","повт",459]
[null,"Воропай Світлана Анатоліївна","повт",460]
[null,"Кудря Світлана Вікторівна","повт",461]
[null,"Щербина Олексій Ігорович","перв",406]
[null,"Верченко Максим Сергійович","повт",462]
[null,"Нікольнікова Євгенія Володимирівна","повт",463]
[null,"Губар Людмила Іванівна","повт",464]
[null,"Шимко Олексій Віталійович","повт",465]
[null,"Кузнєцов Анатолій Євдокимович","повт",466]
[null,"Сімова Ольга Михайлівна","перв",407]
[null,"Швечкова Наталія Валеріївна","перв",408]
[null,"Звіжинський Роман Степанович","перв",409]
[null,"Тютюник Юрій Олексійович","перв",410]
[null,"Кіртока Олександр Федорович","перв",411]
[null,"Данилюк Людмила Станіславівна","перв",412]
[null,"Лунькова Катерина Михайлівна","перв",413]
[null,"Гузь Олександр Євгенович","перв",414]
[null,"Артеменко Руслан Юрійович","повт",467]
[null,"Дума Олена Федорівна","повт",468]
[null,"Берчанська Світлана Павлівна","перв",415]
[null,"Платонова Тетяна Іванівна","повт",469]
[null,"Нечепуренко Олег Володимирович","повт",470]
[null,"Сандул Євгеній Миколайович","повт",471]
[null,"Педченко Інна Миколаївна","повт",472]
[null,"Наумова Тетяна Євгеніївна","повт",473]
[null,"Ціхольський Валентин Антонович","перв",416]
[null,"Романов Микола Миколайович","перв",417]
[null,"Андронік Любов Віталіївна","перв",418]
[null,"Донець Анатолій Леонідович","перв",419]
[null,"Кейбаш Федір Петрович","перв",420]
[null,"Кочман Олег Іванович","перв",421]
[null,"Боренко Сергій Володимирович","повт",474]
[null,"Фомін Михайло Вікторович","повт",475]
[null,"Бібік Ксенія Максимівна","повт",476]
[null,"Поліщук Сергій Іванович","повт",477]
[null,"Караіван Олег Ілліч","повт",478]
[null,"Логінов Антон Олексійович","повт",479]
[null,"Мельник Вадим Олександрович","повт",480]
[null,"Безродний Сергій Валентинович","повт",481]
[null,"Зуб Олександр Євгенович","повт",482]
[null,"Станчук Петро Георгійович","повт",483]
[null,"Сафончик Іван Васильович","труд",100]
[null,"Дука Тамара Павлівна","труд",101]
[null,"Савченко Юрій Юрійович","повт",484]
[null,"Чупілка Олена Володимирівна","повт",485]
[null,"Кушнеренко Олександр Михайлович","повт",486]
[null,"Полінгер Володимир Саульович","перв",422]
[null,"Носков Олександр Борисович","перв",423]
[null,"Паровик Олена Трохимівна","перв",424]
[null,"Басанець Ганна Сергіївна","повт",487]
[null,"Россомаха Людмила Миколаївна","повт",488]
[null,"Кучурке Максим Максимович","повт",489]
[null,"Кривунець Дем'ян Олександрович","повт",490]
[null,"Собко Віталій Євгенович","повт",491]
[null,"Погойдаш Олександр Петрович","перв",425]
[null,"Непейцев Василь Миколайович","перв",426]
[null,"Єремьянц Борис Григорович","перв",427]
[null,"Анікеєв Юрій Миколайович","перв",428]
[null,"Сума Олексій Олексійович","перв",429]
[null,"Жовтобрюх Вадим Володимирович","повт",492]
[null,"Злотеско Іван Михайлович","повт",493]
[null,"Козловський Олексій Вікторович","повт",494]
[null,"Федорін Денис Михайлович","повт",495]
[null,"Полянський Валентин Вікторович","повт",496]
[null,"Радченко Павло Іванович","перв",430]
[null,"Стрижак Ольга Григорівна","перв",431]
[null,"Капітан Василь Сергійович","перв",432]
[null,"Машанов Олег Васильович","перв",433]
[null,"Колісніченко Вадим Миколайович","перв",434]
[null,"Слєпцов Ігор Миколайович","перв",435]
[null,"Іщук Артем Сергійович","повт",497]
[null,"Семчук Оксана Анатоліївна","повт",498]
[null,"Демчишина Лариса Сергіївна","повт",499]
[null,"Будугай Любов Романівна","повт",500]
[null,"Непомящий Юрій Миколайович","повт",501]
[null,"Албул Олексій Васильович","повт",502]
[null,"Матвєєв Віктор Вікторович","труд",102]
[null,"Сімчук Євген Ігорович","труд",103]
[null,"Алєксєєв Андрій Вікторович","повт",503]
[null,"Седенко Олександр Ігорович","перв",436]
[null,"Бондаренко Артур Анатолійович","перв",437]
[null,"Стовман Олександр Віталійович","перв",438]
[null,"Остапчук Максим Володимирович","перв",439]
[null,"Катихіна Лариса Миколаївна","конс",0]
[null,"Лукін Олександр Сергійович","перв",440]
[null,"Хаджи Вероніка Михайлівна","л/н",73]
[null,"Урсул Олена Олександрівна","повт",504]
[null,"Кудряков Віталій Іванович","повт",505]
[null,"Прушинський Олександр Васильович","повт",506]
[null,"Найбауер Ганна Григорівна","повт",507]
[null,"Нестерова Людмила Іванівна","повт",508]
[null,"Літянський Віталій Вікторович","повт",509]
[null,"Стоянов Сергій Михайлович","повт",510]
[null,"Здоровцов Ігор Павлович","перв",441]
[null,"Алачева Домнікія Георгіївна","перв",442]
[null,"Утємішева Ірина Анатоліївна","перв",443]
[null,"Кошева Олена Василівна","перв",444]
[null,"Притула Галина Анатоліївна","перв",445]
[null,"Бондаренко Тетяна Федорівна","перв",446]
[null,"Шпаковський Микола Володимирович","повт",511]
[null,"Рибальченко Юрій Борисович","перв",447]
[null,"Приймак Олександр Васильович","повт",512]
[null,"Стадніков Костянтин Юрійович","повт",513]
[null,"Гнатюк Денис Васильович","повт",514]
[null,"Попозогло Ольга Панасівна","повт",515]
[null,"Басараб Ілля Ілліч","перв",448]
[null,"Гришагіна Ілона Андріївна","перв",449]
[null,"Юр'єва Тетяна Володимирівна","перв",450]
[null,"Суховатий Віктор Олександрович","перв",451]
[null,"Аканін Ігор Юрійович","перв",452]
[null,"Попазов Іван Дмитрович","перв",453]
[null,"Пирожанський Віталій Володимирович","перв",454]
[null,"Боржицька Людмила Олександрівна","перв",455]
[null,"Резник Світлана Олександрівна","перв",456]
[null,"Захарчук Аксенія Митрофанівна","повт",516]
[null,"Зуб Олександр Валерійович","повт",517]
[null,"Ніколаєва Олена Василівна","повт",518]
[null,"Жиганюк Руслан Олександрович","повт",519]
[null,"Коржов Василь Юрійович","повт",520]
[null,"Озерова Наталія  Георгіївна","повт",521]
[null,"Новак Максим Васильович","труд",104]
[null,"Лисюк Ірина Анатоліївна","труд",105]
[null,"Дмитрієв Андрій Юрійович","повт",522]
[null,"Процепов Олексій Володимирович","перв",457]
[null,"Поліщук Едуард Митрофанович","перв",458]
[null,"Левчук Олександр Анатолійович","перв",459]
[null,"Тітов Сергій Іванович","перв",460]
[null,"Федотова Любов Євгенівна","перв",461]
[null,"Кирейченко Олександр Олександрович","перв",462]
[null,"Мельниченко Микола Федорович","труд",106]
[null,"Закревська Ірина Володимирівна","перв",463]
[null,"Морозовська Людмила Юріївна","повт",523]
[null,"Кривоберець Максим Миколайович","повт",524]
[null,"Коваленко Валерій Васильович","повт",525]
[null,"Вишневський Сергій Олександрович","повт",526]
[null,"Мурадов Геркулес Герасимович","повт",527]
[null,"Овчаренко Сергій Іванович","повт",528]
[null,"Новосадова Альона Володимирівна","перв",464]
[null,"Кузь Валентин Григорович","повт",529]
[null,"Сендик Олег Олександрович","повт",530]
[null,"Коржинський Василь Миколайович","повт",531]
[null,"Мовчан Валерій Іванович","повт",532]
[null,"Шудрак Ігор Юрійович","повт",533]
[null,"Антіпов Євген Вікторович","повт",534]
[null,"Онищенко Василь Михайлович","перв",465]
[null,"Рингач Наталя Валеріївна","перв",466]
[null,"Дімов Іван Іванович","перв",467]
[null,"Михайлова Світлана Георгіївна","л/н",74]
[null,"Вєлєва Світлана Павлівна","л/н",75]
[null,"Соломонюк Валерій Петрович","повт",535]
[null,"Ткач Ніна Авксентіївна","перв",468]
[null,"Платонова Людмила Миколаївна","повт",536]
[null,"Триколич Наталія Вікторівна","перв",469]
[null,"Бєлоконь Марія Дмитрівна","повт",537]
[null,"Пліханов Анатолій Олександрович","л/н",76]
[null,"Пащенко Сергій Вікторович","повт",538]
[null,"Рисований Віталій Володимирович","повт",539]
[null,"Хлевний Олексій Валерійович","л/н",77]
[null,"Тарасов Володимир Миколайович","повт",540]
[null,"Алєксєєнко Валентина Федорівна","повт",541]
[null,"Тарасенко Любов Василівна","перв",470]
[null,"Шляхтьонова Єлизавета Олександрівна","конс"]
[null,"Перкун Надія Миколаївна","л/н",78]
[null,"Колесник Валентина Олексіївна","конс"]
[null,"Мітітєлу Ростислав Андрійович","конс"]
[null,"Галущак Ігор Іванович","повт",542]
[null,"Чебан Олександр Володимирович","повт",543]
[null,"Копач Олександр Іванович","повт",544]
[null,"Дєлієргієв Петро Георгійович","труд",107]
[null,"Козьма Алла Петрівна","труд",108]
[null,"Чередніченко Зінаїда Іванівна","перв",471]
[null,"Бабчук Сергій Михайлович","труд",109]
[null,"Святківський Сергій Андрійович","перв",472]
[null,"Фурдуй Олександр Олександрович","труд",110]
[null,"Моторний Вадим Дмитрович","повт",545]
[null,"Марку Максим Сергійович","повт",546]
[null,"Білоус Володимир Олегович","повт",547]
[null,"Огороднік Ілля Михайлович","повт",548]
[null,"Павлюк Вячеслав Михайлович","перв",473]
[null,"Шимов Сергій Вікторович","перв",474]
[null,"Лужанський В'ячеслав Ігорович","повт",549]
[null,"Куличевський Андрій Євгенович","повт",550]
[null,"Попряга Іван Іванович","повт",551]
[null,"Балабко Олександр Григорович","повт",552]
[null,"Біда Михайло Вікторович","повт",553]
[null,"Стоянов Федір Іванович","л/н",79]
[null,"Шведенко Сергій Анатолійович","л/н",80]
[null,"Личак Костянтин Віталійович","повт",554]
[null,"Зайцев Микола Валентинович","повт",555]
[null,"Вихрист Світлана Володимирівна","повт",556]
[null,"Матюшко Сергій Миколайович","повт",557]
[null,"Беліков Микола Олександрович","повт",558]
[null,"Станчева Віра Григорівна","перв",475]
[null,"Вітер Ольга Михайлівна","повт",559]
[null,"Олєйніченко Світлана Георгіївна","повт",560]
[null,"Бенедіко Ігор Володимирович","перв",476]
[null,"Козловський Сергій Олександрович","повт",561]
[null,"Левицький Олександр Анатолійович","перв",477]
[null,"Демченко Іван Олегович","л/н",81]
[null,"Печенюк Марина Анатоліївна","л/н",82]
[null,"Черногородов Володимир Станіславович","перв",478]
[null,"Пересунько Олексій Олександрович","перв",479]
[null,"Сергієнко Ярослава Василівна","перв",480]
[null,"Сіньковський Микола Володимирович","повт",562]
[null,"Шаталюк Наталія Олександрівна","повт",563]
[null,"Львова Маріанна Олександрівна","повт",564]
[null,"Котляренко В'ячеслав Віталійович","повт",565]
[null,"Кіосев Василь Васильович","труд",111]
[null,"Голосюк Леонід Миколайович","труд",112]
[null,"Пеньковська Ірина Костянтинівна","л/н",83]
[null,"Романенко Галина Миколаївна","труд",113]
[null,"Палаткін Олег Володимирович","повт",566]
[null,"Попов Євгеній Ігорович","повт",567]
[null,"Науменко Юрій Вячеславович","повт",568]
[null,"Руснак Тетяна Іванівна","повт",569]
[null,"Зорило Олександр Ілліч","повт",570]
[null,"Курбанов Гідаят Гюльахмед","повт",571]
[null,"Тросін Андрій Вікторович","перв",481]
[null,"Осокіна Світлана Сергіївна","повт",572]
[null,"Загороднюк Вікторія Володимирівна","повт",573]
[null,"Слюсар Олександра Миколаївна","повт",574]
[null,"Барган Віктор Федорович","л/н",84]
[null,"Чернєв Віктор Сергійович","л/н",85]
[null,"Серветнік Віктор  Михайлович","л/н",86]
[null,"Торішня Олена Анатоліївна","повт",575]
[null,"Парван Анатолій Іванович","повт",576]
[null,"Нараєвська Тетяна Валентинівна","повт",577]
[null,"Желєва Світлана Олексіївна","л/н",87]
[null,"Варецький Борис Борисович","конс"]
[null,"Гедерим Володимир Миколайович","повт",578]
[null,"Кузьменко Марія Степанівна","повт",579]
[null,"Галушка Валентина Василівна","повт",580]
[null,"Варчук Віктор Афанасійович","перв",482]
[null,"Дмитренко Віктор Вікторович","повт",581]
[null,"Киба Сергій Павлович","повт",582]
[null,"Медюк Олег Віталійович","перв",483]
[null,"Буюклі Олена Володимирівна","повт",583]
[null,"Іванькович Гліб Костянтинович","повт",584]
[null,"Стоянов Дмитро Андрійович","перв",484]
[null,"Уманиць Олена Василівна","повт",585]
[null,"Савєльєва Зоя Петрівна","перв",485]
[null,"Лабунець Олег Олександрович","повт",586]
[null,"Кочин Сергій Вікторович","конс"]
[null,"Дойчев Микола Васильович","повт",587]
[null,"Луданий Валерій Анатолійович","повт",588]
[null,"Лисенко Анатолій Володимирович","повт",589]
[null,"Устюгова Оксана Іванівна","труд",114]
[null,"Палига Сергій Миколайович","труд",115]
[null,"Снятков Євген Валерійович","перв",486]
[null,"Ватагіна Марина Георгіївна","труд",116]
[null,"Каташинський Андрій Миколайович","труд",117]
[null,"Горбачов Олександр Анатолійович","труд",118]
[null,"Мищенко Алла Іллівна","труд",119]
[null,"Рожкова Ірина Іванівна","перв",487]
[null,"Тетко Ігор Віталійович","перв",488]
[null,"Бризгалова Лариса Петрівна","перв",489]
[null,"Таха Махмуд","повт",590]
[null,"Михайлик Олег Станіславович","повт",591]
[null,"Лаврьонов Сергій Олександрович","труд",120]
[null,"Медведєв Андрій Валерійович","повт",592]
[null,"Івасик Сергій Анатолійович","перв",490]
[null,"Мишоловська Олена Леонідівна","повт",593]
[null,"Затока Аліна Сергіївна","повт",594]
[null,"Федотов Олексій Юрійович","повт",595]
[null,"Рудь Олена Валентинівна","л/н",88]
[null,"Гончар Валентина Володимирівна","л/н",89]
[null,"Столбов Микола Миколайович","повт",596]
[null,"Паламарчук Микола Олегович","повт",597]
[null,"Малойван Валентина Василівна","перв",491]
[null,"Равічев Сергій Геннадійович","повт",598]
[null,"Штефан Іван Яношович","перв",492]
[null,"Черновол Артур Олександрович","повт",599]
[null,"Воронюк Євген Анатолійович","повт",600]
[null,"Алексеєва Світлана Леонідівна","повт",601]
[null,"Брінзюк Ольга Володимирівна","перв",493]
[null,"Вєлєва Світлана Павлівна","перв",494]
[null,"Теряєв Андрій Олександрович","повт",602]
[null,"Заборін Михайло Леонідович","перв",495]
[null,"Кочин Сергій Вікторович","перв",496]
[null,"Дімов Сергій Прокопович","перв",497]
[null,"Мисик Максим Олексійович","повт",603]
[null,"Засовенко Юрій Петрович","л/н",90]
[null,"Новак Андрій Миколайович","повт",604]
[null,"Єлькін Олександр Вікторович","повт",605]
[null,"Ковальчук Ірина Анатоліївна","перв",498]
[null,"Довженко Євген Сергійович","повт",606]
[null,"Наку Тамара Іллівна","труд",121]
[null,"Діхтяр Сергій Андрійович","труд",122]
[null,"Караман Степан Георгійович","труд",123]
[null,"Ткачов Геннадій Олександрович","перв",499]
[null,"Головцов Юрій Олексійович","повт",607]
[null,"Мардар Надія Володимирівна","перв",500]
[null,"Григорук Валентина Анатоліївна","повт",608]
[null,"Волковська Олена Олексіївна","перв",501]
[null,"Севастьянов Дмитро Олександрович","перв",502]
[null,"Стегній Інеса Андріївна","перв",503]
[null,"Катихіна Лариса Миколаївна","перв",504]
[null,"Вольський Олександр Станіславович","труд",124]
[null,"Синиця Микола Іванович","труд",125]
[null,"Климов Олексій Анатолійович","труд",126]
[null,"Кучер Володимир Петрович","повт",609]
[null,"Сасевич Ігор Олексійович","перв",505]
[null,"Стецьків Віталій Тарасович","повт",610]
[null,"Дубов Олександр Олександрович","повт",611]
[null,"Горбачов Максим Сергійович","повт",612]
[null,"Ковальова Олена Миколаївна","повт",613]
[null,"Погорєлов Владислав Олександрович","повт",614]
[null,"Соцький Михайло Назарович","перв",506]
[null,"Гусєв Сергій Євгенійович","перв",507]
[null,"Хрустовський Андрій Григорович","л/н",91]
[null,"Фаніка Світлана Миколаївна","перв",508]
[null,"Груценко Ольга Василівна","перв",509]
[null,"Нєнку Іван Олегович","перв",510]
[null,"Джапарідзе Любов Семенівна","перв",511]
[null,"Тіструга Наталія Анатоліївна","л/н",92]
[null,"Волощук Віталій Вікторович","л/н",93]
[null,"Широкий Дмитро Олександрович","повт",615]
[null,"Паулаускас Артур Вікторасович","повт",616]
[null,"Татар Юрй Васильович","перв",512]
[null,"Веселовський Сергій Володимирович","перв",513]
[null,"Чистов Сергій Сергійович","повт",617]
[null,"Гавриленко Микола Юрійович","повт",618]
[null,"Тихомир Микола Іванович","перв",514]
[null,"Белєєвський Андрій Андрійович","перв",515]
[null,"Тулякова Олена Вікторівна","повт",619]
[null,"Рябець Тетяна Василівна","л/н",94]
[null,"Кожем'якін Валерій Григорович","л/н",95]
[null,"Шатохіна Світлана Миколаївна","повт",620]
[null,"Джаламага Віталій Аркадійович","повт",621]
[null,"Алєксєєнко Володимир Володимирович","перв",516]
[null,"Зайцев Анатолій Анатолійович","повт",622]
[null,"Глевицька Марина Вікторівна","повт",623]
[null,"Свистун Станіслав Олексійович","труд",127]
[null,"Тригубчак Сергій Володимирович","труд",128]
[null,"Кувшинов Андрій Олексійович","труд",129]
[null,"Кирилов Валерій Володимирович","труд",130]
[null,"Волочай Валерій Олексійович","труд",131]
[null,"Кондратенко Вячеслав Анатолійович","повт",624]
[null,"Свідер Віталій Олексійович","повт",625]
[null,"Куркудим Віталій Петрович","труд",132]
[null,"Ципряк Юрій Володимирович","л/н",96]
[null,"Чистова Ірина Петрівна","перв",517]
[null,"Гаврюшкін Артем Олександрович","перв",518]
[null,"Подкопаєв Ігор Анатолійович","перв",519]
[null,"Бережна Ірина Валентинівна","перв",520]
[null,"Попов Андрій Георгійович","повт",626]
[null,"Ганенко Вадим Анатолійович","повт",627]
[null,"Дорошенко Андрій Олександрович","повт",628]
[null,"Максименко Вячеслав Володимирович","повт",629]
[null,"Должников Олександр Іванович","перв",521]
[null,"Кічук Петро Дмитрович","перв",522]
[null,"Бабаєва Тетяна Миколаївна","конс"]
[null,"Реуцька Валентина Іванівна","повт",630]
[null,"Чорний Микола Миколайович","перв",523]
[null,"Дюбіна Олена Олександрівна","перв",524]
[null,"Павлюк Олена Олексіївна","повт",631]
[null,"Ячменьов Сергій Євгенович","перв",525]
[null,"Москаленко Денис Миколайович","перв",526]
[null,"Каражелясков Станіслав Іванович","повт",632]
[null,"Молотов Вадим Борисович","повт",633]
[null,"Дрожин Олексій Юрійович","повт",634]
[null,"Сальченко Сергій Миколайович","повт",635]
[null,"Григор'єв Сергій Вікторович","л/н",97]
[null,"Мішанчук Наталя Миколаївна","перв",527]
[null,"Новгородов Сергій Вікторович","перв",528]
[null,"Масюк Олена Валеріївна","перв",529]
[null,"Галушкевич Віктор Миколайович","перв",530]
[null,"Акдерлі Олег Андрійович","повт",636]
[null,"Каштанов Максим Андрійович","перв",531]
[null,"Лужецька Галина Петрівна","труд",133]
[null,"Пєнов Микола Миколайович","труд",134]
[null,"Бондарєв Володимир Олександрович","труд",135]
[null,"Шевчук Михайло Михайлович","труд",136]
[null,"Васьків Сергій Володимирович","повт",637]
[null,"Балан Андрій Володимирович","повт",638]
[null,"Коваленко Раїса Олексіївна","труд",137]
[null,"Ніколаєв Анатолій Іванович","повт",639]
[null,"Бошков Юрій Федорович","перв",532]
[null,"Узун Сергій Георгійович","повт",640]
[null,"Карнаух Тетяна Анатоліївна","перв",533]
[null,"Кустол Михайло Афанасійович","повт",641]
[null,"Зозуля Інна Іванівна","л/н",98]
[null,"Міхполь Андрій Яковлевич","повт",642]
[null,"Борисенко Олександр Сергійович","перв",534]
[null,"Лозан Андрій Вікторович","перв",535]
[null,"Якунін Валерій Іванович","повт",643]
[null,"Клименко Дмитро Олександрович","перв",536]
[null,"Шепелєв Костянтин Андрійович","повт",644]
[null,"Ісмаїлов Сулейман Немет Огли","перв",537]
[null,"Грабарчук Любов Стахівна","повт",645]
[null,"Ткачук Діана Дмитрівна","повт",646]
[null,"Міфодін Віктор Анатолійович","повт",647]
[null,"Бакіров Ельнар Енверович","повт",648]
[null,"Павліченко Світлана Миколаївна","повт",649]
[null,"Щербань Едуард Олександрович","л/н",99]
[null,"Алексєєнко Сергій Ілліч","повт",650]
[null,"Михайліна Галина Михайлівна","повт",651]
[null,"Заворотна Галина Степанівна","повт",652]
[null,"Дундук Анатолій Іванович","повт",653]
[null,"Драченко Михайло Юрійович","повт",654]
[null,"Гольдвар Ірина Петрівна","повт",655]
[null,"Бянова Наталія Вікторівна","перв",538]
[null,"Ченцов Ярослав Миколайович","повт",656]
[null,"Щелакова Валентина Олексіївна","перв",539]
[null,"Каніковська Валентина Василівна","повт",657]
[null,"Чорний Олександр Анатолійович","повт",658]
[null,"Бербат Дмитро Юрійович","л/н",100]
[null,"Репецький Юрій Леонідович","перв",540]
[null,"Маніта Ілля Іванович","перв",541]
[null,"Томілов Вячеслав Вікторович","л/н",101]
[null,"Бабенко Руслан Анатолійович","перв",542]
[null,"Балановський Юрій Володимирович","л/н",102]
[null,"Боросюк Віталій Вікторович","перв",543]
[null,"Старовойтова Жанна Анатоліївна","л/н",103]
[null,"Воробйов Олександр Миколайович","перв",544]
[null,"Геворгян Віктор Едуардович","повт",659]
[null,"Гончаров Олег Сергійович","перв",545]
[null,"Карасенко Ігор Валентинович","труд",138]
[null,"Маслов Андрій Стефанович","труд",139]
[null,"Полонський Анатолій Леонідович","труд",140]
[null,"Купченко Тетяна Анатоліївна","повт",660]
[null,"Чибісова Любов Іванівна","повт",661]
[null,"Коваленко Валерій Борисович","повт",662]
[null,"Політаєв Володимир Миколайович","перв",546]
[null,"Халай Тетяна Василівна","перв",547]
[null,"Кириленко Пантелій Семенович","труд",141]
[null,"Гаврильчук Едуард Іванович","конс"]
[null,"Соболєва Лариса Миколаївна","повт",663]
[null,"Карамавров Валерій Петрович","перв",548]
[null,"Васильченко Сергій Михайлович","перв",549]
[null,"Сєдов Олексій Анатолійович","повт",664]
[null,"Лінкар Євген Анатолійович","повт",665]
[null,"Апостолова Ельнара Адалятівна","повт",666]
[null,"Драганов Василь Андрійович","перв",550]
[null,"Земель Олег Олександрович","повт",667]
[null,"Андрієнко Тамара Семенівна","конс"]
[null,"Сидоренко Вадим Петрович","повт",668]
[null,"Мельников Ігор Олександрович","повт",669]
[null,"Нестеренко Вальдемарда Анатоліївна","конс"]
[null,"Боровін Юрій Володимирович","повт",670]
[null,"Санжаровський Валерій Іванович","повт",671]
[null,"Спиридонов Олександр Володимирович","повт",672]
[null,"Гуляновська Яна Володимирівна","повт",673]
[null,"Геворгян Геворг Гашкович","перв",551]
[null,"Компанієць Сергій Олександрович","повт",674]
[null,"Козарь Галина Григорівна","повт",675]
[null,"Цопа Андрій Олександрович","повт",676]
[null,"Мошан Тимофій Миколайович","л/н",104]
[null,"Бугаєв Олександр Валентинович","повт",677]
[null,"Вільчевський Віталій Едуардович","повт",678]
[null,"Верниба Юрій Миколайович","повт",679]
[null,"Сиваш Ігор Володимирович","повт",680]
[null,"Семікоз Віталій Володимирович","конс"]
[null,"Олевинська Лідія Костянтинівна","л/н",105]
[null,"Трибой Сергій Васильович","л/н",106]
[null,"Зубков Юрій Леонідович","повт",681]
[null,"Мица Катерина Іванівна","перв",552]
[null,"Дішлі Віктор Степанович","труд",142]
[null,"Сєдлік Олег Сергійович","повт",682]
[null,"Духовська Ольга Юріївна","повт",683]
[null,"Намазов Сакіт Іспандіяр Огли","перв",553]
[null,"Варан Оксана Олександрівна","л/н",107]
[null,"Бурячок Наталія Миколаївна","повт",684]
[null,"Сеньків Андрій Степанович","перв",554]
[null,"Дандан Анатолій Дмитрович","повт",685]
[null,"Палєсіка Андрій Іванович","перв",555]
[null,"Корнієнко Олександр Вікторович","повт",686]
[null,"Дромашко Олег Григорович","повт",687]
[null,"Криниця Валентина Борисівна","перв",556]
[null,"Ярошевич Євгеній Миколайович","повт",688]
[null,"Наумова Наталія Анатоліївна","повт",689]
[null,"Федорончук Віталій Вікторович","перв",557]
[null,"Колєва Олена Іванівна","повт",690]
[null,"Чебан Галина Володимирівна","перв",558]
[null,"Гулова Валентина Стефанівна","перв",559]
[null,"Пшеничний Сергій Олександрович","перв",560]
[null,"Степанов Микола Іванович","перв",561]
[null,"Степанов Олександр Георгійович","повт",691]
[null,"Ступіна Олена Анатоліївна","перв",562]
[null,"Воротинцев Андрій Володимирович","повт",692]
[null,"Гетьман Олександр Геннадійович","перв",563]
[null,"Петрусенко Лариса Іванівна","перв",564]
[null,"Танурков Олександр Іванович","повт",693]
[null,"Піроженко Олександр Олександрович","повт",694]
[null,"Волков Євген Миколайович","повт",695]
[null,"Пєрков Василь Вікторович","повт",696]
[null,"Денисенко Олександр Семенович","перв",565]
[null,"Тикул Олександра Геннадіївна","повт",697]
[null,"Кокарча Ольга Михайлівна","перв",566]
[null,"Воронов Андрій Петрович","л/н",108]
[null,"Калінкін Володимир Юрійович","повт",698]
[null,"Васильченко Юрій Сергійович","повт",699]
[null,"Кочарян Гарнік Шурікович","перв",567]
[null,"Шевченко Юрій Володимирович","перв",568]
[null,"Гранковська Надія Іванівна","труд",143]
[null,"Какуша Тетяна Володимирівна","труд",144]
[null,"Кусівський Кирило Михайлович","перв",569]
[null,"Янов Анатолій Степанович","повт",700]
[null,"Кіданчук Валентин Ігорович","перв",570]
[null,"Сіренко Олександр Анатолійович","повт",701]
[null,"Кідін Юрій Олексійович","труд",145]
[null,"Тенькова Віра Дмитрівна","перв",571]
[null,"Карпінський Олександр Михайлович","перв",572]
[null,"Агакішиєва Ельза Амруллак","повт",702]
[null,"Гураль Тетяна Валентинівна","конс"]
[null,"Нурієва Алевтина Гусейнівна","труд",146]
[null,"Лунькова Раїса Аркадіївна","повт",703]
[null,"Хотькіна Людмила Олександрівна","перв",573]
[null,"Іовчев Георгій Дем'янович","повт",704]
[null,"Цебренко Наталя Борисівна","повт",705]
[null,"Мокра Анна Максимівна","перв",574]
[null,"Кононенко Марія Олександрівна","перв",575]
[null,"Олексюк Ігор Дмитрович","повт",706]
[null,"Архипов Дмитро Вікторович","повт",707]
[null,"Паненко Олена Миколаївна","перв",576]
[null,"Бєлоусова Ірина Петрівна","повт",708]
[null,"Головчук Валерій Анатолійович","перв",577]
[null,"Кузічев Юрій Борисович","повт",709]
[null,"Мешвез Ігор Юрійович","повт",710]
[null,"Грачковський Володимир Федорович","повт",711]
[null,"Устименко Ольга Владиславівна","повт",712]
[null,"Слободніченко Михайло Володимирович","повт",713]
[null,"Галюга Людмила Іванівна","перв",578]
[null,"Ільяшенко Олексій Андрійович","повт",714]
[null,"Король Тетяна Володимирівна","повт",715]
[null,"Марциненко Олена Олександрівна","повт",716]
[null,"Стадник Галина Василівна","перв",579]
[null,"Маслов Микола Спиридонович","перв",580]
[null,"Валявін Олексій Анатолійович","л/н",109]
[null,"Снігур Віктор Костянтинович","л/н",110]
[null,"Дякевич Сергій Олексійович","повт",717]
[null,"Степаненко Юрій Валерійович","повт",718]
[null,"Ісайко Юрій Олександрович","повт",719]
[null,"Драгой Владислав Васильович","перв",581]
[null,"Слюсаренко Віталій Олександрович","повт",720]
[null,"Сербін Руслан Павлович","повт",721]
[null,"Грабовий Микола Миколайович","повт",722]
[null,"Бабіч Анастасія Олександрівна","повт",723]
[null,"Куріпко Сергій Віталійович","повт",724]
[null,"Мазур Віталій Миколайович","перв",582]
[null,"Гаврилович Світлана Євстафіївна","повт",725]
[null,"Савченко В'ячеслав Ігорович","труд",147]
[null,"Булгару Костянтин Федорович","повт",726]
[null,"Кольцов Владислав Володимирович","перв",583]
[null,"Стоянов Ігор Миколайович","труд",148]
[null,"Орел Едуард Миколайович","труд",149]
[null,"Клименко Дмитро Олександрович","конс"]
[null,"Щукін Сергій Олександрович","перв",584]
[null,"Недкова Алла Василівна","повт",727]
[null,"Олєйніков Вадим Олексійович","перв",585]
[null,"Бальжик Петро Михайлович","повт",728]
[null,"Мішуріна Сніжана Володимирівна","повт",729]
[null,"Талпа Мар'яна Русланівна","перв",586]
[null,"Савченко Анатолій Анатолійович","повт",730]
[null,"Патратій Сніжана Іллівна","перв",587]
[null,"Серветнік Віктор  Михайлович","перв",588]
[null,"Шпак Дмитро Аркадійович","повт",731]
[null,"Марчук Ніна Миколаївна","перв",589]
[null,"Бабин Анатолій Васильович","перв",590]
[null,"Барашков Євген Миколайович","перв",591]
[null,"Єнютіна Ірина Вадимівна","перв",592]
[null,"Московчук Анатолій Анатолійович","повт",732]
[null,"Кривошей Валентина Іванівна","перв",593]
[null,"Глубінцова Людмила Василівна","перв",594]
[null,"Дмитренко Сергій Павлович","повт",733]
[null,"Суглоб Дмитро Леонідович","повт",734]
[null,"Кірічук Олександра Олександрівна","перв",595]
[null,"Демченко Іван Олегович","перв",596]
[null,"Маяченко Андрій Олександрович","повт",735]
[null,"Нечитайлов Віктор Валентинович","перв",597]
[null,"Гребеннік Дмитро Вадимович","л/н",111]
[null,"Ковтун Сергій Валерійович","повт",736]
[null,"Ткаченко Юрій Вікторович","перв",598]
[null,"Мироненко Артур Юрійович","перв",599]
[null,"Нємцева Наталія Вікторівна","труд",150]
[null,"Сметанка Наталія Олександрівна","повт",737]
[null,"Чумаченко Віктор Станіславович","труд",151]
[null,"Хлопцев Сергій Федорович","труд",152]
[null,"Амелічкін Олександр Володимирович","повт",738]
[null,"Пєнкова Лідія Степанівна","перв",600]
[null,"Семікоз Віталій Володимирович","повт",739]
[null,"Пірус Андрій Олегович","труд",153]
[null,"Павлішин Святослав Ігорович","конс"]
[null,"Кузьминська Людмила Анатоліївна","повт",740]
[null,"Топал Катерина Іванівна","перв",601]
[null,"Хлевний Олексій Валерійович","перв",602]
[null,"Дудаков Сергій Ігорович","повт",741]
[null,"Бріденко Юрій Володимирович","повт",742]
[null,"Войцехівський Вадим Григорович","повт",743]
[null,"Саріогло Михайло Пантелійович","повт",744]
[null,"Маринов Олег Петрович","повт",745]
[null,"Гречановський Андрій Павлович","л/н",112]
[null,"Лавринчук Олена Пилипівна","повт",746]
[null,"Грищенко Оксана Миколаївна","перв",603]
[null,"Гайдай Олена Василівна","повт",747]
[null,"Панченко Світлана Анатоліївна","повт",748]
[null,"Житник Євгеній В'ячеславович","перв",604]
[null,"Перчемлі Ганна Іванівна","повт",749]
[null,"Мітрова Валентина Миколаївна","повт",750]
[null,"Гладун Надія Миколаївна","повт",751]
[null,"Шевченко Андрій Сергійович","повт",752]
[null,"Кіру Дмитро Володимирович","повт",753]
[null,"Дмитрієв Олександр В'ячеславович","повт",754]
[null,"Ковальов Анатолій Тимофійович","повт",755]
[null,"Лукієнко Григорій Павлович","повт",756]
[null,"Лазуткин Олександр Сергійович","повт",757]
[null,"Баловнєва Віталіна Вікторівна","перв",605]
[null,"Васильєва Тетяна Миколаївна","повт",758]
[null,"Кисельова Галина Геннадіївна","труд",154]
[null,"Юдіна Мая Миколаївна","повт",759]
[null,"Демьяненко Олександр Русланович","повт",760]
[null,"Часник Катерина Іванівна","труд",155]
[null,"Митрофанський Олег Анатолійович","перв",606]
[null,"Цюсьмак Олександр Романович","труд",156]
[null,"Завгородній Максим  Володимирович","перв",607]
[null,"Мангул Сергій Вікторович","труд",157]
[null,"Рубля Сергій Васильович","повт",761]
[null,"Сірант Микола Петрович","перв",608]
[null,"Ткаченко Світлана Борисівна","повт",762]
[null,"Тараненко Петро Володимирович","повт",763]
[null,"Дьома Олена Тарасівна","перв",609]
[null,"Торгових Кароліна Миколаївна","повт",764]
[null,"Чеботар Ірина Василівна","повт",765]
[null,"Кострома Валерій Валерійович","повт",766]
[null,"Бутенко Тетяна Володимирівна","перв",610]
[null,"Грігоренко Ірина Марківна","повт",767]
[null,"Білоус Роман Олександрович","перв",611]
[null,"Погорілов Василь Володимирович","повт",768]
[null,"Дурбалова Марія Михайлівна","повт",769]
[null,"Шевченко Галина Григорівна","повт",770]
[null,"Василькова Олена Олегівна","повт",771]
[null,"Єфремов Володимир Миколайович","л/н",113]
[null,"Стоянов Федір Іванович","перв"]
[null,"Бугацька Ольга Анатоліївна"]
[null,"Александрова Оксана Віталіївна","повт",774]
[null,"Гапічєва Марина Іванівна","повт"]
[null,"Спіріна Тетяна Михайлівна","перв"]
[null,"Мамай Анатолій Григорович","повт"]
[null,"Бенеш Анатолій Юрійович","повт"]

{"sheet":"Лист2","index":1,"n_rows":1999,"n_cols":9,"rows_kept":1999,"cut":false,"hidden":false,"merged":[]}
[]
[null,null,null,null,{"$f":"Лист1!B2","v":"Волошин Олександр Васильович"},"Волошин Олександр Васильович",111111,111111,111111]
[null,null,null,null,{"$f":"Лист1!B8","v":"Лапа Олександр Борисович"},"Нікіпорчук Володимир Леонідович",777777,777777,777777]
[null,null,null,null,{"$f":"Лист1!B7","v":"Дворжак Павло Валентинович"},"Тараненко Жанна Леонідівна",666666,666666,666666]
[null,null,null,null,{"$f":"Лист1!B6","v":"Нежур Наталія Володимирівна"},"Кубрак Лілія Петрівна",555555,555555,555555]
[null,null,null,null,{"$f":"Лист1!B5","v":"Кубрак Лілія Петрівна"},"Нежур Наталія Володимирівна",444444,444444,444444]
[null,null,null,null,{"$f":"Лист1!B4","v":"Тараненко Жанна Леонідівна"},"Дворжак Павло Валентинович",333333,333333,333333]
[null,null,null,null,{"$f":"Лист1!B3","v":"Нікіпорчук Володимир Леонідович"},"Лапа Олександр Борисович",222222,222222,222222]
[null,null,null,null,{"$f":"Лист1!B9","v":"Добронецька Олена Григорівна"},"Добронецька Олена Григорівна"]
[null,null,null,null,{"$f":"Лист1!B10","v":"Перчеклій Валерій Григорович"},"Перчеклій Валерій Григорович"]
[null,null,null,null,{"$f":"Лист1!B11","v":"Лук'яненко Артем Ігорович"},"Лук'яненко Артем Ігорович"]
[null,null,null,null,{"$f":"Лист1!B12","v":"Талавіра Владислав Васильович"},"Талавіра Владислав Васильович"]
[null,null,null,null,{"$f":"Лист1!B13","v":"Кіран Степан Родіонович"},"Кіран Степан Родіонович"]
[null,null,null,null,{"$f":"Лист1!B14","v":"Караваєва Зоя Олегівна"},"Караваєва Зоя Олегівна"]
[null,null,null,null,{"$f":"Лист1!B15","v":"Кушнєрьова Інна Георгіївна"},"Кушнєрьова Інна Георгіївна"]
[null,null,null,null,{"$f":"Лист1!B16","v":"Чербаджи Іван Захарович"},"Чербаджи Іван Захарович"]
[null,null,null,null,{"$f":"Лист1!B17","v":"Ліпинський Віктор Вікторович"},"Ліпинський Віктор Вікторович"]
[null,null,null,null,{"$f":"Лист1!B18","v":"Таранець Ігор Анатолійович"},"Таранець Ігор Анатолійович"]
[null,null,null,null,{"$f":"Лист1!B19","v":"Трамбач Володимир Юрійович"},"Трамбач Володимир Юрійович"]
[null,null,null,null,{"$f":"Лист1!B20","v":"Савченко Дмитро Олександрович"},"Савченко Дмитро Олександрович"]
[null,null,null,null,{"$f":"Лист1!B21","v":"Доні Лілія Анатоліївна"},"Доні Лілія Анатоліївна"]
[null,null,null,null,{"$f":"Лист1!B22","v":"Дзюба Олег Юрійович"},"Дзюба Олег Юрійович"]
[null,null,null,null,{"$f":"Лист1!B23","v":"Лисенко Юлія Олегівна"},"Лисенко Юлія Олегівна"]
[null,null,null,null,{"$f":"Лист1!B24","v":"Комерзан Галина Іванівна"},"Комерзан Галина Іванівна"]
[null,null,null,null,{"$f":"Лист1!B25","v":"Коваль Андрій Костянтинович"},"Коваль Андрій Костянтинович"]
[null,null,null,null,{"$f":"Лист1!B26","v":"Гушан Юрій Олександрович"},"Гушан Юрій Олександрович"]
[null,null,null,null,{"$f":"Лист1!B27","v":"Сьомка Костянтин Віталійович"},"Сьомка Костянтин Віталійович"]
[null,null,null,null,{"$f":"Лист1!B28","v":"Попов Сергій Іванович"},"Попов Сергій Іванович"]
[null,null,null,null,{"$f":"Лист1!B29","v":"Хоронжук Валентин Олександрович"},"Хоронжук Валентин Олександрович"]
[null,null,null,null,{"$f":"Лист1!B30","v":"Ткачук Валентина Борисівна"},"Ткачук Валентина Борисівна"]
[null,null,null,null,{"$f":"Лист1!B31","v":"Бойко Артур Геннадійович"},"Бойко Артур Геннадійович"]
[null,null,null,null,{"$f":"Лист1!B32","v":"Спиридонов Олександр Володимирович"},"Спиридонов Олександр Володимирович"]
[null,null,null,null,{"$f":"Лист1!B33","v":"Петровський Михайло Олександрович"},"Петровський Михайло Олександрович"]
[null,null,null,null,{"$f":"Лист1!B34","v":"Мірошніченко Лариса Василівна"},"Мірошніченко Лариса Василівна"]
[null,null,null,null,{"$f":"Лист1!B35","v":"Камінська Олена Едуардівна"},"Камінська Олена Едуардівна"]
[null,null,null,null,{"$f":"Лист1!B36","v":"Павленко Руслан Миколайович"},"Павленко Руслан Миколайович"]
[null,null,null,null,{"$f":"Лист1!B37","v":"Пріжбіло Сергій Михайлович"},"Пріжбіло Сергій Михайлович"]
[null,null,null,null,{"$f":"Лист1!B38","v":"Чевдар Анатолій Володимирович"},"Чевдар Анатолій Володимирович"]
[null,null,null,null,{"$f":"Лист1!B39","v":"Костюк Оксана Василівна"},"Костюк Оксана Василівна"]
[null,null,null,null,{"$f":"Лист1!B40","v":"Сабурова Ганна Олександрівна"},"Сабурова Ганна Олександрівна"]
[null,null,null,null,{"$f":"Лист1!B41","v":"Арабаджі Ліліана Георгіївна"},"Арабаджі Ліліана Георгіївна"]
[null,null,null,null,{"$f":"Лист1!B42","v":"Чабан Наталія Василівна"},"Чабан Наталія Василівна"]
[null,null,null,null,{"$f":"Лист1!B43","v":"Близнюк Наталія Василівна"},"Близнюк Наталія Василівна"]
[null,null,null,null,{"$f":"Лист1!B44","v":"Германович Вадим Олексійович"},"Германович Вадим Олексійович"]
[null,null,null,null,{"$f":"Лист1!B45","v":"Резніченко Андрій Анатолійович"},"Резніченко Андрій Анатолійович"]
[null,null,null,null,{"$f":"Лист1!B46","v":"Брідун Георгій Анатолійович"},"Брідун Георгій Анатолійович"]
[null,null,null,null,{"$f":"Лист1!B47","v":"Чумаченко Вадим Іванович"},"Чумаченко Вадим Іванович"]
[null,null,null,null,{"$f":"Лист1!B48","v":"Тутов Василь Степанович"},"Тутов Василь Степанович"]
[null,null,null,null,{"$f":"Лист1!B49","v":"Кузанов Ілля Валентинович"},"Кузанов Ілля Валентинович"]
[null,null,null,null,{"$f":"Лист1!B50","v":"Цюкайло Леонід Михайлович"},"Цюкайло Леонід Михайлович"]
[null,null,null,null,{"$f":"Лист1!B51","v":"Татарчик Артур Володимирович"},"Татарчик Артур Володимирович"]
[null,null,null,null,{"$f":"Лист1!B52","v":"Пульчо Тетяна Валеріївна"},"Пульчо Тетяна Валеріївна"]
[null,null,null,null,{"$f":"Лист1!B53","v":"Почтарьов Вячеслав Миколайович"},"Почтарьов Вячеслав Миколайович"]
[null,null,null,null,{"$f":"Лист1!B54","v":"Козенко Володимир Володимирович"},"Козенко Володимир Володимирович"]
[null,null,null,null,{"$f":"Лист1!B55","v":"Самойленко Михайло Іванович"},"Самойленко Михайло Іванович"]
[null,null,null,null,{"$f":"Лист1!B56","v":"Альохіна Тетяна Павлівна"},"Альохіна Тетяна Павлівна"]
[null,null,null,null,{"$f":"Лист1!B57","v":"Алієв Бахшеїш Рагім Огли"},"Алієв Бахшеїш Рагім Огли"]
[null,null,null,null,{"$f":"Лист1!B58","v":"Павлов Владислав Марсович"},"Павлов Владислав Марсович"]
[null,null,null,null,{"$f":"Лист1!B59","v":"Сікальчук Артем Васильович"},"Сікальчук Артем Васильович"]
[null,null,null,null,{"$f":"Лист1!B60","v":"Коропець Валентин Трифонович"},"Коропець Валентин Трифонович"]
[null,null,null,null,{"$f":"Лист1!B61","v":"Коваленко Галина Вікторівна"},"Коваленко Галина Вікторівна"]
[null,null,null,null,{"$f":"Лист1!B62","v":"Ковтуненко Анастасія Юріївна"},"Ковтуненко Анастасія Юріївна"]
[null,null,null,null,{"$f":"Лист1!B63","v":"Бігняк Олег Олександрович"},"Бігняк Олег Олександрович"]
[null,null,null,null,{"$f":"Лист1!B64","v":"Меренков Андрій Борисович"},"Меренков Андрій Борисович"]
[null,null,null,null,{"$f":"Лист1!B65","v":"Іщук Алла Леонідівна"},"Іщук Алла Леонідівна"]
[null,null,null,null,{"$f":"Лист1!B66","v":"Пасічна Любов Миколаївна"},"Пасічна Любов Миколаївна"]
[null,null,null,null,{"$f":"Лист1!B67","v":"Борзов Микола Борисович"},"Борзов Микола Борисович"]
[null,null,null,null,{"$f":"Лист1!B68","v":"Сафанюк Григорій Васильович"},"Сафанюк Григорій Васильович"]
[null,null,null,null,{"$f":"Лист1!B69","v":"Майструк Віктор Дмитрович"},"Майструк Віктор Дмитрович"]
[null,null,null,null,{"$f":"Лист1!B70","v":"Афанасьєва Наталія Леонідівна"},"Афанасьєва Наталія Леонідівна"]
[null,null,null,null,{"$f":"Лист1!B71","v":"Рябухін Вадим Олександрович"},"Рябухін Вадим Олександрович"]
[null,null,null,null,{"$f":"Лист1!B72","v":"Хомко Оксана Анатоліївна"},"Хомко Оксана Анатоліївна"]
[null,null,null,null,{"$f":"Лист1!B73","v":"Шмалько Ярослав Павлович"},"Шмалько Ярослав Павлович"]
[null,null,null,null,{"$f":"Лист1!B74","v":"Самосьонок Михайло Анатолійович"},"Самосьонок Михайло Анатолійович"]
[null,null,null,null,{"$f":"Лист1!B75","v":"Кузнєцов Денис Валерійович"},"Кузнєцов Денис Валерійович"]
[null,null,null,null,{"$f":"Лист1!B76","v":"Галинський Микола Іванович"},"Галинський Микола Іванович"]
[null,null,null,null,{"$f":"Лист1!B77","v":"Іванченко Тетяна Костянтинівна"},"Іванченко Тетяна Костянтинівна"]
[null,null,null,null,{"$f":"Лист1!B78","v":"Шевчук Віктор Миколайович"},"Шевчук Віктор Миколайович"]
[null,null,null,null,{"$f":"Лист1!B79","v":"Захарієв Ігор Севдалінов"},"Захарієв Ігор Севдалінов"]
[null,null,null,null,{"$f":"Лист1!B80","v":"Торченюк Олексій Сергійович"},"Торченюк Олексій Сергійович"]
[null,null,null,null,{"$f":"Лист1!B81","v":"Барбаренко Анастасія Геннадіївна"},"Барбаренко Анастасія Геннадіївна"]
[null,null,null,null,{"$f":"Лист1!B82","v":"Мацибуренко Вадим Сергійович"},"Мацибуренко Вадим Сергійович"]
[null,null,null,null,{"$f":"Лист1!B83","v":"Щербакова Олена Кирилівна"},"Щербакова Олена Кирилівна"]
[null,null,null,null,{"$f":"Лист1!B84","v":"Ковбаса Володимир Борисович"},"Ковбаса Володимир Борисович"]
[null,null,null,null,{"$f":"Лист1!B85","v":"Дзюба Ольга Миколаївна"},"Дзюба Ольга Миколаївна"]
[null,null,null,null,{"$f":"Лист1!B86","v":"Буров Олег Миколайович"},"Буров Олег Миколайович"]
[null,null,null,null,{"$f":"Лист1!B87","v":"Боєв Василь Дмитрович"},"Боєв Василь Дмитрович"]
[null,null,null,null,{"$f":"Лист1!B88","v":"Старчук Юрій Олексійович"},"Старчук Юрій Олексійович"]
[null,null,null,null,{"$f":"Лист1!B89","v":"Ковальчук Леонід Віталійович"},"Ковальчук Леонід Віталійович"]
[null,null,null,null,{"$f":"Лист1!B90","v":"Дмитрук Олександр Петрович"},"Дмитрук Олександр Петрович"]
[null,null,null,null,{"$f":"Лист1!B91","v":"Антонюк Микола Дем'янович"},"Антонюк Микола Дем'янович"]
[null,null,null,null,{"$f":"Лист1!B92","v":"Литвинова Валентина Миколаївна"},"Литвинова Валентина Миколаївна"]
[null,null,null,null,{"$f":"Лист1!B93","v":"Оляш Олексій Юрійович"},"Оляш Олексій Юрійович"]
[null,null,null,null,{"$f":"Лист1!B94","v":"Нємцев Віктор Валентинович"},"Нємцев Віктор Валентинович"]
[null,null,null,null,{"$f":"Лист1!B95","v":"Сташенко Василь Васильович"},"Сташенко Василь Васильович"]
[null,null,null,null,{"$f":"Лист1!B96","v":"Кедик Василь Васильович"},"Кедик Василь Васильович"]
[null,null,null,null,{"$f":"Лист1!B97","v":"Бібік Ксенія Максимівна"},"Бібік Ксенія Максимівна"]
[null,null,null,null,{"$f":"Лист1!B98","v":"Харитонов Ігор Робертович"},"Харитонов Ігор Робертович"]
[null,null,null,null,{"$f":"Лист1!B99","v":"Вертилецький Ігор Георгійович"},"Вертилецький Ігор Георгійович"]
[null,null,null,null,{"$f":"Лист1!B100","v":"Кондратьєв Ігор Сергійович"},"Кондратьєв Ігор Сергійович"]
[null,null,null,null,{"$f":"Лист1!B101","v":"Баюш Галина Трохимівна"},"Баюш Галина Трохимівна"]
[null,null,null,null,{"$f":"Лист1!B102","v":"Русол Олександр Володимирович"},"Русол Олександр Володимирович"]
[null,null,null,null,{"$f":"Лист1!B103","v":"Соколов Андрій Андрійович"},"Соколов Андрій Андрійович"]
[null,null,null,null,{"$f":"Лист1!B104","v":"Табунщик Владислав Миколайович"},"Табунщик Владислав Миколайович"]
[null,null,null,null,{"$f":"Лист1!B105","v":"Зелінський Ігор Георгійович"},"Зелінський Ігор Георгійович"]
[null,null,null,null,{"$f":"Лист1!B106","v":"Бойко Леонід Григорович"},"Бойко Леонід Григорович"]
[null,null,null,null,{"$f":"Лист1!B107","v":"Муха Андрій Олександрович"},"Муха Андрій Олександрович"]
[null,null,null,null,{"$f":"Лист1!B108","v":"Додінська Неля Миколаївна"},"Додінська Неля Миколаївна"]
[null,null,null,null,{"$f":"Лист1!B109","v":"Степанець Сергій Миколайович"},"Степанець Сергій Миколайович"]
[null,null,null,null,{"$f":"Лист1!B110","v":"Пєнчєва Ірина Анатоліївна"},"Пєнчєва Ірина Анатоліївна"]
[null,null,null,null,{"$f":"Лист1!B111","v":"Токарев Олександр Станіславович"},"Токарев Олександр Станіславович"]
[null,null,null,null,{"$f":"Лист1!B112","v":"Жура Віктор Афанасійович"},"Жура Віктор Афанасійович"]
[null,null,null,null,{"$f":"Лист1!B113","v":"Почтаренко Лариса Миколаївна"},"Почтаренко Лариса Миколаївна"]
[null,null,null,null,{"$f":"Лист1!B114","v":"Чубачкін Костянтин Анатолійович"},"Чубачкін Костянтин Анатолійович"]
[null,null,null,null,{"$f":"Лист1!B115","v":"Тимофєєв Сергій Миколайович"},"Тимофєєв Сергій Миколайович"]
[null,null,null,null,{"$f":"Лист1!B116","v":"Шаповалов Олег Володимирович"},"Шаповалов Олег Володимирович"]
[null,null,null,null,{"$f":"Лист1!B117","v":"Толмачевець Олександр Володимирович"},"Толмачевець Олександр Володимирович"]
[null,null,null,null,{"$f":"Лист1!B118","v":"Гончаренко Георгій Георгійович"},"Гончаренко Георгій Георгійович"]
[null,null,null,null,{"$f":"Лист1!B119","v":"Куліковська Оксана Савівна"},"Куліковська Оксана Савівна"]
[null,null,null,null,{"$f":"Лист1!B120","v":"Цимбалюк Дмитро Іванович"},"Цимбалюк Дмитро Іванович"]
[null,null,null,null,{"$f":"Лист1!B121","v":"Мачулко Вадим Валерійович"},"Мачулко Вадим Валерійович"]
[null,null,null,null,{"$f":"Лист1!B122","v":"Сікальчук Артем Васильович"},"Сікальчук Артем Васильович"]
[null,null,null,null,{"$f":"Лист1!B123","v":"Завгородній Євген Вікторович"},"Завгородній Євген Вікторович"]
[null,null,null,null,{"$f":"Лист1!B124","v":"Кіташевський Денис Аполлінарійович"},"Кіташевський Денис Аполлінарійович"]
[null,null,null,null,{"$f":"Лист1!B125","v":"Глуган Анатолій Анатолійович"},"Глуган Анатолій Анатолійович"]
[null,null,null,null,{"$f":"Лист1!B126","v":"Стадник Тетяна Іванівна"},"Стадник Тетяна Іванівна"]
[null,null,null,null,{"$f":"Лист1!B127","v":"Дудченко Валерій Анатолійович"},"Дудченко Валерій Анатолійович"]
[null,null,null,null,{"$f":"Лист1!B128","v":"Рьовін Андрій"},"Рьовін Андрій"]
[null,null,null,null,{"$f":"Лист1!B129","v":"Гречанюк Іван Миколайович"},"Гречанюк Іван Миколайович"]
[null,null,null,null,{"$f":"Лист1!B130","v":"Вакулич Віталій Федорович"},"Вакулич Віталій Федорович"]
[null,null,null,null,{"$f":"Лист1!B131","v":"Новік Сергій Іванович"},"Новік Сергій Іванович"]
[null,null,null,null,{"$f":"Лист1!B132","v":"Кобзар Володимир Володимирович"},"Кобзар Володимир Володимирович"]
[null,null,null,null,{"$f":"Лист1!B133","v":"Канєв Олександр Олександрович"},"Канєв Олександр Олександрович"]
[null,null,null,null,{"$f":"Лист1!B134","v":"Кротенко Віталій Віталійович"},"Кротенко Віталій Віталійович"]
[null,null,null,null,{"$f":"Лист1!B135","v":"Матвієнко Костянтин Іванович"},"Матвієнко Костянтин Іванович"]
[null,null,null,null,{"$f":"Лист1!B136","v":"Самаркін Володимир Борисович"},"Самаркін Володимир Борисович"]
[null,null,null,null,{"$f":"Лист1!B137","v":"Стукало Євген Миколайович"},"Стукало Євген Миколайович"]
[null,null,null,null,{"$f":"Лист1!B138","v":"Савранчук Віталій Вікторович"},"Савранчук Віталій Вікторович"]
[null,null,null,null,{"$f":"Лист1!B139","v":"Антохін Вадим Леонідович"},"Антохін Вадим Леонідович"]
[null,null,null,null,{"$f":"Лист1!B140","v":"Устюгова Ірина Володимирівна"},"Устюгова Ірина Володимирівна"]
[null,null,null,null,{"$f":"Лист1!B141","v":"Мізерна Валентина Миколаївна"},"Мізерна Валентина Миколаївна"]
[null,null,null,null,{"$f":"Лист1!B142","v":"Біденко Володимир Ігорович"},"Біденко Володимир Ігорович"]
[null,null,null,null,{"$f":"Лист1!B143","v":"Волкова Оксана Семенівна"},"Волкова Оксана Семенівна"]
[null,null,null,null,{"$f":"Лист1!B144","v":"Горобець Олена Вікторівна"},"Горобець Олена Вікторівна"]
[null,null,null,null,{"$f":"Лист1!B145","v":"Сподарець Оксана Анатоліївна"},"Сподарець Оксана Анатоліївна"]
[null,null,null,null,{"$f":"Лист1!B146","v":"Касанджий Віктор Вікторович"},"Касанджий Віктор Вікторович"]
[null,null,null,null,{"$f":"Лист1!B147","v":"Плехотко Олександр Анатолійович"},"Плехотко Олександр Анатолійович"]
[null,null,null,null,{"$f":"Лист1!B148","v":"Мєдвєдєв Олексій Вікторович"},"Мєдвєдєв Олексій Вікторович"]
[null,null,null,null,{"$f":"Лист1!B149","v":"Фатеєва Людмила Веніамінівна"},"Фатеєва Людмила Веніамінівна"]
[null,null,null,null,{"$f":"Лист1!B150","v":"Циганков Олексій Леонідович"},"Циганков Олексій Леонідович"]
[null,null,null,null,{"$f":"Лист1!B151","v":"Мирнинко Світлана Борисівна"},"Мирнинко Світлана Борисівна"]
[null,null,null,null,{"$f":"Лист1!B152","v":"Сажнєв Дмитро Васильович"},"Сажнєв Дмитро Васильович"]
[null,null,null,null,{"$f":"Лист1!B153","v":"Альчук Ярослав Олександрович"},"Альчук Ярослав Олександрович"]
[null,null,null,null,{"$f":"Лист1!B154","v":"Довгополов Олександр Євгенович"},"Довгополов Олександр Євгенович"]
[null,null,null,null,{"$f":"Лист1!B155","v":"Петровський Юрій Олексійович"},"Петровський Юрій Олексійович"]
[null,null,null,null,{"$f":"Лист1!B156","v":"Кашульський Євгеній Олексійович"},"Кашульський Євгеній Олексійович"]
[null,null,null,null,{"$f":"Лист1!B157","v":"Грабовенко Ольга Володимирівна"},"Грабовенко Ольга Володимирівна"]
[null,null,null,null,{"$f":"Лист1!B158","v":"Кара Наталя Іванівна"},"Кара Наталя Іванівна"]
[null,null,null,null,{"$f":"Лист1!B159","v":"Караханян Ашот Олександрович"},"Караханян Ашот Олександрович"]
[null,null,null,null,{"$f":"Лист1!B160","v":"Першин Віктор Юрійович"},"Першин Віктор Юрійович"]
[null,null,null,null,{"$f":"Лист1!B161","v":"Степанов Микола Олександрович"},"Степанов Микола Олександрович"]
[null,null,null,null,{"$f":"Лист1!B162","v":"Росенко Євгеній Геннадійович"},"Росенко Євгеній Геннадійович"]
[null,null,null,null,{"$f":"Лист1!B163","v":"Антонюк Валентин Петрович"},"Антонюк Валентин Петрович"]
[null,null,null,null,{"$f":"Лист1!B164","v":"Димитров Олександр Олександрович"},"Димитров Олександр Олександрович"]
[null,null,null,null,{"$f":"Лист1!B165","v":"Бунін Михайло Миколайович"},"Бунін Михайло Миколайович"]
[null,null,null,null,{"$f":"Лист1!B166","v":"Лунгу Анатолій Маринович"},"Лунгу Анатолій Маринович"]
[null,null,null,null,{"$f":"Лист1!B167","v":"Тімотін Віктор Миколайович"},"Тімотін Віктор Миколайович"]
[null,null,null,null,{"$f":"Лист1!B168","v":"Цуркан Сергій Ігорович"},"Цуркан Сергій Ігорович"]
[null,null,null,null,{"$f":"Лист1!B169","v":"Коленковський Ігор Анатолійович"},"Коленковський Ігор Анатолійович"]
[null,null,null,null,{"$f":"Лист1!B170","v":"Тельпіс Захарій Дмитрович"},"Тельпіс Захарій Дмитрович"]
[null,null,null,null,{"$f":"Лист1!B171","v":"Шандов Олександр Миколайович"},"Шандов Олександр Миколайович"]
[null,null,null,null,{"$f":"Лист1!B172","v":"Панеєва Олена Григорівна"},"Панеєва Олена Григорівна"]
[null,null,null,null,{"$f":"Лист1!B173","v":"Морозова Олена Олегівна"},"Морозова Олена Олегівна"]
[null,null,null,null,{"$f":"Лист1!B174","v":"Галаш Віра Вікторівна"},"Галаш Віра Вікторівна"]
[null,null,null,null,{"$f":"Лист1!B175","v":"Данилов Сергій Олексійович"},"Данилов Сергій Олексійович"]
[null,null,null,null,{"$f":"Лист1!B176","v":"Паслар Олександр Іванович"},"Паслар Олександр Іванович"]
[null,null,null,null,{"$f":"Лист1!B177","v":"Шапар Ірина Іванівна"},"Шапар Ірина Іванівна"]
[null,null,null,null,{"$f":"Лист1!B178","v":"Ольшевський Віталій Олексійович"},"Ольшевський Віталій Олексійович"]
[null,null,null,null,{"$f":"Лист1!B179","v":"Блашковська Олена Миколаївна"},"Блашковська Олена Миколаївна"]
[null,null,null,null,{"$f":"Лист1!B180","v":"Мочалов Юрій Валерійович"},"Мочалов Юрій Валерійович"]
[null,null,null,null,{"$f":"Лист1!B181","v":"Крутієв Олександр Володимирович"},"Крутієв Олександр Володимирович"]
[null,null,null,null,{"$f":"Лист1!B182","v":"Іскренко Олександр Сергійович"},"Іскренко Олександр Сергійович"]
[null,null,null,null,{"$f":"Лист1!B183","v":"Запорожан Валентин Анатолійович"},"Запорожан Валентин Анатолійович"]
[null,null,null,null,{"$f":"Лист1!B184","v":"Квітка Анастасія Геннадіївна"},"Квітка Анастасія Геннадіївна"]
[null,null,null,null,{"$f":"Лист1!B185","v":"Арику Костянтин Анатолійович"},"Арику Костянтин Анатолійович"]
[null,null,null,null,{"$f":"Лист1!B186","v":"Сидоровський Олександр Кузьмич"},"Сидоровський Олександр Кузьмич"]
[null,null,null,null,{"$f":"Лист1!B187","v":"Дубовий Вячеслав Васильович"},"Дубовий Вячеслав Васильович"]
[null,null,null,null,{"$f":"Лист1!B188","v":"Каймачнікова Лариса Геннадіївна"},"Каймачнікова Лариса Геннадіївна"]
[null,null,null,null,{"$f":"Лист1!B189","v":"Лебедєв Денис Вікторович"},"Лебедєв Денис Вікторович"]
[null,null,null,null,{"$f":"Лист1!B190","v":"Романчук Анатолій Олександрович"},"Романчук Анатолій Олександрович"]
[null,null,null,null,{"$f":"Лист1!B191","v":"Дирмо Ірина Вікторівна"},"Дирмо Ірина Вікторівна"]
[null,null,null,null,{"$f":"Лист1!B192","v":"Гоношилов Валентин Валерійович"},"Гоношилов Валентин Валерійович"]
[null,null,null,null,{"$f":"Лист1!B193","v":"Дундук Юрій Іванович"},"Дундук Юрій Іванович"]
[null,null,null,null,{"$f":"Лист1!B194","v":"Димов Денис Владиславович"},"Димов Денис Владиславович"]
[null,null,null,null,{"$f":"Лист1!B195","v":"Вариченко Сергій Дмитрович"},"Вариченко Сергій Дмитрович"]
[null,null,null,null,{"$f":"Лист1!B196","v":"Літвішко Ірина Петрівна"},"Літвішко Ірина Петрівна"]
[null,null,null,null,{"$f":"Лист1!B197","v":"Галинський Микола Іванович"},"Галинський Микола Іванович"]
[null,null,null,null,{"$f":"Лист1!B198","v":"Гонцов Ігор Павлович"},"Гонцов Ігор Павлович"]
[null,null,null,null,{"$f":"Лист1!B199","v":"Андріцька Лариса Вікторівна"},"Андріцька Лариса Вікторівна"]
[null,null,null,null,{"$f":"Лист1!B200","v":"Петренко Олександр Володимирович"},"Петренко Олександр Володимирович"]
[null,null,null,null,{"$f":"Лист1!B201","v":"Гречкосій Микола Анатолійович"},"Гречкосій Микола Анатолійович"]
[null,null,null,null,{"$f":"Лист1!B202","v":"Черевенко Анатолій Олександрович"},"Черевенко Анатолій Олександрович"]
[null,null,null,null,{"$f":"Лист1!B203","v":"Куліш Володимир Володимирович"},"Куліш Володимир Володимирович"]
[null,null,null,null,{"$f":"Лист1!B204","v":"Коваленко Володимир Анатолійович"},"Коваленко Володимир Анатолійович"]
[null,null,null,null,{"$f":"Лист1!B205","v":"Громюк Людмила Василівна"},"Громюк Людмила Василівна"]
[null,null,null,null,{"$f":"Лист1!B206","v":"Шевчук Віктор Тахірович"},"Шевчук Віктор Тахірович"]
[null,null,null,null,{"$f":"Лист1!B207","v":"Чабан Сергій Васильович"},"Чабан Сергій Васильович"]
[null,null,null,null,{"$f":"Лист1!B208","v":"Пилявець Сергій Захарович"},"Пилявець Сергій Захарович"]
[null,null,null,null,{"$f":"Лист1!B209","v":"Машнєва-Лещинська Наталя Юріївна"},"Машнєва-Лещинська Наталя Юріївна"]
[null,null,null,null,{"$f":"Лист1!B210","v":"Мінаков Вадим Олексійович"},"Мінаков Вадим Олексійович"]
[null,null,null,null,{"$f":"Лист1!B211","v":"Криницький Валерій Михайлович"},"Криницький Валерій Михайлович"]
[null,null,null,null,{"$f":"Лист1!B212","v":"Лавров Сергій Валерійович"},"Лавров Сергій Валерійович"]
[null,null,null,null,{"$f":"Лист1!B213","v":"Філенко Сергій Володимирович"},"Філенко Сергій Володимирович"]
[null,null,null,null,{"$f":"Лист1!B214","v":"Ніцов Валентин Михайлович"},"Ніцов Валентин Михайлович"]
[null,null,null,null,{"$f":"Лист1!B215","v":"Шер Юрій Аркадійович"},"Шер Юрій Аркадійович"]
[null,null,null,null,{"$f":"Лист1!B216","v":"Чернєєв Сергій Михайлович"},"Чернєєв Сергій Михайлович"]
[null,null,null,null,{"$f":"Лист1!B217","v":"Мицак Микола Васильович"},"Мицак Микола Васильович"]
[null,null,null,null,{"$f":"Лист1!B218","v":"Боровський Ігор Анатолійович"},"Боровський Ігор Анатолійович"]
[null,null,null,null,{"$f":"Лист1!B219","v":"Кузнєцов Сергій Олександрович"},"Кузнєцов Сергій Олександрович"]
[null,null,null,null,{"$f":"Лист1!B220","v":"Дімчева Лариса Федорівна"},"Дімчева Лариса Федорівна"]
[null,null,null,null,{"$f":"Лист1!B221","v":"Макарець Катерина Іванівна"},"Макарець Катерина Іванівна"]
[null,null,null,null,{"$f":"Лист1!B222","v":"Армаш Ольга Павлівна"},"Армаш Ольга Павлівна"]
[null,null,null,null,{"$f":"Лист1!B223","v":"Мазур Володимир Петрович"},"Мазур Володимир Петрович"]
[null,null,null,null,{"$f":"Лист1!B224","v":"Пєйков Афанасій Петрович"},"Пєйков Афанасій Петрович"]
[null,null,null,null,{"$f":"Лист1!B225","v":"Мінеско Яна Іллієвна"},"Мінеско Яна Іллієвна"]
[null,null,null,null,{"$f":"Лист1!B226","v":"Савенко Ганна Василівна"},"Савенко Ганна Василівна"]
[null,null,null,null,{"$f":"Лист1!B227","v":"Плющ Поліна Павлівна"},"Плющ Поліна Павлівна"]
[null,null,null,null,{"$f":"Лист1!B228","v":"Кошельник Антоніна Юхимівна"},"Кошельник Антоніна Юхимівна"]
[null,null,null,null,{"$f":"Лист1!B229","v":"Кулев Георгій Костянтинович"},"Кулев Георгій Костянтинович"]
[null,null,null,null,{"$f":"Лист1!B230","v":"Потлог Ольга Михайлівна"},"Потлог Ольга Михайлівна"]
[null,null,null,null,{"$f":"Лист1!B231","v":"Лебедєв Микола Гнатович"},"Лебедєв Микола Гнатович"]
[null,null,null,null,{"$f":"Лист1!B232","v":"Завалій В'ячеслав Сергійович"},"Завалій В'ячеслав Сергійович"]
[null,null,null,null,{"$f":"Лист1!B233","v":"Васянович В'ячеслав Васильович"},"Васянович В'ячеслав Васильович"]
[null,null,null,null,{"$f":"Лист1!B234","v":"Волощук Наталія Сергіївна"},"Волощук Наталія Сергіївна"]
[null,null,null,null,{"$f":"Лист1!B235","v":"Гирбу Ганна Василівна"},"Гирбу Ганна Василівна"]
[null,null,null,null,{"$f":"Лист1!B236","v":"Пінкевич Альберт Володимирович"},"Пінкевич Альберт Володимирович"]
[null,null,null,null,{"$f":"Лист1!B237","v":"Демчук Андрій Павлович"},"Демчук Андрій Павлович"]
[null,null,null,null,{"$f":"Лист1!B238","v":"Страту Геннадій Ілліч"},"Страту Геннадій Ілліч"]
[null,null,null,null,{"$f":"Лист1!B239","v":"Боц Євгенія Василівна"},"Боц Євгенія Василівна"]
[null,null,null,null,{"$f":"Лист1!B240","v":"Кожушко Олександр Юрійович"},"Кожушко Олександр Юрійович"]
[null,null,null,null,{"$f":"Лист1!B241","v":"Стафій Григорій Миколайович"},"Стафій Григорій Миколайович"]
[null,null,null,null,{"$f":"Лист1!B242","v":"Кузнєцов Денис Валерійович"},"Кузнєцов Денис Валерійович"]
[null,null,null,null,{"$f":"Лист1!B243","v":"Сіротін Петро Михайлович"},"Сіротін Петро Михайлович"]
[null,null,null,null,{"$f":"Лист1!B244","v":"Здоренко Олександр Едуардович"},"Здоренко Олександр Едуардович"]
[null,null,null,null,{"$f":"Лист1!B245","v":"Домашов Сергій Валентинович"},"Домашов Сергій Валентинович"]
[null,null,null,null,{"$f":"Лист1!B246","v":"Бухнацевич Ігор Адамович"},"Бухнацевич Ігор Адамович"]
[null,null,null,null,{"$f":"Лист1!B247","v":"Кириллов Віктор Олексійович"},"Кириллов Віктор Олексійович"]
[null,null,null,null,{"$f":"Лист1!B248","v":"Хохлова Любов Касянівна"},"Хохлова Любов Касянівна"]
[null,null,null,null,{"$f":"Лист1!B249","v":"Хан Руслан Алікович"},"Хан Руслан Алікович"]
[null,null,null,null,{"$f":"Лист1!B250","v":"Карагедова Юлія Валеріївна"},"Карагедова Юлія Валеріївна"]
[null,null,null,null,{"$f":"Лист1!B251","v":"Ткачова Лідія Хомівна"},"Ткачова Лідія Хомівна"]
[null,null,null,null,{"$f":"Лист1!B252","v":"Шалавило Іван Степанович"},"Шалавило Іван Степанович"]
[null,null,null,null,{"$f":"Лист1!B253","v":"Пишной Олексій Миколайович"},"Пишной Олексій Миколайович"]
[null,null,null,null,{"$f":"Лист1!B254","v":"Грачов Олександр Сергійович"},"Грачов Олександр Сергійович"]
[null,null,null,null,{"$f":"Лист1!B255","v":"Руссу Оксана Степанівна"},"Руссу Оксана Степанівна"]
[null,null,null,null,{"$f":"Лист1!B256","v":"Костомаров Олександр Олександрович"},"Костомаров Олександр Олександрович"]
[null,null,null,null,{"$f":"Лист1!B257","v":"Грунь Сергій Панасович"},"Грунь Сергій Панасович"]
[null,null,null,null,{"$f":"Лист1!B258","v":"Бурлака Олександр Григорович"},"Бурлака Олександр Григорович"]
[null,null,null,null,{"$f":"Лист1!B259","v":"Лук'янчук Юрій Іванович"},"Лук'янчук Юрій Іванович"]
[null,null,null,null,{"$f":"Лист1!B260","v":"Вознюк Олена Олексіївна"},"Вознюк Олена Олексіївна"]
[null,null,null,null,{"$f":"Лист1!B261","v":"Зімін Вячеслав Михайлович"},"Зімін Вячеслав Михайлович"]
[null,null,null,null,{"$f":"Лист1!B262","v":"Брошков Олег Васильович"},"Брошков Олег Васильович"]
[null,null,null,null,{"$f":"Лист1!B263","v":"Скрипник Домнікія Георгіївна"},"Скрипник Домнікія Георгіївна"]
[null,null,null,null,{"$f":"Лист1!B264","v":"Бурдейний Вадим Володимирович"},"Бурдейний Вадим Володимирович"]
[null,null,null,null,{"$f":"Лист1!B265","v":"Пільніков Володимир Анатолійович"},"Пільніков Володимир Анатолійович"]
[null,null,null,null,{"$f":"Лист1!B266","v":"Беленький Александр Васильевич"},"Беленький Александр Васильевич"]
[null,null,null,null,{"$f":"Лист1!B267","v":"Шмаков Роман Васильович"},"Шмаков Роман Васильович"]
[null,null,null,null,{"$f":"Лист1!B268","v":"Яременко Григорій Вікторович"},"Яременко Григорій Вікторович"]
[null,null,null,null,{"$f":"Лист1!B269","v":"Гайдаржи Валерій Іванович"},"Гайдаржи Валерій Іванович"]
[null,null,null,null,{"$f":"Лист1!B270","v":"Боячук Олександр Анатолійович"},"Боячук Олександр Анатолійович"]
[null,null,null,null,{"$f":"Лист1!B271","v":"Серпутько Руслан Васильович"},"Серпутько Руслан Васильович"]
[null,null,null,null,{"$f":"Лист1!B272","v":"Ніколаєнко Світлана Павлівна"},"Ніколаєнко Світлана Павлівна"]
[null,null,null,null,{"$f":"Лист1!B273","v":"Баліка Сергій Петрович"},"Баліка Сергій Петрович"]
[null,null,null,null,{"$f":"Лист1!B274","v":"Бичков Павло Михайлович"},"Бичков Павло Михайлович"]
[null,null,null,null,{"$f":"Лист1!B275","v":"Уварова Олена Володимирівна"},"Уварова Олена Володимирівна"]
[null,null,null,null,{"$f":"Лист1!B276","v":"Гідлярчук Сергій Вячеславович"},"Гідлярчук Сергій Вячеславович"]
[null,null,null,null,{"$f":"Лист1!B277","v":"Григор'єв Сергій Леонідович"},"Григор'єв Сергій Леонідович"]
[null,null,null,null,{"$f":"Лист1!B278","v":"Олар Олександр Ілліч"},"Олар Олександр Ілліч"]
[null,null,null,null,{"$f":"Лист1!B279","v":"Чибухов Юрій Сергійович"},"Чибухов Юрій Сергійович"]
[null,null,null,null,{"$f":"Лист1!B280","v":"Ільченко Олексій Михайлович"},"Ільченко Олексій Михайлович"]
[null,null,null,null,{"$f":"Лист1!B281","v":"Михайлов Анатолій Анатолійович"},"Михайлов Анатолій Анатолійович"]
[null,null,null,null,{"$f":"Лист1!B282","v":"Яценко Алла Іванівна"},"Яценко Алла Іванівна"]
[null,null,null,null,{"$f":"Лист1!B283","v":"Ліберова Тетяна Іванівна"},"Ліберова Тетяна Іванівна"]
[null,null,null,null,{"$f":"Лист1!B284","v":"Бербат Євгенія Григорівна"},"Бербат Євгенія Григорівна"]
[null,null,null,null,{"$f":"Лист1!B285","v":"Плаксіва Лідія Степанівна"},"Плаксіва Лідія Степанівна"]
[null,null,null,null,{"$f":"Лист1!B286","v":"Красняк Ігор Васильович"},"Красняк Ігор Васильович"]
[null,null,null,null,{"$f":"Лист1!B287","v":"Пометун Сергій Володимирович"},"Пометун Сергій Володимирович"]
[null,null,null,null,{"$f":"Лист1!B288","v":"Лобачова Валентина Яківна"},"Лобачова Валентина Яківна"]
[null,null,null,null,{"$f":"Лист1!B289","v":"Карасьова Ольга Іванівна"},"Карасьова Ольга Іванівна"]
[null,null,null,null,{"$f":"Лист1!B290","v":"Стаценко Роман В'ячеславович"},"Стаценко Роман В'ячеславович"]
[null,null,null,null,{"$f":"Лист1!B291","v":"Яворський Олег Валерійович"},"Яворський Олег Валерійович"]
[null,null,null,null,{"$f":"Лист1!B292","v":"Качуровська Євгенія Вікторівна"},"Качуровська Євгенія Вікторівна"]
[null,null,null,null,{"$f":"Лист1!B293","v":"Малашевський Андрій Степанович"},"Малашевський Андрій Степанович"]
[null,null,null,null,{"$f":"Лист1!B294","v":"Моісеєв Іван Андрійович"},"Моісеєв Іван Андрійович"]
[null,null,null,null,{"$f":"Лист1!B295","v":"Сивоконь Геннадій Костянтинович"},"Сивоконь Геннадій Костянтинович"]
[null,null,null,null,{"$f":"Лист1!B296","v":"Чернєв Іван Афанасійович"},"Чернєв Іван Афанасійович"]
[null,null,null,null,{"$f":"Лист1!B297","v":"Саранчук Анатолій Іванович"},"Саранчук Анатолій Іванович"]
[null,null,null,null,{"$f":"Лист1!B298","v":"Раскін Леонід Борисович"},"Раскін Леонід Борисович"]
[null,null,null,null,{"$f":"Лист1!B299","v":"Омельченко Валентина Володимирівна"},"Омельченко Валентина Володимирівна"]
[null,null,null,null,{"$f":"Лист1!B300","v":"Арнаут Володимир Іванович"},"Арнаут Володимир Іванович"]
[null,null,null,null,{"$f":"Лист1!B301","v":"Гончаренко Сергій Дмитрович"},"Гончаренко Сергій Дмитрович"]
[null,null,null,null,{"$f":"Лист1!B302","v":"Рябенко Сергій Валерійович"},"Рябенко Сергій Валерійович"]
[null,null,null,null,{"$f":"Лист1!B303","v":"Суслов Микола Логинович"},"Суслов Микола Логинович"]
[null,null,null,null,{"$f":"Лист1!B304","v":"Сібіковський Вячеслав Вікторович"},"Сібіковський Вячеслав Вікторович"]
[null,null,null,null,{"$f":"Лист1!B305","v":"Котков Денис Олегович"},"Котков Денис Олегович"]
[null,null,null,null,{"$f":"Лист1!B306","v":"Зарапіна Лідія Сергіївна"},"Зарапіна Лідія Сергіївна"]
[null,null,null,null,{"$f":"Лист1!B307","v":"Фрунза Віктор Валерійович"},"Фрунза Віктор Валерійович"]
[null,null,null,null,{"$f":"Лист1!B308","v":"Назаров Дмитро Сабірович"},"Назаров Дмитро Сабірович"]
[null,null,null,null,{"$f":"Лист1!B309","v":"Миронова Лариса Юріївна"},"Миронова Лариса Юріївна"]
[null,null,null,null,{"$f":"Лист1!B310","v":"Гнатюк Владислав Володимирович"},"Гнатюк Владислав Володимирович"]
[null,null,null,null,{"$f":"Лист1!B311","v":"Ребрій Роман Валентинович"},"Ребрій Роман Валентинович"]
[null,null,null,null,{"$f":"Лист1!B312","v":"Романенко Ганна Сергіївна"},"Романенко Ганна Сергіївна"]
[null,null,null,null,{"$f":"Лист1!B313","v":"Голуб Іван Андрійович"},"Голуб Іван Андрійович"]
[null,null,null,null,{"$f":"Лист1!B314","v":"Волянюк Євген Олександрович"},"Волянюк Євген Олександрович"]
[null,null,null,null,{"$f":"Лист1!B315","v":"Кречун Степан Гаврилович"},"Кречун Степан Гаврилович"]
[null,null,null,null,{"$f":"Лист1!B316","v":"Маринчук Наталя Анатоліївна"},"Маринчук Наталя Анатоліївна"]
[null,null,null,null,{"$f":"Лист1!B317","v":"Плахотнюк Алла Григорівна"},"Плахотнюк Алла Григорівна"]
[null,null,null,null,{"$f":"Лист1!B318","v":"Мартиновська Юлія Ігорівна"},"Мартиновська Юлія Ігорівна"]
[null,null,null,null,{"$f":"Лист1!B319","v":"Романенко Павло Іванович"},"Романенко Павло Іванович"]
[null,null,null,null,{"$f":"Лист1!B320","v":"Швець Євген Олександрович"},"Швець Євген Олександрович"]
[null,null,null,null,{"$f":"Лист1!B321","v":"Якимчук Олександр Ігорович"},"Якимчук Олександр Ігорович"]
[null,null,null,null,{"$f":"Лист1!B322","v":"Дудар Тетяна Миколаївна"},"Дудар Тетяна Миколаївна"]
[null,null,null,null,{"$f":"Лист1!B323","v":"Мисько Світлана Дмитрівна"},"Мисько Світлана Дмитрівна"]
[null,null,null,null,{"$f":"Лист1!B324","v":"Тимофєєва Надія Іванівна"},"Тимофєєва Надія Іванівна"]
[null,null,null,null,{"$f":"Лист1!B325","v":"Шепетюк Мирослав Дмитрович"},"Шепетюк Мирослав Дмитрович"]
[null,null,null,null,{"$f":"Лист1!B326","v":"Кузьмін Ярослав Віталійович"},"Кузьмін Ярослав Віталійович"]
[null,null,null,null,{"$f":"Лист1!B327","v":"Южбабенко Валерій Вікторович"},"Южбабенко Валерій Вікторович"]
[null,null,null,null,{"$f":"Лист1!B328","v":"Головей Андрій Вікторович"},"Головей Андрій Вікторович"]
[null,null,null,null,{"$f":"Лист1!B329","v":"Васільєв Олександр Володимирович"},"Васільєв Олександр Володимирович"]
[null,null,null,null,{"$f":"Лист1!B330","v":"Огарова Галина Іванівна"},"Огарова Галина Іванівна"]
[null,null,null,null,{"$f":"Лист1!B331","v":"Грузюк Галина Юхимівна"},"Грузюк Галина Юхимівна"]
[null,null,null,null,{"$f":"Лист1!B332","v":"Яценко Ірина Анатоліївна"},"Яценко Ірина Анатоліївна"]
[null,null,null,null,{"$f":"Лист1!B333","v":"Авелічева Ірина Анатоліївна"},"Авелічева Ірина Анатоліївна"]
[null,null,null,null,{"$f":"Лист1!B334","v":"Павленко Антоніна Анатоліївна"},"Павленко Антоніна Анатоліївна"]
[null,null,null,null,{"$f":"Лист1!B335","v":"Мілінчук Олександр Григорович"},"Мілінчук Олександр Григорович"]
[null,null,null,null,{"$f":"Лист1!B336","v":"Бакаєва Світлана Павлівна"},"Бакаєва Світлана Павлівна"]
[null,null,null,null,{"$f":"Лист1!B337","v":"Фаст Едуард Федорович"},"Фаст Едуард Федорович"]
[null,null,null,null,{"$f":"Лист1!B338","v":"Хазов Олег Сергійович"},"Хазов Олег Сергійович"]
[null,null,null,null,{"$f":"Лист1!B339","v":"Турку Степан Георгійович"},"Турку Степан Георгійович"]
[null,null,null,null,{"$f":"Лист1!B340","v":"Шафранська Валентина Олександрівна"},"Шафранська Валентина Олександрівна"]
[null,null,null,null,{"$f":"Лист1!B341","v":"Дишлевий Володимир Васильович"},"Дишлевий Володимир Васильович"]
[null,null,null,null,{"$f":"Лист1!B342","v":"Полянський Сергій Вікторович"},"Полянський Сергій Вікторович"]
[null,null,null,null,{"$f":"Лист1!B343","v":"Соколова Владислава Станіславівна"},"Соколова Владислава Станіславівна"]
[null,null,null,null,{"$f":"Лист1!B344","v":"Цуман Микола Миколайович"},"Цуман Микола Миколайович"]
[null,null,null,null,{"$f":"Лист1!B345","v":"Томашевська Тетяна Геннадіївна"},"Томашевська Тетяна Геннадіївна"]
[null,null,null,null,{"$f":"Лист1!B346","v":"Плотников Ілля Іванович"},"Плотников Ілля Іванович"]
[null,null,null,null,{"$f":"Лист1!B347","v":"Ворганова Тетяна Вікторівна"},"Ворганова Тетяна Вікторівна"]
[null,null,null,null,{"$f":"Лист1!B348","v":"Мельник Олексій Олексійович"},"Мельник Олексій Олексійович"]
[null,null,null,null,{"$f":"Лист1!B349","v":"Чернега Олександр Іванович"},"Чернега Олександр Іванович"]
[null,null,null,null,{"$f":"Лист1!B350","v":"Влах Віра Федорівна"},"Влах Віра Федорівна"]
[null,null,null,null,{"$f":"Лист1!B351","v":"Почтарьов Вячеслав Миколайович"},"Почтарьов Вячеслав Миколайович"]
[null,null,null,null,{"$f":"Лист1!B352","v":"Солошенко Інна Анатоліївна"},"Солошенко Інна Анатоліївна"]
[null,null,null,null,{"$f":"Лист1!B353","v":"Суман Михайло Сафронович"},"Суман Михайло Сафронович"]
[null,null,null,null,{"$f":"Лист1!B354","v":"Сергієнко Олег Аркадійович"},"Сергієнко Олег Аркадійович"]
[null,null,null,null,{"$f":"Лист1!B355","v":"Сікора Андрій Петрович"},"Сікора Андрій Петрович"]
[null,null,null,null,{"$f":"Лист1!B356","v":"Захаров Олег Борисович"},"Захаров Олег Борисович"]
[null,null,null,null,{"$f":"Лист1!B357","v":"Долганіна Світлана Леонідівна"},"Долганіна Світлана Леонідівна"]
[null,null,null,null,{"$f":"Лист1!B358","v":"Стоянов Віктор Вікторович"},"Стоянов Віктор Вікторович"]
[null,null,null,null,{"$f":"Лист1!B359","v":"Коваль Анатолій Петрович"},"Коваль Анатолій Петрович"]
[null,null,null,null,{"$f":"Лист1!B360","v":"Дегтяренко Олексій Іванович"},"Дегтяренко Олексій Іванович"]
[null,null,null,null,{"$f":"Лист1!B361","v":"Рудчик Віталій Павлович"},"Рудчик Віталій Павлович"]
[null,null,null,null,{"$f":"Лист1!B362","v":"Осадча Олена Василівна"},"Осадча Олена Василівна"]
[null,null,null,null,{"$f":"Лист1!B363","v":"Мягкий Юрій Андрійович"},"Мягкий Юрій Андрійович"]
[null,null,null,null,{"$f":"Лист1!B364","v":"Гураль Тетяна Валентинівна"},"Гураль Тетяна Валентинівна"]
[null,null,null,null,{"$f":"Лист1!B365","v":"Муратов Олексій Іванович"},"Муратов Олексій Іванович"]
[null,null,null,null,{"$f":"Лист1!B366","v":"Караман Сергій Костянтинович"},"Караман Сергій Костянтинович"]
[null,null,null,null,{"$f":"Лист1!B367","v":"Гонза Ігор Григорович"},"Гонза Ігор Григорович"]
[null,null,null,null,{"$f":"Лист1!B368","v":"Черемуш Владислав Миколайович"},"Черемуш Владислав Миколайович"]
[null,null,null,null,{"$f":"Лист1!B369","v":"Костюк Оксана Василівна"},"Костюк Оксана Василівна"]
[null,null,null,null,{"$f":"Лист1!B370","v":"Блащук Всеволод Васильович"},"Блащук Всеволод Васильович"]
[null,null,null,null,{"$f":"Лист1!B371","v":"Юлдашев Роман Намазалійович"},"Юлдашев Роман Намазалійович"]
[null,null,null,null,{"$f":"Лист1!B372","v":"Дерк Анатолій Олександрович"},"Дерк Анатолій Олександрович"]
[null,null,null,null,{"$f":"Лист1!B373","v":"Стяглій Людмила Володимирівна"},"Стяглій Людмила Володимирівна"]
[null,null,null,null,{"$f":"Лист1!B374","v":"Савченко Олександр Миколайович"},"Савченко Олександр Миколайович"]
[null,null,null,null,{"$f":"Лист1!B375","v":"Єгоров Дмитро Юрійович"},"Єгоров Дмитро Юрійович"]
[null,null,null,null,{"$f":"Лист1!B376","v":"Гайдаєнко Микита Олександрович"},"Гайдаєнко Микита Олександрович"]
[null,null,null,null,{"$f":"Лист1!B377","v":"Драгоморецький Микола Сергійович"},"Драгоморецький Микола Сергійович"]
[null,null,null,null,{"$f":"Лист1!B378","v":"Костюченко Олексій Володимирович"},"Костюченко Олексій Володимирович"]
[null,null,null,null,{"$f":"Лист1!B379","v":"Котобан Костянтин Костянтинович"},"Котобан Костянтин Костянтинович"]
[null,null,null,null,{"$f":"Лист1!B380","v":"Жданова Валентина Василівна"},"Жданова Валентина Василівна"]
[null,null,null,null,{"$f":"Лист1!B381","v":"Могільова Наталія Володимирівна"},"Могільова Наталія Володимирівна"]
[null,null,null,null,{"$f":"Лист1!B382","v":"Гнатенко Олександр Миколайович"},"Гнатенко Олександр Миколайович"]
[null,null,null,null,{"$f":"Лист1!B383","v":"Лука Олексій Іванович"},"Лука Олексій Іванович"]
[null,null,null,null,{"$f":"Лист1!B384","v":"Кликов Валерій Миколайович"},"Кликов Валерій Миколайович"]
[null,null,null,null,{"$f":"Лист1!B385","v":"Плахтій Андрій Вікторович"},"Плахтій Андрій Вікторович"]
[null,null,null,null,{"$f":"Лист1!B386","v":"Буюклі Петро Дмитрович"},"Буюклі Петро Дмитрович"]
[null,null,null,null,{"$f":"Лист1!B387","v":"Золотін Олександр Євгенович"},"Золотін Олександр Євгенович"]
[null,null,null,null,{"$f":"Лист1!B388","v":"Чельцова Наталія Валеріївна"},"Чельцова Наталія Валеріївна"]
[null,null,null,null,{"$f":"Лист1!B389","v":"Чорний Андрій Тимофійович"},"Чорний Андрій Тимофійович"]
[null,null,null,null,{"$f":"Лист1!B390","v":"Соколова Світлана Сергіївна"},"Соколова Світлана Сергіївна"]
[null,null,null,null,{"$f":"Лист1!B391","v":"Штирболова Домніка Федорівна"},"Штирболова Домніка Федорівна"]
[null,null,null,null,{"$f":"Лист1!B392","v":"Марченко Олександр Ігорович"},"Марченко Олександр Ігорович"]
[null,null,null,null,{"$f":"Лист1!B393","v":"Вронський Олександр Павлович"},"Вронський Олександр Павлович"]
[null,null,null,null,{"$f":"Лист1!B394","v":"Томіловський Олег Васильович"},"Томіловський Олег Васильович"]
[null,null,null,null,{"$f":"Лист1!B395","v":"Беркатюк Євген Володимирович"},"Беркатюк Євген Володимирович"]
[null,null,null,null,{"$f":"Лист1!B396","v":"Чернявський Андрій Петрович"},"Чернявський Андрій Петрович"]
[null,null,null,null,{"$f":"Лист1!B397","v":"Горбунова Олена Михайлівна"},"Горбунова Олена Михайлівна"]
[null,null,null,null,{"$f":"Лист1!B398","v":"Москаленко Сергій Андрійович"},"Москаленко Сергій Андрійович"]
[null,null,null,null,{"$f":"Лист1!B399","v":"Передерій Ігор Іванович"},"Передерій Ігор Іванович"]
[null,null,null,null,{"$f":"Лист1!B400","v":"Бородинський Артем Вікторович"},"Бородинський Артем Вікторович"]
[null,null,null,null,{"$f":"Лист1!B401","v":"Поліщук Дмитро Валентинович"},"Поліщук Дмитро Валентинович"]
[null,null,null,null,{"$f":"Лист1!B402","v":"Нестерова Ніна Гаврилівна"},"Нестерова Ніна Гаврилівна"]
[null,null,null,null,{"$f":"Лист1!B403","v":"Лук'янов Юрій Дмитрович"},"Лук'янов Юрій Дмитрович"]
[null,null,null,null,{"$f":"Лист1!B404","v":"Ступак Любов Олександрівна"},"Ступак Любов Олександрівна"]
[null,null,null,null,{"$f":"Лист1!B405","v":"Троян Олена Сергіївна"},"Троян Олена Сергіївна"]
[null,null,null,null,{"$f":"Лист1!B406","v":"Крилов Яків Анатолійович"},"Крилов Яків Анатолійович"]
[null,null,null,null,{"$f":"Лист1!B407","v":"Летінський Олександр Анатолійович"},"Летінський Олександр Анатолійович"]
[null,null,null,null,{"$f":"Лист1!B408","v":"Гроздєв Максим Михайлович"},"Гроздєв Максим Михайлович"]
[null,null,null,null,{"$f":"Лист1!B409","v":"Сергєєнко Микола Вадимович"},"Сергєєнко Микола Вадимович"]
[null,null,null,null,{"$f":"Лист1!B410","v":"Михайлуца Микола Миколайович"},"Михайлуца Микола Миколайович"]
[null,null,null,null,{"$f":"Лист1!B411","v":"Колеснікова Емілія Юріївна"},"Колеснікова Емілія Юріївна"]
[null,null,null,null,{"$f":"Лист1!B412","v":"Погоржельський Вячеслав Костянтинович"},"Погоржельський Вячеслав Костянтинович"]
[null,null,null,null,{"$f":"Лист1!B413","v":"Жосан Тетяна Григорівна"},"Жосан Тетяна Григорівна"]
[null,null,null,null,{"$f":"Лист1!B414","v":"Брошеван Вадим Васильович"},"Брошеван Вадим Васильович"]
[null,null,null,null,{"$f":"Лист1!B415","v":"Подкопаєва Валентина Єрмолаївна"},"Подкопаєва Валентина Єрмолаївна"]
[null,null,null,null,{"$f":"Лист1!B416","v":"Лелюк Любов Іванівна"},"Лелюк Любов Іванівна"]
[null,null,null,null,{"$f":"Лист1!B417","v":"Вікторенков Сергій Євгенійович"},"Вікторенков Сергій Євгенійович"]
[null,null,null,null,{"$f":"Лист1!B418","v":"Бухур Петро Петрович"},"Бухур Петро Петрович"]
[null,null,null,null,{"$f":"Лист1!B419","v":"Бухтояров Артем Володимирович"},"Бухтояров Артем Володимирович"]
[null,null,null,null,{"$f":"Лист1!B420","v":"Ністор Юрій Петрович"},"Ністор Юрій Петрович"]
[null,null,null,null,{"$f":"Лист1!B421","v":"Петрова Ольга Євгенівна"},"Петрова Ольга Євгенівна"]
[null,null,null,null,{"$f":"Лист1!B422","v":"Мельников Сергій Валентинович"},"Мельников Сергій Валентинович"]
[null,null,null,null,{"$f":"Лист1!B423","v":"Бойко Андрій Андрійович"},"Бойко Андрій Андрійович"]
[null,null,null,null,{"$f":"Лист1!B424","v":"Качан Лариса Михайлівна"},"Качан Лариса Михайлівна"]
[null,null,null,null,{"$f":"Лист1!B425","v":"Багнєва Тетяна Василівна"},"Багнєва Тетяна Василівна"]
[null,null,null,null,{"$f":"Лист1!B426","v":"Вишняк Вадим Олександрович"},"Вишняк Вадим Олександрович"]
[null,null,null,null,{"$f":"Лист1!B427","v":"Вільховецький Віктор Михайлович"},"Вільховецький Віктор Михайлович"]
[null,null,null,null,{"$f":"Лист1!B428","v":"Лаврінов Денис Вадимович"},"Лаврінов Денис Вадимович"]
[null,null,null,null,{"$f":"Лист1!B429","v":"Васьковська Ольга Павлівна"},"Васьковська Ольга Павлівна"]
[null,null,null,null,{"$f":"Лист1!B430","v":"Клименко Марія Олексіївна"},"Клименко Марія Олексіївна"]
[null,null,null,null,{"$f":"Лист1!B431","v":"Власов Олександр Георгійович"},"Власов Олександр Георгійович"]
[null,null,null,null,{"$f":"Лист1!B432","v":"Гуртовий Семен Олексійович"},"Гуртовий Семен Олексійович"]
[null,null,null,null,{"$f":"Лист1!B433","v":"Терзі Дмитро Георгійович"},"Терзі Дмитро Георгійович"]
[null,null,null,null,{"$f":"Лист1!B434","v":"Плотніков Михайло Федорович"},"Плотніков Михайло Федорович"]
[null,null,null,null,{"$f":"Лист1!B435","v":"Петрова Валентина Йосипівна"},"Петрова Валентина Йосипівна"]
[null,null,null,null,{"$f":"Лист1!B436","v":"Чернобель Павло Васильович"},"Чернобель Павло Васильович"]
[null,null,null,null,{"$f":"Лист1!B437","v":"Мельникова Олена Олексіївна"},"Мельникова Олена Олексіївна"]
[null,null,null,null,{"$f":"Лист1!B438","v":"Слюсарьов Володимир Юрійович"},"Слюсарьов Володимир Юрійович"]
[null,null,null,null,{"$f":"Лист1!B439","v":"Звягіна Ганна Миколаївна"},"Звягіна Ганна Миколаївна"]
[null,null,null,null,{"$f":"Лист1!B440","v":"Осматескул Євгеній Вікторович"},"Осматескул Євгеній Вікторович"]
[null,null,null,null,{"$f":"Лист1!B441","v":"Кіосєв Іван Іванович"},"Кіосєв Іван Іванович"]
[null,null,null,null,{"$f":"Лист1!B442","v":"Чабанюк Валентина Митрофанівна"},"Чабанюк Валентина Митрофанівна"]
[null,null,null,null,{"$f":"Лист1!B443","v":"Пікало Олександр Володимирович"},"Пікало Олександр Володимирович"]
[null,null,null,null,{"$f":"Лист1!B444","v":"Стружан Іван Георгійович"},"Стружан Іван Георгійович"]
[null,null,null,null,{"$f":"Лист1!B445","v":"Остапенко Валентина Миколаївна"},"Остапенко Валентина Миколаївна"]
[null,null,null,null,{"$f":"Лист1!B446","v":"Соколов Григорій Іванович"},"Соколов Григорій Іванович"]
[null,null,null,null,{"$f":"Лист1!B447","v":"Калініченко Валерій Анатолійович"},"Калініченко Валерій Анатолійович"]
[null,null,null,null,{"$f":"Лист1!B448","v":"Реброва Поліна Якимівна"},"Реброва Поліна Якимівна"]
[null,null,null,null,{"$f":"Лист1!B449","v":"Лихач Сергій Анатолійович"},"Лихач Сергій Анатолійович"]
[null,null,null,null,{"$f":"Лист1!B450","v":"Завгородня Тетяна Олександрівна"},"Завгородня Тетяна Олександрівна"]
[null,null,null,null,{"$f":"Лист1!B451","v":"Павлов Борис Маркович"},"Павлов Борис Маркович"]
[null,null,null,null,{"$f":"Лист1!B452","v":"Іванова Любов Гаврилівна"},"Іванова Любов Гаврилівна"]
[null,null,null,null,{"$f":"Лист1!B453","v":"Франчук Микола Іванович"},"Франчук Микола Іванович"]
[null,null,null,null,{"$f":"Лист1!B454","v":"Войченко Володимир Андрійович"},"Войченко Володимир Андрійович"]
[null,null,null,null,{"$f":"Лист1!B455","v":"Мунтян Павло Юрійович"},"Мунтян Павло Юрійович"]
[null,null,null,null,{"$f":"Лист1!B456","v":"Косенко Максим Олександрович"},"Косенко Максим Олександрович"]
[null,null,null,null,{"$f":"Лист1!B457","v":"Пендраківський Станіслав Анатолійович"},"Пендраківський Станіслав Анатолійович"]
[null,null,null,null,{"$f":"Лист1!B458","v":"Орловська Світлана Миколаївна"},"Орловська Світлана Миколаївна"]
[null,null,null,null,{"$f":"Лист1!B459","v":"Чумаченко Сергій Григорович"},"Чумаченко Сергій Григорович"]
[null,null,null,null,{"$f":"Лист1!B460","v":"Топчу Петро Дмитрович"},"Топчу Петро Дмитрович"]
[null,null,null,null,{"$f":"Лист1!B461","v":"Леонова Надія Миколаївна"},"Леонова Надія Миколаївна"]
[null,null,null,null,{"$f":"Лист1!B462","v":"Пугач Віталій Володимирович"},"Пугач Віталій Володимирович"]
[null,null,null,null,{"$f":"Лист1!B463","v":"Черниш Олесандр Валерійович"},"Черниш Олесандр Валерійович"]
[null,null,null,null,{"$f":"Лист1!B464","v":"Парфеніє Сергій Миколайович"},"Парфеніє Сергій Миколайович"]
[null,null,null,null,{"$f":"Лист1!B465","v":"Олійник Олександра Іванівна"},"Олійник Олександра Іванівна"]
[null,null,null,null,{"$f":"Лист1!B466","v":"Златов Сергій Петрович"},"Златов Сергій Петрович"]
[null,null,null,null,{"$f":"Лист1!B467","v":"Ладовиря Валерій Анатолійович"},"Ладовиря Валерій Анатолійович"]
[null,null,null,null,{"$f":"Лист1!B468","v":"Волощук Максим Миколайович"},"Волощук Максим Миколайович"]
[null,null,null,null,{"$f":"Лист1!B469","v":"Кравчинський Денис Вікторович"},"Кравчинський Денис Вікторович"]
[null,null,null,null,{"$f":"Лист1!B470","v":"Дзіговська Тамара Микитівна"},"Дзіговська Тамара Микитівна"]
[null,null,null,null,{"$f":"Лист1!B471","v":"Терлецька Лариса Леонідівна"},"Терлецька Лариса Леонідівна"]
[null,null,null,null,{"$f":"Лист1!B472","v":"Поташнєр Максим Валерійович"},"Поташнєр Максим Валерійович"]
[null,null,null,null,{"$f":"Лист1!B473","v":"Бєлянчиков Олександр Валентинович"},"Бєлянчиков Олександр Валентинович"]
[null,null,null,null,{"$f":"Лист1!B474","v":"Хомич Галина Петрівна"},"Хомич Галина Петрівна"]
[null,null,null,null,{"$f":"Лист1!B475","v":"Скорецький Сергій Володимирович"},"Скорецький Сергій Володимирович"]
[null,null,null,null,{"$f":"Лист1!B476","v":"Баришев Вагіф Вагіфович"},"Баришев Вагіф Вагіфович"]
[null,null,null,null,{"$f":"Лист1!B477","v":"Ротар Лариса Василівна"},"Ротар Лариса Василівна"]
[null,null,null,null,{"$f":"Лист1!B478","v":"Кушнір Тетяна Сергіївна"},"Кушнір Тетяна Сергіївна"]
[null,null,null,null,{"$f":"Лист1!B479","v":"Спусканюк Олександр Дмитрович"},"Спусканюк Олександр Дмитрович"]
[null,null,null,null,{"$f":"Лист1!B480","v":"Колосова Валентина Вікторівна"},"Колосова Валентина Вікторівна"]
[null,null,null,null,{"$f":"Лист1!B481","v":"Паларієв Володимир Олександрович"},"Паларієв Володимир Олександрович"]
[null,null,null,null,{"$f":"Лист1!B482","v":"Малишев Віталій Борисович"},"Малишев Віталій Борисович"]
[null,null,null,null,{"$f":"Лист1!B483","v":"Лавринович Ігор Миколайович"},"Лавринович Ігор Миколайович"]
[null,null,null,null,{"$f":"Лист1!B484","v":"Романюк Олександр Григорійович"},"Романюк Олександр Григорійович"]
[null,null,null,null,{"$f":"Лист1!B485","v":"Нейков Іван Миколайович"},"Нейков Іван Миколайович"]
[null,null,null,null,{"$f":"Лист1!B486","v":"Чекелєк Ілля Петрович"},"Чекелєк Ілля Петрович"]
[null,null,null,null,{"$f":"Лист1!B487","v":"Вертелецька Валентина Вікторівна"},"Вертелецька Валентина Вікторівна"]
[null,null,null,null,{"$f":"Лист1!B488","v":"Грицюк Вадим Юрійович"},"Грицюк Вадим Юрійович"]
[null,null,null,null,{"$f":"Лист1!B489","v":"Кишлали Федора Миколаївна"},"Кишлали Федора Миколаївна"]
[null,null,null,null,{"$f":"Лист1!B490","v":"Михальчук Олександр Анатолійович"},"Михальчук Олександр Анатолійович"]
[null,null,null,null,{"$f":"Лист1!B491","v":"Лєхов Олександр Миколайович"},"Лєхов Олександр Миколайович"]
[null,null,null,null,{"$f":"Лист1!B492","v":"Сидоренко Ігор Валерійович"},"Сидоренко Ігор Валерійович"]
[null,null,null,null,{"$f":"Лист1!B493","v":"Шафаростова Лідія Федорівна"},"Шафаростова Лідія Федорівна"]
[null,null,null,null,{"$f":"Лист1!B494","v":"Дикун Руслан Володимирович"},"Дикун Руслан Володимирович"]
[null,null,null,null,{"$f":"Лист1!B495","v":"Малий Юрій Володимирович"},"Малий Юрій Володимирович"]
[null,null,null,null,{"$f":"Лист1!B496","v":"Баумгартен Наталія Тимофіївна"},"Баумгартен Наталія Тимофіївна"]
[null,null,null,null,{"$f":"Лист1!B497","v":"Махсурян Радж Володимирович"},"Махсурян Радж Володимирович"]
[null,null,null,null,{"$f":"Лист1!B498","v":"Тичина Олена Миколаївна"},"Тичина Олена Миколаївна"]
[null,null,null,null,{"$f":"Лист1!B499","v":"Шевцов Андрій Якович"},"Шевцов Андрій Якович"]
[null,null,null,null,{"$f":"Лист1!B500","v":"Петрова Тетяна Віталіївна"},"Петрова Тетяна Віталіївна"]
[null,null,null,null,{"$f":"Лист1!B501","v":"Авраменко Єгор Володимирович"},"Авраменко Єгор Володимирович"]
[null,null,null,null,{"$f":"Лист1!B502","v":"Хусейїнова Світлана Анатоліївна"},"Хусейїнова Світлана Анатоліївна"]
[null,null,null,null,{"$f":"Лист1!B503","v":"Станслер Олена Олександрівна"},"Станслер Олена Олександрівна"]
[null,null,null,null,{"$f":"Лист1!B504","v":"Попова Вікторія Адольфівна"},"Попова Вікторія Адольфівна"]
[null,null,null,null,{"$f":"Лист1!B505","v":"Слєпцов Ігор Миколайович"},"Слєпцов Ігор Миколайович"]
[null,null,null,null,{"$f":"Лист1!B506","v":"Малашевський Андрій Степанович"},"Малашевський Андрій Степанович"]
[null,null,null,null,{"$f":"Лист1!B507","v":"Хмарський Олександр Леонідович"},"Хмарський Олександр Леонідович"]
[null,null,null,null,{"$f":"Лист1!B508","v":"Косенко Володимир Миколайович"},"Косенко Володимир Миколайович"]
[null,null,null,null,{"$f":"Лист1!B509","v":"Юсифова Тамара Михайлівна"},"Юсифова Тамара Михайлівна"]
[null,null,null,null,{"$f":"Лист1!B510","v":"Каранчел Олександр Іванович"},"Каранчел Олександр Іванович"]
[null,null,null,null,{"$f":"Лист1!B511","v":"Дембицький Арсеній Васильович"},"Дембицький Арсеній Васильович"]
[null,null,null,null,{"$f":"Лист1!B512","v":"Дубчак Раїса Петрівна"},"Дубчак Раїса Петрівна"]
[null,null,null,null,{"$f":"Лист1!B513","v":"Левицький Олександр Антонович"},"Левицький Олександр Антонович"]
[null,null,null,null,{"$f":"Лист1!B514","v":"Терещенко Юрій Миколайович"},"Терещенко Юрій Миколайович"]
[null,null,null,null,{"$f":"Лист1!B515","v":"Одегова Ольга Миколаївна"},"Одегова Ольга Миколаївна"]
[null,null,null,null,{"$f":"Лист1!B516","v":"Шевчук Дмитро Іванович"},"Шевчук Дмитро Іванович"]
[null,null,null,null,{"$f":"Лист1!B517","v":"Карбашов Микола Васильович"},"Карбашов Микола Васильович"]
[null,null,null,null,{"$f":"Лист1!B518","v":"Черненко Володимир Вікторович"},"Черненко Володимир Вікторович"]
[null,null,null,null,{"$f":"Лист1!B519","v":"Коваль Дмитро Володимирович"},"Коваль Дмитро Володимирович"]
[null,null,null,null,{"$f":"Лист1!B520","v":"Щетінін Андрій"},"Щетінін Андрій"]
[null,null,null,null,{"$f":"Лист1!B521","v":"Задорожнюк Олег Михайлович"},"Задорожнюк Олег Михайлович"]
[null,null,null,null,{"$f":"Лист1!B522","v":"Жуковський Віталій Михайлович"},"Жуковський Віталій Михайлович"]
[null,null,null,null,{"$f":"Лист1!B523","v":"Кочман Олег Іванович"},"Кочман Олег Іванович"]
[null,null,null,null,{"$f":"Лист1!B524","v":"Владиченко Вікторія Олексіївна"},"Владиченко Вікторія Олексіївна"]
[null,null,null,null,{"$f":"Лист1!B525","v":"Сидоренко Олег Вікторович"},"Сидоренко Олег Вікторович"]
[null,null,null,null,{"$f":"Лист1!B526","v":"Гудковська Вікторія Леонідівна"},"Гудковська Вікторія Леонідівна"]
[null,null,null,null,{"$f":"Лист1!B527","v":"Поточенко Валентина Леонідівна"},"Поточенко Валентина Леонідівна"]
[null,null,null,null,{"$f":"Лист1!B528","v":"Хапокниш Сергій Миколайович"},"Хапокниш Сергій Миколайович"]
[null,null,null,null,{"$f":"Лист1!B529","v":"Яковлєв Ігор Вячеславович"},"Яковлєв Ігор Вячеславович"]
[null,null,null,null,{"$f":"Лист1!B530","v":"Шульга Олександр Борисович"},"Шульга Олександр Борисович"]
[null,null,null,null,{"$f":"Лист1!B531","v":"Донкоглова Лариса Тимофіївна"},"Донкоглова Лариса Тимофіївна"]
[null,null,null,null,{"$f":"Лист1!B532","v":"Анісімов Олександр Іванович"},"Анісімов Олександр Іванович"]
[null,null,null,null,{"$f":"Лист1!B533","v":"Лісова Антоніна Сергіївна"},"Лісова Антоніна Сергіївна"]
[null,null,null,null,{"$f":"Лист1!B534","v":"Читакова Тетяна Валеріївна"},"Читакова Тетяна Валеріївна"]
[null,null,null,null,{"$f":"Лист1!B535","v":"Чернишєв Денис Олексійович"},"Чернишєв Денис Олексійович"]
[null,null,null,null,{"$f":"Лист1!B536","v":"Ковальова Ольга Тимофіївна"},"Ковальова Ольга Тимофіївна"]
[null,null,null,null,{"$f":"Лист1!B537","v":"Казаков Володимир Станіславович"},"Казаков Володимир Станіславович"]
[null,null,null,null,{"$f":"Лист1!B538","v":"Бондар Юрій Леонідович"},"Бондар Юрій Леонідович"]
[null,null,null,null,{"$f":"Лист1!B539","v":"Сковородка Вячеслав Михайлович"},"Сковородка Вячеслав Михайлович"]
[null,null,null,null,{"$f":"Лист1!B540","v":"Левицький Юрій Віталійович"},"Левицький Юрій Віталійович"]
[null,null,null,null,{"$f":"Лист1!B541","v":"Осовецький Володимир Олександрович"},"Осовецький Володимир Олександрович"]
[null,null,null,null,{"$f":"Лист1!B542","v":"Станкова Ольга Федорівна"},"Станкова Ольга Федорівна"]
[null,null,null,null,{"$f":"Лист1!B543","v":"Гнатенко Оксана Юріївна"},"Гнатенко Оксана Юріївна"]
[null,null,null,null,{"$f":"Лист1!B544","v":"Званов Ігор Валерійович"},"Званов Ігор Валерійович"]
[null,null,null,null,{"$f":"Лист1!B545","v":"Козачук Микола Олександрович"},"Козачук Микола Олександрович"]
[null,null,null,null,{"$f":"Лист1!B546","v":"Брошеван Вадим Васильович"},"Брошеван Вадим Васильович"]
[null,null,null,null,{"$f":"Лист1!B547","v":"Кусьє Олег Степанович"},"Кусьє Олег Степанович"]
[null,null,null,null,{"$f":"Лист1!B548","v":"Руднєв Микола Сергійович"},"Руднєв Микола Сергійович"]
[null,null,null,null,{"$f":"Лист1!B549","v":"Котобан Костянтин Костянтинович"},"Котобан Костянтин Костянтинович"]
[null,null,null,null,{"$f":"Лист1!B550","v":"Одегова Ольга Миколаївна"},"Одегова Ольга Миколаївна"]
[null,null,null,null,{"$f":"Лист1!B551","v":"Горденко Людмила Анатоліївна"},"Горденко Людмила Анатоліївна"]
[null,null,null,null,{"$f":"Лист1!B552","v":"Веремеєнко Аркадій Леонідович"},"Веремеєнко Аркадій Леонідович"]
[null,null,null,null,{"$f":"Лист1!B553","v":"Головко Олег Віталійович"},"Головко Олег Віталійович"]
[null,null,null,null,{"$f":"Лист1!B554","v":"Орлянська Оксана Петрівна"},"Орлянська Оксана Петрівна"]
[null,null,null,null,{"$f":"Лист1!B555","v":"Лемачко Олена Ігорівна"},"Лемачко Олена Ігорівна"]
[null,null,null,null,{"$f":"Лист1!B556","v":"Семерікова Наталія Юріївна"},"Семерікова Наталія Юріївна"]
[null,null,null,null,{"$f":"Лист1!B557","v":"Михайльченко Євгеній Анатолійович"},"Михайльченко Євгеній Анатолійович"]
[null,null,null,null,{"$f":"Лист1!B558","v":"Жолкевський Віктор Броніславович"},"Жолкевський Віктор Броніславович"]
[null,null,null,null,{"$f":"Лист1!B559","v":"Сарафанов Євген Володимирович"},"Сарафанов Євген Володимирович"]
[null,null,null,null,{"$f":"Лист1!B560","v":"Заярнюк Анжела Сергіївна"},"Заярнюк Анжела Сергіївна"]
[null,null,null,null,{"$f":"Лист1!B561","v":"Сорочан Іван Петрович"},"Сорочан Іван Петрович"]
[null,null,null,null,{"$f":"Лист1!B562","v":"Зайченко Сергій Володимирович"},"Зайченко Сергій Володимирович"]
[null,null,null,null,{"$f":"Лист1!B563","v":"Данилюк Людмила Станіславівна"},"Данилюк Людмила Станіславівна"]
[null,null,null,null,{"$f":"Лист1!B564","v":"Замфірова Олена Дмитрівна"},"Замфірова Олена Дмитрівна"]
[null,null,null,null,{"$f":"Лист1!B565","v":"Горбунова Олена Михайлівна"},"Горбунова Олена Михайлівна"]
[null,null,null,null,{"$f":"Лист1!B566","v":"Козінцева Тетяна Миколаївна"},"Козінцева Тетяна Миколаївна"]
[null,null,null,null,{"$f":"Лист1!B567","v":"Федоров Євген Олександрович"},"Федоров Євген Олександрович"]
[null,null,null,null,{"$f":"Лист1!B568","v":"Бокій Володимир Михайлович"},"Бокій Володимир Михайлович"]
[null,null,null,null,{"$f":"Лист1!B569","v":"Семко Світлана Антонівна"},"Семко Світлана Антонівна"]
[null,null,null,null,{"$f":"Лист1!B570","v":"Шестакова Галина Олександрівна"},"Шестакова Галина Олександрівна"]
[null,null,null,null,{"$f":"Лист1!B571","v":"Урсалова Тамара Георгіївна"},"Урсалова Тамара Георгіївна"]
[null,null,null,null,{"$f":"Лист1!B572","v":"Галактіонова Лідія Василівна"},"Галактіонова Лідія Василівна"]
[null,null,null,null,{"$f":"Лист1!B573","v":"Бабіченко Олександр Володимирович"},"Бабіченко Олександр Володимирович"]
[null,null,null,null,{"$f":"Лист1!B574","v":"Семененко Людмила Іллівна"},"Семененко Людмила Іллівна"]
[null,null,null,null,{"$f":"Лист1!B575","v":"Ширшов Микола Володимирович"},"Ширшов Микола Володимирович"]
[null,null,null,null,{"$f":"Лист1!B576","v":"Волченко Іван Васильович"},"Волченко Іван Васильович"]
[null,null,null,null,{"$f":"Лист1!B577","v":"Костюк Максим Борисович"},"Костюк Максим Борисович"]
[null,null,null,null,{"$f":"Лист1!B578","v":"Боровицька Світлана Іванівна"},"Боровицька Світлана Іванівна"]
[null,null,null,null,{"$f":"Лист1!B579","v":"Мамедова Каріна Алієвна"},"Мамедова Каріна Алієвна"]
[null,null,null,null,{"$f":"Лист1!B580","v":"Нікульча В'ячеслав Володимирович"},"Нікульча В'ячеслав Володимирович"]
[null,null,null,null,{"$f":"Лист1!B581","v":"Гєнова Майя Степанівна"},"Гєнова Майя Степанівна"]
[null,null,null,null,{"$f":"Лист1!B582","v":"Ющенко Лідія Павлівна"},"Ющенко Лідія Павлівна"]
[null,null,null,null,{"$f":"Лист1!B583","v":"Кімерин Сергій Володимирович"},"Кімерин Сергій Володимирович"]
[null,null,null,null,{"$f":"Лист1!B584","v":"Шереметьєв Іван Костянтинович"},"Шереметьєв Іван Костянтинович"]
[null,null,null,null,{"$f":"Лист1!B585","v":"Антонов Сергій Вікторович"},"Антонов Сергій Вікторович"]
[null,null,null,null,{"$f":"Лист1!B586","v":"Соколов Олександр Васильович"},"Соколов Олександр Васильович"]
[null,null,null,null,{"$f":"Лист1!B587","v":"Карлаш Олександр Федосійович"},"Карлаш Олександр Федосійович"]
[null,null,null,null,{"$f":"Лист1!B588","v":"Карпін Іван Іванович"},"Карпін Іван Іванович"]
[null,null,null,null,{"$f":"Лист1!B589","v":"Чемиртан Василь Григорович"},"Чемиртан Василь Григорович"]
[null,null,null,null,{"$f":"Лист1!B590","v":"Поляков Олександр Васильович"},"Поляков Олександр Васильович"]
[null,null,null,null,{"$f":"Лист1!B591","v":"Ромашов Василь Сергійович"},"Ромашов Василь Сергійович"]
[null,null,null,null,{"$f":"Лист1!B592","v":"Белік Лідія Петрівна"},"Белік Лідія Петрівна"]
[null,null,null,null,{"$f":"Лист1!B593","v":"Журба Надія Іванівна"},"Журба Надія Іванівна"]
[null,null,null,null,{"$f":"Лист1!B594","v":"Філіпчук Неля Володимирівна"},"Філіпчук Неля Володимирівна"]
[null,null,null,null,{"$f":"Лист1!B595","v":"Каражов Юрій Георгійович"},"Каражов Юрій Георгійович"]
[null,null,null,null,{"$f":"Лист1!B596","v":"Єленок Едвард Юрійович"},"Єленок Едвард Юрійович"]
[null,null,null,null,{"$f":"Лист1!B597","v":"Курилко Тетяна Володимирівна"},"Курилко Тетяна Володимирівна"]
[null,null,null,null,{"$f":"Лист1!B598","v":"Чібукова Тетяна Анатоліївна"},"Чібукова Тетяна Анатоліївна"]
[null,null,null,null,{"$f":"Лист1!B599","v":"Аведенко Настасія Іванівна"},"Аведенко Настасія Іванівна"]
[null,null,null,null,{"$f":"Лист1!B600","v":"Меренков Андрій Борисович"},"Меренков Андрій Борисович"]
[null,null,null,null,{"$f":"Лист1!B601","v":"Чекан Ірина Степанівна"},"Чекан Ірина Степанівна"]
[null,null,null,null,{"$f":"Лист1!B602","v":"Базюк Петро Петрович"},"Базюк Петро Петрович"]
[null,null,null,null,{"$f":"Лист1!B603","v":"Токарева Лідія Анатоліївна"},"Токарева Лідія Анатоліївна"]
[null,null,null,null,{"$f":"Лист1!B604","v":"Морозова Зоя Володимирівна"},"Морозова Зоя Володимирівна"]
[null,null,null,null,{"$f":"Лист1!B605","v":"Заплічко Валентина Андріївна"},"Заплічко Валентина Андріївна"]
[null,null,null,null,{"$f":"Лист1!B606","v":"Утємішева Ірина Анатоліївна"},"Утємішева Ірина Анатоліївна"]
[null,null,null,null,{"$f":"Лист1!B607","v":"Підгорний Володимир Юрійович"},"Підгорний Володимир Юрійович"]
[null,null,null,null,{"$f":"Лист1!B608","v":"Балтянський Ігор Сергійович"},"Балтянський Ігор Сергійович"]
[null,null,null,null,{"$f":"Лист1!B609","v":"Вінникова Валентина Олексіївна"},"Вінникова Валентина Олексіївна"]
[null,null,null,null,{"$f":"Лист1!B610","v":"Чашка Ганна Радіонівна"},"Чашка Ганна Радіонівна"]
[null,null,null,null,{"$f":"Лист1!B611","v":"Звіжинський Роман Степанович"},"Звіжинський Роман Степанович"]
[null,null,null,null,{"$f":"Лист1!B612","v":"Кожухар Лілія Петрівна"},"Кожухар Лілія Петрівна"]
[null,null,null,null,{"$f":"Лист1!B613","v":"Андрєєв Сергій Іванович"},"Андрєєв Сергій Іванович"]
[null,null,null,null,{"$f":"Лист1!B614","v":"Калинку Марчея Савич"},"Калинку Марчея Савич"]
[null,null,null,null,{"$f":"Лист1!B615","v":"Бабенцов Юрій Васильович"},"Бабенцов Юрій Васильович"]
[null,null,null,null,{"$f":"Лист1!B616","v":"Решетник Михайло Юрійович"},"Решетник Михайло Юрійович"]
[null,null,null,null,{"$f":"Лист1!B617","v":"Харковенко Людмила Василівна"},"Харковенко Людмила Василівна"]
[null,null,null,null,{"$f":"Лист1!B618","v":"Рудаков Юрій Юрійович"},"Рудаков Юрій Юрійович"]
[null,null,null,null,{"$f":"Лист1!B619","v":"Михайленко Євгеній Олексійович"},"Михайленко Євгеній Олексійович"]
[null,null,null,null,{"$f":"Лист1!B620","v":"Іванько Раїса Василівна"},"Іванько Раїса Василівна"]
[null,null,null,null,{"$f":"Лист1!B621","v":"Острик Юрій Васильович"},"Острик Юрій Васильович"]
[null,null,null,null,{"$f":"Лист1!B622","v":"Крупко Ніна Миколаївна"},"Крупко Ніна Миколаївна"]
[null,null,null,null,{"$f":"Лист1!B623","v":"Гуцул Василь Іванович"},"Гуцул Василь Іванович"]
[null,null,null,null,{"$f":"Лист1!B624","v":"Глазков Віктор Іванович"},"Глазков Віктор Іванович"]
[null,null,null,null,{"$f":"Лист1!B625","v":"Таран Микола Гаврилович"},"Таран Микола Гаврилович"]
[null,null,null,null,{"$f":"Лист1!B626","v":"Тризна Валентина Петрівна"},"Тризна Валентина Петрівна"]
[null,null,null,null,{"$f":"Лист1!B627","v":"Кирилова Лада Миколаївна"},"Кирилова Лада Миколаївна"]
[null,null,null,null,{"$f":"Лист1!B628","v":"Кабак Наталя Іванівна"},"Кабак Наталя Іванівна"]
[null,null,null,null,{"$f":"Лист1!B629","v":"Дротенко Григорій Іванович"},"Дротенко Григорій Іванович"]
[null,null,null,null,{"$f":"Лист1!B630","v":"Дума Борис Зіновійович"},"Дума Борис Зіновійович"]
[null,null,null,null,{"$f":"Лист1!B631","v":"Поліщук Петро Ясонович"},"Поліщук Петро Ясонович"]
[null,null,null,null,{"$f":"Лист1!B632","v":"Плохой Володимир Анатолійович"},"Плохой Володимир Анатолійович"]
[null,null,null,null,{"$f":"Лист1!B633","v":"Антохі Яків Степанович"},"Антохі Яків Степанович"]
[null,null,null,null,{"$f":"Лист1!B634","v":"Бабіченко Ігор Анатолійович"},"Бабіченко Ігор Анатолійович"]
[null,null,null,null,{"$f":"Лист1!B635","v":"Войчишен Володимир Іванович"},"Войчишен Володимир Іванович"]
[null,null,null,null,{"$f":"Лист1!B636","v":"Качуровська Євгенія Вікторівна"},"Качуровська Євгенія Вікторівна"]
[null,null,null,null,{"$f":"Лист1!B637","v":"Пушньов Олег Олегович"},"Пушньов Олег Олегович"]
[null,null,null,null,{"$f":"Лист1!B638","v":"Пєтряєв Владислав Вікторович"},"Пєтряєв Владислав Вікторович"]
[null,null,null,null,{"$f":"Лист1!B639","v":"Цвентух Микола Анатолійович"},"Цвентух Микола Анатолійович"]
[null,null,null,null,{"$f":"Лист1!B640","v":"Тилков Валерій Вікторович"},"Тилков Валерій Вікторович"]
[null,null,null,null,{"$f":"Лист1!B641","v":"Ремез Сергій Миколайович"},"Ремез Сергій Миколайович"]
[null,null,null,null,{"$f":"Лист1!B642","v":"Пріліпко Едуард Іванович"},"Пріліпко Едуард Іванович"]
[null,null,null,null,{"$f":"Лист1!B643","v":"Кучма Віра Антонівна"},"Кучма Віра Антонівна"]
[null,null,null,null,{"$f":"Лист1!B644","v":"Малий Олександр Васильович"},"Малий Олександр Васильович"]
[null,null,null,null,{"$f":"Лист1!B645","v":"Нова Марія Сергіївна"},"Нова Марія Сергіївна"]
[null,null,null,null,{"$f":"Лист1!B646","v":"Попов Сергій Ігорович"},"Попов Сергій Ігорович"]
[null,null,null,null,{"$f":"Лист1!B647","v":"Пєйков Афанасій Петрович"},"Пєйков Афанасій Петрович"]
[null,null,null,null,{"$f":"Лист1!B648","v":"Кудлач Василь Андрійович"},"Кудлач Василь Андрійович"]
[null,null,null,null,{"$f":"Лист1!B649","v":"Веліков Володимир Вікторович"},"Веліков Володимир Вікторович"]
[null,null,null,null,{"$f":"Лист1!B650","v":"Руденко Анна Віталіївна"},"Руденко Анна Віталіївна"]
[null,null,null,null,{"$f":"Лист1!B651","v":"Робертус Андрій Олександрович"},"Робертус Андрій Олександрович"]
[null,null,null,null,{"$f":"Лист1!B652","v":"Бойко Олег Іванович"},"Бойко Олег Іванович"]
[null,null,null,null,{"$f":"Лист1!B653","v":"Шендриков Сергій Володимирович"},"Шендриков Сергій Володимирович"]
[null,null,null,null,{"$f":"Лист1!B654","v":"Полянська Людмила Лаврентіївна"},"Полянська Людмила Лаврентіївна"]
[null,null,null,null,{"$f":"Лист1!B655","v":"Олексюк Віктор Миколайович"},"Олексюк Віктор Миколайович"]
[null,null,null,null,{"$f":"Лист1!B656","v":"Авелічева Ірина Анатоліївна"},"Авелічева Ірина Анатоліївна"]
[null,null,null,null,{"$f":"Лист1!B657","v":"Ростіков Олександр Павлович"},"Ростіков Олександр Павлович"]
[null,null,null,null,{"$f":"Лист1!B658","v":"Кіосе Олена Дмитрівна"},"Кіосе Олена Дмитрівна"]
[null,null,null,null,{"$f":"Лист1!B659","v":"Луканін Юрій Миколайович"},"Луканін Юрій Миколайович"]
[null,null,null,null,{"$f":"Лист1!B660","v":"Ботезат Дмитро Олександрович"},"Ботезат Дмитро Олександрович"]
[null,null,null,null,{"$f":"Лист1!B661","v":"Гінкул Юрій Іванович"},"Гінкул Юрій Іванович"]
[null,null,null,null,{"$f":"Лист1!B662","v":"Дьяченко Олексій Вікторович"},"Дьяченко Олексій Вікторович"]
[null,null,null,null,{"$f":"Лист1!B663","v":"Одноочко Софія Михайлівна"},"Одноочко Софія Михайлівна"]
[null,null,null,null,{"$f":"Лист1!B664","v":"Берестова Євдокія Олександрівна"},"Берестова Євдокія Олександрівна"]
[null,null,null,null,{"$f":"Лист1!B665","v":"Коротков Ігор Віталійович"},"Коротков Ігор Віталійович"]
[null,null,null,null,{"$f":"Лист1!B666","v":"Марієвич Олег Григорович"},"Марієвич Олег Григорович"]
[null,null,null,null,{"$f":"Лист1!B667","v":"Матвєєв Павло Юрійович"},"Матвєєв Павло Юрійович"]
[null,null,null,null,{"$f":"Лист1!B668","v":"Федотова Любов Євгенівна"},"Федотова Любов Євгенівна"]
[null,null,null,null,{"$f":"Лист1!B669","v":"Райнов Василь Іванович"},"Райнов Василь Іванович"]
[null,null,null,null,{"$f":"Лист1!B670","v":"Резніченко Ігор Анатолійович"},"Резніченко Ігор Анатолійович"]
[null,null,null,null,{"$f":"Лист1!B671","v":"Музиченко Тетяна Дмитрівна"},"Музиченко Тетяна Дмитрівна"]
[null,null,null,null,{"$f":"Лист1!B672","v":"Станков Георгій Валентинович"},"Станков Георгій Валентинович"]
[null,null,null,null,{"$f":"Лист1!B673","v":"Дмитрієв Віктор Володимирович"},"Дмитрієв Віктор Володимирович"]
[null,null,null,null,{"$f":"Лист1!B674","v":"Даскал Ірина Юріївна"},"Даскал Ірина Юріївна"]
[null,null,null,null,{"$f":"Лист1!B675","v":"Селіванова-Жукова Тетяна Володимирівна"},"Селіванова-Жукова Тетяна Володимирівна"]
[null,null,null,null,{"$f":"Лист1!B676","v":"Чернуха Олександр Васильович"},"Чернуха Олександр Васильович"]
[null,null,null,null,{"$f":"Лист1!B677","v":"Кравець Сергій Вікторович"},"Кравець Сергій Вікторович"]
[null,null,null,null,{"$f":"Лист1!B678","v":"Семенюк Сергій Олександрович"},"Семенюк Сергій Олександрович"]
[null,null,null,null,{"$f":"Лист1!B679","v":"Кузнєцова Галина Олександрівна"},"Кузнєцова Галина Олександрівна"]
[null,null,null,null,{"$f":"Лист1!B680","v":"Вихрист Світлана Володимирівна"},"Вихрист Світлана Володимирівна"]
[null,null,null,null,{"$f":"Лист1!B681","v":"Таганов Сергій Володимирович"},"Таганов Сергій Володимирович"]
[null,null,null,null,{"$f":"Лист1!B682","v":"Турковський Максим Вікторович"},"Турковський Максим Вікторович"]
[null,null,null,null,{"$f":"Лист1!B683","v":"Данилов Сергій Андрійович"},"Данилов Сергій Андрійович"]
[null,null,null,null,{"$f":"Лист1!B684","v":"Чебан Микола Зіновійович"},"Чебан Микола Зіновійович"]
[null,null,null,null,{"$f":"Лист1!B685","v":"Проквас Світлана Олександрівна"},"Проквас Світлана Олександрівна"]
[null,null,null,null,{"$f":"Лист1!B686","v":"Височина Людмила Вікторівна"},"Височина Людмила Вікторівна"]
[null,null,null,null,{"$f":"Лист1!B687","v":"Кротенко Віталій Віталійович"},"Кротенко Віталій Віталійович"]
[null,null,null,null,{"$f":"Лист1!B688","v":"Домащенко Ольга Олександрівна"},"Домащенко Ольга Олександрівна"]
[null,null,null,null,{"$f":"Лист1!B689","v":"Панченко Олена Борисівна"},"Панченко Олена Борисівна"]
[null,null,null,null,{"$f":"Лист1!B690","v":"Шишко Павло Миколайович"},"Шишко Павло Миколайович"]
[null,null,null,null,{"$f":"Лист1!B691","v":"Драгнєв Василь Миколайович"},"Драгнєв Василь Миколайович"]
[null,null,null,null,{"$f":"Лист1!B692","v":"Базелюк Василь Іванович"},"Базелюк Василь Іванович"]
[null,null,null,null,{"$f":"Лист1!B693","v":"Кулєшов Євген Олександрович"},"Кулєшов Євген Олександрович"]
[null,null,null,null,{"$f":"Лист1!B694","v":"Іваньков Андрій Михайлович"},"Іваньков Андрій Михайлович"]
[null,null,null,null,{"$f":"Лист1!B695","v":"Веремей Людмила Володимирівна"},"Веремей Людмила Володимирівна"]
[null,null,null,null,{"$f":"Лист1!B696","v":"Феркаляк Михайло Михайлович"},"Феркаляк Михайло Михайлович"]
[null,null,null,null,{"$f":"Лист1!B697","v":"Гребенюк Олександр Валерійович"},"Гребенюк Олександр Валерійович"]
[null,null,null,null,{"$f":"Лист1!B698","v":"Пархоменко Павло Олексійович"},"Пархоменко Павло Олексійович"]
[null,null,null,null,{"$f":"Лист1!B699","v":"Мацко Володимир Валентинович"},"Мацко Володимир Валентинович"]
[null,null,null,null,{"$f":"Лист1!B700","v":"Ярославська Лариса Іванівна"},"Ярославська Лариса Іванівна"]
[null,null,null,null,{"$f":"Лист1!B701","v":"Максименко Віталій Леонідович"},"Максименко Віталій Леонідович"]
[null,null,null,null,{"$f":"Лист1!B702","v":"Трофименко Людмила Леонідівна"},"Трофименко Людмила Леонідівна"]
[null,null,null,null,{"$f":"Лист1!B703","v":"Вербіцький Дмитро Іванович"},"Вербіцький Дмитро Іванович"]
[null,null,null,null,{"$f":"Лист1!B704","v":"Камінський Іван Олександрович"},"Камінський Іван Олександрович"]
[null,null,null,null,{"$f":"Лист1!B705","v":"Гошко Олександр Васильович"},"Гошко Олександр Васильович"]
[null,null,null,null,{"$f":"Лист1!B706","v":"Єлісеєва Лариса Анатоліївна"},"Єлісеєва Лариса Анатоліївна"]
[null,null,null,null,{"$f":"Лист1!B707","v":"Попова Ірина Сергіївна"},"Попова Ірина Сергіївна"]
[null,null,null,null,{"$f":"Лист1!B708","v":"Вовк Євген Вікторович"},"Вовк Євген Вікторович"]
[null,null,null,null,{"$f":"Лист1!B709","v":"Кімаченко Олександра Олександрівна"},"Кімаченко Олександра Олександрівна"]
[null,null,null,null,{"$f":"Лист1!B710","v":"Стаднік Максим Михайлович"},"Стаднік Максим Михайлович"]
[null,null,null,null,{"$f":"Лист1!B711","v":"Арестов Вадим Анатолійович"},"Арестов Вадим Анатолійович"]
[null,null,null,null,{"$f":"Лист1!B712","v":"Ющенко Юрій Сергійович"},"Ющенко Юрій Сергійович"]
[null,null,null,null,{"$f":"Лист1!B713","v":"Соценко Світлана Володимирівна"},"Соценко Світлана Володимирівна"]
[null,null,null,null,{"$f":"Лист1!B714","v":"Надольський Сергій Анатолійович"},"Надольський Сергій Анатолійович"]
[null,null,null,null,{"$f":"Лист1!B715","v":"Івахненко Валентин Вікторович"},"Івахненко Валентин Вікторович"]
[null,null,null,null,{"$f":"Лист1!B716","v":"Гаврильчук Ярослав Іванович"},"Гаврильчук Ярослав Іванович"]
[null,null,null,null,{"$f":"Лист1!B717","v":"Крюков Володимир Сергійович"},"Крюков Володимир Сергійович"]
[null,null,null,null,{"$f":"Лист1!B718","v":"Горбатюк Ірина Петрівна"},"Горбатюк Ірина Петрівна"]
[null,null,null,null,{"$f":"Лист1!B719","v":"Козарезнюк Олена Михайлівна"},"Козарезнюк Олена Михайлівна"]
[null,null,null,null,{"$f":"Лист1!B720","v":"Шимчук Дмитро Сергійович"},"Шимчук Дмитро Сергійович"]
[null,null,null,null,{"$f":"Лист1!B721","v":"Гавенко Володимир Віталійович"},"Гавенко Володимир Віталійович"]
[null,null,null,null,{"$f":"Лист1!B722","v":"Заковенко Валерій Петрович"},"Заковенко Валерій Петрович"]
[null,null,null,null,{"$f":"Лист1!B723","v":"Халак Денис Володимирович"},"Халак Денис Володимирович"]
[null,null,null,null,{"$f":"Лист1!B724","v":"Шаріпов Кирило Вячеславович"},"Шаріпов Кирило Вячеславович"]
[null,null,null,null,{"$f":"Лист1!B725","v":"Абрашевська Олена Валентинівна"},"Абрашевська Олена Валентинівна"]
[null,null,null,null,{"$f":"Лист1!B726","v":"Бурлаков Віталій Юрійович"},"Бурлаков Віталій Юрійович"]
[null,null,null,null,{"$f":"Лист1!B727","v":"Бурлака Олександр Григорович"},"Бурлака Олександр Григорович"]
[null,null,null,null,{"$f":"Лист1!B728","v":"Целіщева Світлана Франківна"},"Целіщева Світлана Франківна"]
[null,null,null,null,{"$f":"Лист1!B729","v":"Мельников Гліб Анатолійович"},"Мельников Гліб Анатолійович"]
[null,null,null,null,{"$f":"Лист1!B730","v":"Мишко Зінаїда Марківна"},"Мишко Зінаїда Марківна"]
[null,null,null,null,{"$f":"Лист1!B731","v":"Токарев Іван Федорович"},"Токарев Іван Федорович"]
[null,null,null,null,{"$f":"Лист1!B732","v":"Носов Сергій Васильович"},"Носов Сергій Васильович"]
[null,null,null,null,{"$f":"Лист1!B733","v":"Барчанов Сергій Михайлович"},"Барчанов Сергій Михайлович"]
[null,null,null,null,{"$f":"Лист1!B734","v":"Бутенко-Ніколаєвський Юрій Олександрович"},"Бутенко-Ніколаєвський Юрій Олександрович"]
[null,null,null,null,{"$f":"Лист1!B735","v":"Скляр Юлія Сергіївна"},"Скляр Юлія Сергіївна"]
[null,null,null,null,{"$f":"Лист1!B736","v":"Кравцов Володимир Олександрович"},"Кравцов Володимир Олександрович"]
[null,null,null,null,{"$f":"Лист1!B737","v":"Федорук Сергій Дмитрович"},"Федорук Сергій Дмитрович"]
[null,null,null,null,{"$f":"Лист1!B738","v":"Небога Олена Іванівна"},"Небога Олена Іванівна"]
[null,null,null,null,{"$f":"Лист1!B739","v":"Лазаренко Ємілія Борисівна"},"Лазаренко Ємілія Борисівна"]
[null,null,null,null,{"$f":"Лист1!B740","v":"Кузьмін Євген Миколайович"},"Кузьмін Євген Миколайович"]
[null,null,null,null,{"$f":"Лист1!B741","v":"Галаш Юрій Геннадійович"},"Галаш Юрій Геннадійович"]
[null,null,null,null,{"$f":"Лист1!B742","v":"Ященко Галина Андріївна"},"Ященко Галина Андріївна"]
[null,null,null,null,{"$f":"Лист1!B743","v":"Алімпієва Ольга Володимирівна"},"Алімпієва Ольга Володимирівна"]
[null,null,null,null,{"$f":"Лист1!B744","v":"Петренко Руслан Володимирович"},"Петренко Руслан Володимирович"]
[null,null,null,null,{"$f":"Лист1!B745","v":"Семко Світлана Антонівна"},"Семко Світлана Антонівна"]
[null,null,null,null,{"$f":"Лист1!B746","v":"Волчанов Іван Васильович"},"Волчанов Іван Васильович"]
[null,null,null,null,{"$f":"Лист1!B747","v":"Силка Алла Володимирівна"},"Силка Алла Володимирівна"]
[null,null,null,null,{"$f":"Лист1!B748","v":"Дюкарєв Геннадій Михайлович"},"Дюкарєв Геннадій Михайлович"]
[null,null,null,null,{"$f":"Лист1!B749","v":"Мартиненко Вадим Олександрович"},"Мартиненко Вадим Олександрович"]
[null,null,null,null,{"$f":"Лист1!B750","v":"Романюк Сергій Миронович"},"Романюк Сергій Миронович"]
[null,null,null,null,{"$f":"Лист1!B751","v":"Деменкова Тетяна Дем'янівна"},"Деменкова Тетяна Дем'янівна"]
[null,null,null,null,{"$f":"Лист1!B752","v":"Васильченко Олександр Васильович"},"Васильченко Олександр Васильович"]
[null,null,null,null,{"$f":"Лист1!B753","v":"Сіденко Руслан Юрійович"},"Сіденко Руслан Юрійович"]
[null,null,null,null,{"$f":"Лист1!B754","v":"Дружиніна Тетяна Вікторівна"},"Дружиніна Тетяна Вікторівна"]
[null,null,null,null,{"$f":"Лист1!B755","v":"Науменко Надія Петрівна"},"Науменко Надія Петрівна"]
[null,null,null,null,{"$f":"Лист1!B756","v":"Терещенко Юрій Миколайович"},"Терещенко Юрій Миколайович"]
[null,null,null,null,{"$f":"Лист1!B757","v":"Касап Ігор Васильович"},"Касап Ігор Васильович"]
[null,null,null,null,{"$f":"Лист1!B758","v":"Кебап Віктор Миколайович"},"Кебап Віктор Миколайович"]
[null,null,null,null,{"$f":"Лист1!B759","v":"Кебап Людмила Валентинівна"},"Кебап Людмила Валентинівна"]
[null,null,null,null,{"$f":"Лист1!B760","v":"Ноджак Світлана Володимирівна"},"Ноджак Світлана Володимирівна"]
[null,null,null,null,{"$f":"Лист1!B761","v":"Єфременко Наталія Іванівна"},"Єфременко Наталія Іванівна"]
[null,null,null,null,{"$f":"Лист1!B762","v":"Река Володимир Григорович"},"Река Володимир Григорович"]
[null,null,null,null,{"$f":"Лист1!B763","v":"Кожухарь Віталій Петрович"},"Кожухарь Віталій Петрович"]
[null,null,null,null,{"$f":"Лист1!B764","v":"Ляховецька Ганна Іванівна"},"Ляховецька Ганна Іванівна"]
[null,null,null,null,{"$f":"Лист1!B765","v":"Златов Ілля Іванович"},"Златов Ілля Іванович"]
[null,null,null,null,{"$f":"Лист1!B766","v":"Богаченко Валерія Олександрівна"},"Богаченко Валерія Олександрівна"]
[null,null,null,null,{"$f":"Лист1!B767","v":"Трофименко Андрій Леонідович"},"Трофименко Андрій Леонідович"]
[null,null,null,null,{"$f":"Лист1!B768","v":"Доброжан Сергій Васильович"},"Доброжан Сергій Васильович"]
[null,null,null,null,{"$f":"Лист1!B769","v":"Кінчева Тетяна Миколаївна"},"Кінчева Тетяна Миколаївна"]
[null,null,null,null,{"$f":"Лист1!B770","v":"Партика Ірина Сергіївна"},"Партика Ірина Сергіївна"]
[null,null,null,null,{"$f":"Лист1!B771","v":"Чернова Світлана Олексіївна"},"Чернова Світлана Олексіївна"]
[null,null,null,null,{"$f":"Лист1!B772","v":"Шевчук Олег Дмитрович"},"Шевчук Олег Дмитрович"]
[null,null,null,null,{"$f":"Лист1!B773","v":"Засова Олена Миколаївна"},"Засова Олена Миколаївна"]
[null,null,null,null,{"$f":"Лист1!B774","v":"Дауд Фарід Ахмад"},"Дауд Фарід Ахмад"]
[null,null,null,null,{"$f":"Лист1!B775","v":"Дубровець Петро Петрович"},"Дубровець Петро Петрович"]
[null,null,null,null,{"$f":"Лист1!B776","v":"Малачли Петро Петрович"},"Малачли Петро Петрович"]
[null,null,null,null,{"$f":"Лист1!B777","v":"Скицько Михайло Миколайович"},"Скицько Михайло Миколайович"]
[null,null,null,null,{"$f":"Лист1!B778","v":"Ляховецька Тетяна Миколаївна"},"Ляховецька Тетяна Миколаївна"]
[null,null,null,null,{"$f":"Лист1!B779","v":"Мірошніченко Єгор Вікторович"},"Мірошніченко Єгор Вікторович"]
[null,null,null,null,{"$f":"Лист1!B780","v":"Тиркало Володимир Михайлович"},"Тиркало Володимир Михайлович"]
[null,null,null,null,{"$f":"Лист1!B781","v":"Балинський Сергій Іванович"},"Балинський Сергій Іванович"]
[null,null,null,null,{"$f":"Лист1!B782","v":"Ставертій Олександр Вікторович"},"Ставертій Олександр Вікторович"]
[null,null,null,null,{"$f":"Лист1!B783","v":"Артемоненко Олександр Миколайович"},"Артемоненко Олександр Миколайович"]
[null,null,null,null,{"$f":"Лист1!B784","v":"Мироненко Лідія Андріївна"},"Мироненко Лідія Андріївна"]
[null,null,null,null,{"$f":"Лист1!B785","v":"Кирилова Лада Миколаївна"},"Кирилова Лада Миколаївна"]
[null,null,null,null,{"$f":"Лист1!B786","v":"Гродзенко Павло Святославович"},"Гродзенко Павло Святославович"]
[null,null,null,null,{"$f":"Лист1!B787","v":"Васянович В'ячеслав Васильович"},"Васянович В'ячеслав Васильович"]
[null,null,null,null,{"$f":"Лист1!B788","v":"Сатулов Іван Іванович"},"Сатулов Іван Іванович"]
[null,null,null,null,{"$f":"Лист1!B789","v":"Блосков Афанасій Андрійович"},"Блосков Афанасій Андрійович"]
[null,null,null,null,{"$f":"Лист1!B790","v":"Мазур Андрій Васильович"},"Мазур Андрій Васильович"]
[null,null,null,null,{"$f":"Лист1!B791","v":"Елькіна Ніна Василівна"},"Елькіна Ніна Василівна"]
[null,null,null,null,{"$f":"Лист1!B792","v":"Попова Лариса Михайлівна"},"Попова Лариса Михайлівна"]
[null,null,null,null,{"$f":"Лист1!B793","v":"Скорік В'ячеслав Юрійович"},"Скорік В'ячеслав Юрійович"]
[null,null,null,null,{"$f":"Лист1!B794","v":"Рилов Володимир Миколайович"},"Рилов Володимир Миколайович"]
[null,null,null,null,{"$f":"Лист1!B795","v":"Гуцол Віктор Демьянович"},"Гуцол Віктор Демьянович"]
[null,null,null,null,{"$f":"Лист1!B796","v":"Бабій Олександр Васильович"},"Бабій Олександр Васильович"]
[null,null,null,null,{"$f":"Лист1!B797","v":"Філіпенко Микола Володимирович"},"Філіпенко Микола Володимирович"]
[null,null,null,null,{"$f":"Лист1!B798","v":"Манзюк Вадим Дмитрович"},"Манзюк Вадим Дмитрович"]
[null,null,null,null,{"$f":"Лист1!B799","v":"Ковальов Віктор Олегович"},"Ковальов Віктор Олегович"]
[null,null,null,null,{"$f":"Лист1!B800","v":"Гурбік Анна Сергіївна"},"Гурбік Анна Сергіївна"]
[null,null,null,null,{"$f":"Лист1!B801","v":"Дацько Віталій Петрович"},"Дацько Віталій Петрович"]
[null,null,null,null,{"$f":"Лист1!B802","v":"Ліщук Наталія Анатоліївна"},"Ліщук Наталія Анатоліївна"]
[null,null,null,null,{"$f":"Лист1!B803","v":"Нікіфоров Тимофій Володимирович"},"Нікіфоров Тимофій Володимирович"]
[null,null,null,null,{"$f":"Лист1!B804","v":"Толмач Віктор Федорович"},"Толмач Віктор Федорович"]
[null,null,null,null,{"$f":"Лист1!B805","v":"Черой Олександр Ілліч"},"Черой Олександр Ілліч"]
[null,null,null,null,{"$f":"Лист1!B806","v":"Кириленко Ольга Іванівна"},"Кириленко Ольга Іванівна"]
[null,null,null,null,{"$f":"Лист1!B807","v":"Яшонков Степан Володимирович"},"Яшонков Степан Володимирович"]
[null,null,null,null,{"$f":"Лист1!B808","v":"Громюк Людмила Василівна"},"Громюк Людмила Василівна"]
[null,null,null,null,{"$f":"Лист1!B809","v":"Волков Олег Петрович"},"Волков Олег Петрович"]
[null,null,null,null,{"$f":"Лист1!B810","v":"Коротаєв Віктор Володимирович"},"Коротаєв Віктор Володимирович"]
[null,null,null,null,{"$f":"Лист1!B811","v":"Коваленко Олексій  Олегович"},"Коваленко Олексій  Олегович"]
[null,null,null,null,{"$f":"Лист1!B812","v":"Оганезова Галина Іванівна"},"Оганезова Галина Іванівна"]
[null,null,null,null,{"$f":"Лист1!B813","v":"Лукашенко Валерій Васильович"},"Лукашенко Валерій Васильович"]
[null,null,null,null,{"$f":"Лист1!B814","v":"Навроцький Володимир Анатолійович"},"Навроцький Володимир Анатолійович"]
[null,null,null,null,{"$f":"Лист1!B815","v":"Кравець Тетяна Валеріївна"},"Кравець Тетяна Валеріївна"]
[null,null,null,null,{"$f":"Лист1!B816","v":"Овсянніков Віктор Іванович"},"Овсянніков Віктор Іванович"]
[null,null,null,null,{"$f":"Лист1!B817","v":"Щербина Марина Володимирівна"},"Щербина Марина Володимирівна"]
[null,null,null,null,{"$f":"Лист1!B818","v":"Зарічний Руслан Володимирович"},"Зарічний Руслан Володимирович"]
[null,null,null,null,{"$f":"Лист1!B819","v":"Стружевська Ірина Олександрівна"},"Стружевська Ірина Олександрівна"]
[null,null,null,null,{"$f":"Лист1!B820","v":"Скрипников Микола Миколайович"},"Скрипников Микола Миколайович"]
[null,null,null,null,{"$f":"Лист1!B821","v":"Таран Василь Іванович"},"Таран Василь Іванович"]
[null,null,null,null,{"$f":"Лист1!B822","v":"Сімакова Тетяна Олександрівна"},"Сімакова Тетяна Олександрівна"]
[null,null,null,null,{"$f":"Лист1!B823","v":"Замфіраки Данило Ігорович"},"Замфіраки Данило Ігорович"]
[null,null,null,null,{"$f":"Лист1!B824","v":"Шульга Тетяна Іванівна"},"Шульга Тетяна Іванівна"]
[null,null,null,null,{"$f":"Лист1!B825","v":"Маковейчук Євген Юрійович"},"Маковейчук Євген Юрійович"]
[null,null,null,null,{"$f":"Лист1!B826","v":"Баштанар Валентин Миколайович"},"Баштанар Валентин Миколайович"]
[null,null,null,null,{"$f":"Лист1!B827","v":"Токарчук Богдан Валерійович"},"Токарчук Богдан Валерійович"]
[null,null,null,null,{"$f":"Лист1!B828","v":"Вишневська Наталя Миколаївна"},"Вишневська Наталя Миколаївна"]
[null,null,null,null,{"$f":"Лист1!B829","v":"Телещук Жанна Борисівна"},"Телещук Жанна Борисівна"]
[null,null,null,null,{"$f":"Лист1!B830","v":"Кашковська Юлія Степанівна"},"Кашковська Юлія Степанівна"]
[null,null,null,null,{"$f":"Лист1!B831","v":"Ємельянов Олег Володимирович"},"Ємельянов Олег Володимирович"]
[null,null,null,null,{"$f":"Лист1!B832","v":"Слободін Руслан Миколайович"},"Слободін Руслан Миколайович"]
[null,null,null,null,{"$f":"Лист1!B833","v":"Соловйов Вадим Олександрович"},"Соловйов Вадим Олександрович"]
[null,null,null,null,{"$f":"Лист1!B834","v":"Федоренко Ольга Пантелеймонівна"},"Федоренко Ольга Пантелеймонівна"]
[null,null,null,null,{"$f":"Лист1!B835","v":"Логінов Олександр Леонідович"},"Логінов Олександр Леонідович"]
[null,null,null,null,{"$f":"Лист1!B836","v":"Задорожний Віктор Андрійович"},"Задорожний Віктор Андрійович"]
[null,null,null,null,{"$f":"Лист1!B837","v":"Глуган Олександр Олександрович"},"Глуган Олександр Олександрович"]
[null,null,null,null,{"$f":"Лист1!B838","v":"Прокоф'єв Олександр Миколайович"},"Прокоф'єв Олександр Миколайович"]
[null,null,null,null,{"$f":"Лист1!B839","v":"Долженко Віталій Михайлович"},"Долженко Віталій Михайлович"]
[null,null,null,null,{"$f":"Лист1!B840","v":"Савенко Ганна Василівна"},"Савенко Ганна Василівна"]
[null,null,null,null,{"$f":"Лист1!B841","v":"Ревенюк Тетяна Іванівна"},"Ревенюк Тетяна Іванівна"]
[null,null,null,null,{"$f":"Лист1!B842","v":"Дубина Віталій Вікторович"},"Дубина Віталій Вікторович"]
[null,null,null,null,{"$f":"Лист1!B843","v":"Гайдаржи Зінаїда Петрівна"},"Гайдаржи Зінаїда Петрівна"]
[null,null,null,null,{"$f":"Лист1!B844","v":"Конопльов Олексій Вікторович"},"Конопльов Олексій Вікторович"]
[null,null,null,null,{"$f":"Лист1!B845","v":"Савчук Владислав Юрійович"},"Савчук Владислав Юрійович"]
[null,null,null,null,{"$f":"Лист1!B846","v":"Матвієнко Юрій Геннадійович"},"Матвієнко Юрій Геннадійович"]
[null,null,null,null,{"$f":"Лист1!B847","v":"Щетініна Людмила Павлівна"},"Щетініна Людмила Павлівна"]
[null,null,null,null,{"$f":"Лист1!B848","v":"Бікяшова Тянзілія Ідгаріївна"},"Бікяшова Тянзілія Ідгаріївна"]
[null,null,null,null,{"$f":"Лист1!B849","v":"Андрус Володимир Іванович"},"Андрус Володимир Іванович"]
[null,null,null,null,{"$f":"Лист1!B850","v":"Бурдейна Людмила Павлівна"},"Бурдейна Людмила Павлівна"]
[null,null,null,null,{"$f":"Лист1!B851","v":"Поліщук Алла Леонідівна"},"Поліщук Алла Леонідівна"]
[null,null,null,null,{"$f":"Лист1!B852","v":"Гуцан Ганна Іванівна"},"Гуцан Ганна Іванівна"]
[null,null,null,null,{"$f":"Лист1!B853","v":"Ващенко Олена Миколаївна"},"Ващенко Олена Миколаївна"]
[null,null,null,null,{"$f":"Лист1!B854","v":"Стрельбицький Віталій Миколайович"},"Стрельбицький Віталій Миколайович"]
[null,null,null,null,{"$f":"Лист1!B855","v":"Пойманов Віталій Володимирович"},"Пойманов Віталій Володимирович"]
[null,null,null,null,{"$f":"Лист1!B856","v":"Колесник Іван Семенович"},"Колесник Іван Семенович"]
[null,null,null,null,{"$f":"Лист1!B857","v":"Лаврюкова Тетяна Володимирівна"},"Лаврюкова Тетяна Володимирівна"]
[null,null,null,null,{"$f":"Лист1!B858","v":"Петрасюк Вікторія Петрівна"},"Петрасюк Вікторія Петрівна"]
[null,null,null,null,{"$f":"Лист1!B859","v":"Константінов Анатолій Ігорович"},"Константінов Анатолій Ігорович"]
[null,null,null,null,{"$f":"Лист1!B860","v":"Махновська Олена Григорівна"},"Махновська Олена Григорівна"]
[null,null,null,null,{"$f":"Лист1!B861","v":"Янковський Микола Олександрович"},"Янковський Микола Олександрович"]
[null,null,null,null,{"$f":"Лист1!B862","v":"Єрошкін Михайло Олегович"},"Єрошкін Михайло Олегович"]
[null,null,null,null,{"$f":"Лист1!B863","v":"Калина Валентина Миколаївна"},"Калина Валентина Миколаївна"]
[null,null,null,null,{"$f":"Лист1!B864","v":"Сакалюк Володимир Михайлович"},"Сакалюк Володимир Михайлович"]
[null,null,null,null,{"$f":"Лист1!B865","v":"Волковська Олена Олексіївна"},"Волковська Олена Олексіївна"]
[null,null,null,null,{"$f":"Лист1!B866","v":"Стрижак Ірина Олександрівна"},"Стрижак Ірина Олександрівна"]
[null,null,null,null,{"$f":"Лист1!B867","v":"Груценко Ольга Василівна"},"Груценко Ольга Василівна"]
[null,null,null,null,{"$f":"Лист1!B868","v":"Єрошкін Михайло Олегович"},"Єрошкін Михайло Олегович"]
[null,null,null,null,{"$f":"Лист1!B869","v":"Гужан Ігор Олексійович"},"Гужан Ігор Олексійович"]
[null,null,null,null,{"$f":"Лист1!B870","v":"Вітренко Любов Іванівна"},"Вітренко Любов Іванівна"]
[null,null,null,null,{"$f":"Лист1!B871","v":"Амонс Руслана Валентинівна"},"Амонс Руслана Валентинівна"]
[null,null,null,null,{"$f":"Лист1!B872","v":"Дауд Фарід Ахмад"},"Дауд Фарід Ахмад"]
[null,null,null,null,{"$f":"Лист1!B873","v":"Заяць Олександр Михайлович"},"Заяць Олександр Михайлович"]
[null,null,null,null,{"$f":"Лист1!B874","v":"Аланія Бесікі"},"Аланія Бесікі"]
[null,null,null,null,{"$f":"Лист1!B875","v":"Крицький Андрій Володимирович"},"Крицький Андрій Володимирович"]
[null,null,null,null,{"$f":"Лист1!B876","v":"Драган Алла Леонідівна"},"Драган Алла Леонідівна"]
[null,null,null,null,{"$f":"Лист1!B877","v":"Шведу Ілля Костянтинович"},"Шведу Ілля Костянтинович"]
[null,null,null,null,{"$f":"Лист1!B878","v":"Сіренко Григорій Васильович"},"Сіренко Григорій Васильович"]
[null,null,null,null,{"$f":"Лист1!B879","v":"Савчихин Микола Михайлович"},"Савчихин Микола Михайлович"]
[null,null,null,null,{"$f":"Лист1!B880","v":"Кучірка Ольга Володимирівна"},"Кучірка Ольга Володимирівна"]
[null,null,null,null,{"$f":"Лист1!B881","v":"Новак Максим Васильович"},"Новак Максим Васильович"]
[null,null,null,null,{"$f":"Лист1!B882","v":"Мокрицький Леонід Миколайович"},"Мокрицький Леонід Миколайович"]
[null,null,null,null,{"$f":"Лист1!B883","v":"Бокій Вячеслав Володимирович"},"Бокій Вячеслав Володимирович"]
[null,null,null,null,{"$f":"Лист1!B884","v":"Брояк Віталій Володимирович"},"Брояк Віталій Володимирович"]
[null,null,null,null,{"$f":"Лист1!B885","v":"Толпека Юрій Павлович"},"Толпека Юрій Павлович"]
[null,null,null,null,{"$f":"Лист1!B886","v":"Попов Даніїл Олександрович"},"Попов Даніїл Олександрович"]
[null,null,null,null,{"$f":"Лист1!B887","v":"Глинська Оксана Миколаївна"},"Глинська Оксана Миколаївна"]
[null,null,null,null,{"$f":"Лист1!B888","v":"Парфьонова Світлана Анатоліївна"},"Парфьонова Світлана Анатоліївна"]
[null,null,null,null,{"$f":"Лист1!B889","v":"Пчолко Інна Миколаївна"},"Пчолко Інна Миколаївна"]
[null,null,null,null,{"$f":"Лист1!B890","v":"Касєєв Денис Володимирович"},"Касєєв Денис Володимирович"]
[null,null,null,null,{"$f":"Лист1!B891","v":"Криков Михайло Сергійович"},"Криков Михайло Сергійович"]
[null,null,null,null,{"$f":"Лист1!B892","v":"Мазурак Марія Іванівна"},"Мазурак Марія Іванівна"]
[null,null,null,null,{"$f":"Лист1!B893","v":"Гнатищак Володимир Степанович"},"Гнатищак Володимир Степанович"]
[null,null,null,null,{"$f":"Лист1!B894","v":"Савченко Артур Сергійович"},"Савченко Артур Сергійович"]
[null,null,null,null,{"$f":"Лист1!B895","v":"Черепуха Віктор Миколайович"},"Черепуха Віктор Миколайович"]
[null,null,null,null,{"$f":"Лист1!B896","v":"Ступак Любов Олександрівна"},"Ступак Любов Олександрівна"]
[null,null,null,null,{"$f":"Лист1!B897","v":"Трегубова Людмила Олександрівна"},"Трегубова Людмила Олександрівна"]
[null,null,null,null,{"$f":"Лист1!B898","v":"Мінєва Ірина Валеріївна"},"Мінєва Ірина Валеріївна"]
[null,null,null,null,{"$f":"Лист1!B899","v":"Нікітіна Валерія Денисівна"},"Нікітіна Валерія Денисівна"]
[null,null,null,null,{"$f":"Лист1!B900","v":"Чугреєва Марина Іванівна"},"Чугреєва Марина Іванівна"]
[null,null,null,null,{"$f":"Лист1!B901","v":"В'язовський Костянтин Сергійович"},"В'язовський Костянтин Сергійович"]
[null,null,null,null,{"$f":"Лист1!B902","v":"Клименко Олександр Вікторович"},"Клименко Олександр Вікторович"]
[null,null,null,null,{"$f":"Лист1!B903","v":"Вихрист Світлана Володимирівна"},"Вихрист Світлана Володимирівна"]
[null,null,null,null,{"$f":"Лист1!B904","v":"Лісогорова Алла Миколаївна"},"Лісогорова Алла Миколаївна"]
[null,null,null,null,{"$f":"Лист1!B905","v":"Анісімова Ніна Михайлівна"},"Анісімова Ніна Михайлівна"]
[null,null,null,null,{"$f":"Лист1!B906","v":"Шишко Павло Миколайович"},"Шишко Павло Миколайович"]
[null,null,null,null,{"$f":"Лист1!B907","v":"Тишлер Галина Іванівна"},"Тишлер Галина Іванівна"]
[null,null,null,null,{"$f":"Лист1!B908","v":"Бобине Олександр Валерійович"},"Бобине Олександр Валерійович"]
[null,null,null,null,{"$f":"Лист1!B909","v":"Блажко Максим Миколайович"},"Блажко Максим Миколайович"]
[null,null,null,null,{"$f":"Лист1!B910","v":"Стадніченко Семен Семенович"},"Стадніченко Семен Семенович"]
[null,null,null,null,{"$f":"Лист1!B911","v":"Горяйнов Олександр Вікторович"},"Горяйнов Олександр Вікторович"]
[null,null,null,null,{"$f":"Лист1!B912","v":"Олексюк Людмила Володимирівна"},"Олексюк Людмила Володимирівна"]
[null,null,null,null,{"$f":"Лист1!B913","v":"Батезат Віра Іванівна"},"Батезат Віра Іванівна"]
[null,null,null,null,{"$f":"Лист1!B914","v":"Володько Юрій Петрович"},"Володько Юрій Петрович"]
[null,null,null,null,{"$f":"Лист1!B915","v":"Попов Сергій Васильович"},"Попов Сергій Васильович"]
[null,null,null,null,{"$f":"Лист1!B916","v":"Ільницька Елла Василівна"},"Ільницька Елла Василівна"]
[null,null,null,null,{"$f":"Лист1!B917","v":"Городецький Леонід Миколайович"},"Городецький Леонід Миколайович"]
[null,null,null,null,{"$f":"Лист1!B918","v":"Довженко Олег Валентинович"},"Довженко Олег Валентинович"]
[null,null,null,null,{"$f":"Лист1!B919","v":"Требушевська Ганна Костянтинівна"},"Требушевська Ганна Костянтинівна"]
[null,null,null,null,{"$f":"Лист1!B920","v":"Паламарчук Володимир Васильович"},"Паламарчук Володимир Васильович"]
[null,null,null,null,{"$f":"Лист1!B921","v":"Гайдаржи Валерій Іванович"},"Гайдаржи Валерій Іванович"]
[null,null,null,null,{"$f":"Лист1!B922","v":"Поліковський Анатолій Францевич"},"Поліковський Анатолій Францевич"]
[null,null,null,null,{"$f":"Лист1!B923","v":"Караулова Уляна Юхимівна"},"Караулова Уляна Юхимівна"]
[null,null,null,null,{"$f":"Лист1!B924","v":"Уривський Андрій Олександрович"},"Уривський Андрій Олександрович"]
[null,null,null,null,{"$f":"Лист1!B925","v":"Кравченко Тетяна Вячеславівна"},"Кравченко Тетяна Вячеславівна"]
[null,null,null,null,{"$f":"Лист1!B926","v":"Іванюк Володимир Ілліч"},"Іванюк Володимир Ілліч"]
[null,null,null,null,{"$f":"Лист1!B927","v":"Поляков Віталій Іванович"},"Поляков Віталій Іванович"]
[null,null,null,null,{"$f":"Лист1!B928","v":"Ковальчук Ольга Володимирівна"},"Ковальчук Ольга Володимирівна"]
[null,null,null,null,{"$f":"Лист1!B929","v":"Бабкова Ольга Феодосіївна"},"Бабкова Ольга Феодосіївна"]
[null,null,null,null,{"$f":"Лист1!B930","v":"Солопенко Михайло Андрійович"},"Солопенко Михайло Андрійович"]
[null,null,null,null,{"$f":"Лист1!B931","v":"Скородкіна Ліліана Євгенівна"},"Скородкіна Ліліана Євгенівна"]
[null,null,null,null,{"$f":"Лист1!B932","v":"Карпенко Юлія Миколаївна"},"Карпенко Юлія Миколаївна"]
[null,null,null,null,{"$f":"Лист1!B933","v":"Тимченко Валентина Василівна"},"Тимченко Валентина Василівна"]
[null,null,null,null,{"$f":"Лист1!B934","v":"Трухачова Віра Миколаївна"},"Трухачова Віра Миколаївна"]
[null,null,null,null,{"$f":"Лист1!B935","v":"Звонарьов Андрій Володимирович"},"Звонарьов Андрій Володимирович"]
[null,null,null,null,{"$f":"Лист1!B936","v":"Чорний Дмитро Олександрович"},"Чорний Дмитро Олександрович"]
[null,null,null,null,{"$f":"Лист1!B937","v":"Кучеренко Денис Миколайович"},"Кучеренко Денис Миколайович"]
[null,null,null,null,{"$f":"Лист1!B938","v":"Таран Любов Іванівна"},"Таран Любов Іванівна"]
[null,null,null,null,{"$f":"Лист1!B939","v":"Стрецкул Олександр Григорович"},"Стрецкул Олександр Григорович"]
[null,null,null,null,{"$f":"Лист1!B940","v":"Бондар Віталій Андрійович"},"Бондар Віталій Андрійович"]
[null,null,null,null,{"$f":"Лист1!B941","v":"Коваль Андрій Вікторович"},"Коваль Андрій Вікторович"]
[null,null,null,null,{"$f":"Лист1!B942","v":"Царенко Геннадій Валентинович"},"Царенко Геннадій Валентинович"]
[null,null,null,null,{"$f":"Лист1!B943","v":"Бахчиванжи Євген Іванович"},"Бахчиванжи Євген Іванович"]
[null,null,null,null,{"$f":"Лист1!B944","v":"Войтишен Євген Володимирович"},"Войтишен Євген Володимирович"]
[null,null,null,null,{"$f":"Лист1!B945","v":"Корсун Валентина Степанівна"},"Корсун Валентина Степанівна"]
[null,null,null,null,{"$f":"Лист1!B946","v":"Колпак Віктор Михайлович"},"Колпак Віктор Михайлович"]
[null,null,null,null,{"$f":"Лист1!B947","v":"Осадчий Ілля Володимирович"},"Осадчий Ілля Володимирович"]
[null,null,null,null,{"$f":"Лист1!B948","v":"Гупанець Людмила Серафимівна"},"Гупанець Людмила Серафимівна"]
[null,null,null,null,{"$f":"Лист1!B949","v":"Зазулінська Аліна Вадимівна"},"Зазулінська Аліна Вадимівна"]
[null,null,null,null,{"$f":"Лист1!B950","v":"Шестакова Людмила Миколаївна"},"Шестакова Людмила Миколаївна"]
[null,null,null,null,{"$f":"Лист1!B951","v":"Балун Олег Миколайович"},"Балун Олег Миколайович"]
[null,null,null,null,{"$f":"Лист1!B952","v":"Ростіков Вячеслав Сергійович"},"Ростіков Вячеслав Сергійович"]
[null,null,null,null,{"$f":"Лист1!B953","v":"Волошин Сергій Миколайович"},"Волошин Сергій Миколайович"]
[null,null,null,null,{"$f":"Лист1!B954","v":"Гладченко Денис Анатолійович"},"Гладченко Денис Анатолійович"]
[null,null,null,null,{"$f":"Лист1!B955","v":"Попова Світлана Петрівна"},"Попова Світлана Петрівна"]
[null,null,null,null,{"$f":"Лист1!B956","v":"Тищенко Любов Василівна"},"Тищенко Любов Василівна"]
[null,null,null,null,{"$f":"Лист1!B957","v":"Богуцька Тетяна Григорівна"},"Богуцька Тетяна Григорівна"]
[null,null,null,null,{"$f":"Лист1!B958","v":"Ніколаєв Ігор Михайлович"},"Ніколаєв Ігор Михайлович"]
[null,null,null,null,{"$f":"Лист1!B959","v":"Савін Максим Володимирович"},"Савін Максим Володимирович"]
[null,null,null,null,{"$f":"Лист1!B960","v":"Сидоренко Павло Дмитрович"},"Сидоренко Павло Дмитрович"]
[null,null,null,null,{"$f":"Лист1!B961","v":"Полонський Анатолій Леонідович"},"Полонський Анатолій Леонідович"]
[null,null,null,null,{"$f":"Лист1!B962","v":"Светличний Сергій Сергійович"},"Светличний Сергій Сергійович"]
[null,null,null,null,{"$f":"Лист1!B963","v":"Чернов Віктор Наумович"},"Чернов Віктор Наумович"]
[null,null,null,null,{"$f":"Лист1!B964","v":"Мунтян Микола Леонідович"},"Мунтян Микола Леонідович"]
[null,null,null,null,{"$f":"Лист1!B965","v":"Косар Василина Петрівна"},"Косар Василина Петрівна"]
[null,null,null,null,{"$f":"Лист1!B966","v":"Хворостецький Юрій Володимирович"},"Хворостецький Юрій Володимирович"]
[null,null,null,null,{"$f":"Лист1!B967","v":"Галабурда Сергій Васильович"},"Галабурда Сергій Васильович"]
[null,null,null,null,{"$f":"Лист1!B968","v":"Маслінков Вячеслав Степанович"},"Маслінков Вячеслав Степанович"]
[null,null,null,null,{"$f":"Лист1!B969","v":"Кременюк Дмитро Юрійович"},"Кременюк Дмитро Юрійович"]
[null,null,null,null,{"$f":"Лист1!B970","v":"Іщенко Ірина Григорівна"},"Іщенко Ірина Григорівна"]
[null,null,null,null,{"$f":"Лист1!B971","v":"Мельниченко Володимир Олександрович"},"Мельниченко Володимир Олександрович"]
[null,null,null,null,{"$f":"Лист1!B972","v":"Мацько Олег Вікторович"},"Мацько Олег Вікторович"]
[null,null,null,null,{"$f":"Лист1!B973","v":"Ажидар'ян Віталій Вікторович"},"Ажидар'ян Віталій Вікторович"]
[null,null,null,null,{"$f":"Лист1!B974","v":"Лісішин Андрій Вікторович"},"Лісішин Андрій Вікторович"]
[null,null,null,null,{"$f":"Лист1!B975","v":"Доні Олена Іванівна"},"Доні Олена Іванівна"]
[null,null,null,null,{"$f":"Лист1!B976","v":"Гавриленко Ольга Артурівна"},"Гавриленко Ольга Артурівна"]
[null,null,null,null,{"$f":"Лист1!B977","v":"Караянєв Вадим Дмитрович"},"Караянєв Вадим Дмитрович"]
[null,null,null,null,{"$f":"Лист1!B978","v":"Бойко Лариса Анатоліївна"},"Бойко Лариса Анатоліївна"]
[null,null,null,null,{"$f":"Лист1!B979","v":"Добронравов Олександр Юрійович"},"Добронравов Олександр Юрійович"]
[null,null,null,null,{"$f":"Лист1!B980","v":"Кіскін Павло Іванович"},"Кіскін Павло Іванович"]
[null,null,null,null,{"$f":"Лист1!B981","v":"Микулич Віталій Ярославович"},"Микулич Віталій Ярославович"]
[null,null,null,null,{"$f":"Лист1!B982","v":"Марущенко Вадим Валерійович"},"Марущенко Вадим Валерійович"]
[null,null,null,null,{"$f":"Лист1!B983","v":"Маркан Наталія Василівна"},"Маркан Наталія Василівна"]
[null,null,null,null,{"$f":"Лист1!B984","v":"Романюк Вероніка Миколаївна"},"Романюк Вероніка Миколаївна"]
[null,null,null,null,{"$f":"Лист1!B985","v":"Голікова Світлана Василівна"},"Голікова Світлана Василівна"]
[null,null,null,null,{"$f":"Лист1!B986","v":"Янін Сергій Олександрович"},"Янін Сергій Олександрович"]
[null,null,null,null,{"$f":"Лист1!B987","v":"Ганіч Ірина Олександрівна"},"Ганіч Ірина Олександрівна"]
[null,null,null,null,{"$f":"Лист1!B988","v":"Влах Віра Федорівна"},"Влах Віра Федорівна"]
[null,null,null,null,{"$f":"Лист1!B989","v":"Целіщева Світлана Франківна"},"Целіщева Світлана Франківна"]
[null,null,null,null,{"$f":"Лист1!B990","v":"Бобров Володимир Віталійович"},"Бобров Володимир Віталійович"]
[null,null,null,null,{"$f":"Лист1!B991","v":"Барсуков Олексій Сергійович"},"Барсуков Олексій Сергійович"]
[null,null,null,null,{"$f":"Лист1!B992","v":"Калиніченко Валерій Григорович"},"Калиніченко Валерій Григорович"]
[null,null,null,null,{"$f":"Лист1!B993","v":"Фатєєва Тетяна Опанасівна"},"Фатєєва Тетяна Опанасівна"]
[null,null,null,null,{"$f":"Лист1!B994","v":"Агапова Людмила Сергіївна"},"Агапова Людмила Сергіївна"]
[null,null,null,null,{"$f":"Лист1!B995","v":"Бурдюжа Олег Петрович"},"Бурдюжа Олег Петрович"]
[null,null,null,null,{"$f":"Лист1!B996","v":"Івасько Павло Дмитрович"},"Івасько Павло Дмитрович"]
[null,null,null,null,{"$f":"Лист1!B997","v":"Комнатний Іван Іванович"},"Комнатний Іван Іванович"]
[null,null,null,null,{"$f":"Лист1!B998","v":"Мягкий Юрій Андрійович"},"Мягкий Юрій Андрійович"]
[null,null,null,null,{"$f":"Лист1!B999","v":"Герасімов Руслан Володимирович"},"Герасімов Руслан Володимирович"]
[null,null,null,null,{"$f":"Лист1!B1000","v":"Зелінський Володимир Вікторович"},"Зелінський Володимир Вікторович"]
[null,null,null,null,{"$f":"Лист1!B1001","v":"Шкільнюк Юліана Олександрівна"},"Шкільнюк Юліана Олександрівна"]
[null,null,null,null,{"$f":"Лист1!B1002","v":"Валевська Ганна Миколаївна"},"Валевська Ганна Миколаївна"]
[null,null,null,null,{"$f":"Лист1!B1003","v":"Корчинська Ольга Олександрівна"},"Корчинська Ольга Олександрівна"]
[null,null,null,null,{"$f":"Лист1!B1004","v":"Іздепський Ігор Юрійович"},"Іздепський Ігор Юрійович"]
[null,null,null,null,{"$f":"Лист1!B1005","v":"Кафтан Микола Григорович"},"Кафтан Микола Григорович"]
[null,null,null,null,{"$f":"Лист1!B1006","v":"Бондаренко Андрій Валерійович"},"Бондаренко Андрій Валерійович"]
[null,null,null,null,{"$f":"Лист1!B1007","v":"Хамінець Світлана Анатоліївна"},"Хамінець Світлана Анатоліївна"]
[null,null,null,null,{"$f":"Лист1!B1008","v":"Касьян Вікторія Сергіївна"},"Касьян Вікторія Сергіївна"]
[null,null,null,null,{"$f":"Лист1!B1009","v":"Мельников Сергій Валентинович"},"Мельников Сергій Валентинович"]
[null,null,null,null,{"$f":"Лист1!B1010","v":"Кузнецова Інга Петрівна"},"Кузнецова Інга Петрівна"]
[null,null,null,null,{"$f":"Лист1!B1011","v":"Денисенко Галина Олександрівна"},"Денисенко Галина Олександрівна"]
[null,null,null,null,{"$f":"Лист1!B1012","v":"Грінченко Ігор Петрович"},"Грінченко Ігор Петрович"]
[null,null,null,null,{"$f":"Лист1!B1013","v":"Краснова Тамара Анатоліївна"},"Краснова Тамара Анатоліївна"]
[null,null,null,null,{"$f":"Лист1!B1014","v":"Ртвеладзе Ігор Георгійович"},"Ртвеладзе Ігор Георгійович"]
[null,null,null,null,{"$f":"Лист1!B1015","v":"Задворний Роман Павлович"},"Задворний Роман Павлович"]
[null,null,null,null,{"$f":"Лист1!B1016","v":"Осипов Костянтин Володимирович"},"Осипов Костянтин Володимирович"]
[null,null,null,null,{"$f":"Лист1!B1017","v":"Герасименко Алла Іванівна"},"Герасименко Алла Іванівна"]
[null,null,null,null,{"$f":"Лист1!B1018","v":"Кобилинський Денис Сергійович"},"Кобилинський Денис Сергійович"]
[null,null,null,null,{"$f":"Лист1!B1019","v":"Алієв Бахшеїш Рагім Огли"},"Алієв Бахшеїш Рагім Огли"]
[null,null,null,null,{"$f":"Лист1!B1020","v":"Риндич Людмила Валентинівна"},"Риндич Людмила Валентинівна"]
[null,null,null,null,{"$f":"Лист1!B1021","v":"Коренюк Віталій Петрович"},"Коренюк Віталій Петрович"]
[null,null,null,null,{"$f":"Лист1!B1022","v":"Комар Анатолій Михайлович"},"Комар Анатолій Михайлович"]
[null,null,null,null,{"$f":"Лист1!B1023","v":"Грозов Федір Дмитрович"},"Грозов Федір Дмитрович"]
[null,null,null,null,{"$f":"Лист1!B1024","v":"Панасовська Людмила Миколаївна"},"Панасовська Людмила Миколаївна"]
[null,null,null,null,{"$f":"Лист1!B1025","v":"Французан Олександр Миколайович"},"Французан Олександр Миколайович"]
[null,null,null,null,{"$f":"Лист1!B1026","v":"Кара Андрій Йосипович"},"Кара Андрій Йосипович"]
[null,null,null,null,{"$f":"Лист1!B1027","v":"Фардигола Галина Олексіївна"},"Фардигола Галина Олексіївна"]
[null,null,null,null,{"$f":"Лист1!B1028","v":"Авраменко Костянтин Сергійович"},"Авраменко Костянтин Сергійович"]
[null,null,null,null,{"$f":"Лист1!B1029","v":"Ткаченко Віктор Миколайович"},"Ткаченко Віктор Миколайович"]
[null,null,null,null,{"$f":"Лист1!B1030","v":"Мельник Олександр Євгенійович"},"Мельник Олександр Євгенійович"]
[null,null,null,null,{"$f":"Лист1!B1031","v":"Мальський Валентин Миколайович"},"Мальський Валентин Миколайович"]
[null,null,null,null,{"$f":"Лист1!B1032","v":"Дмитрик Ольга Антонівна"},"Дмитрик Ольга Антонівна"]
[null,null,null,null,{"$f":"Лист1!B1033","v":"Челак Семіон Петрович"},"Челак Семіон Петрович"]
[null,null,null,null,{"$f":"Лист1!B1034","v":"Горбач Денис Сергійович"},"Горбач Денис Сергійович"]
[null,null,null,null,{"$f":"Лист1!B1035","v":"Палійчук Аліна Павлівна"},"Палійчук Аліна Павлівна"]
[null,null,null,null,{"$f":"Лист1!B1036","v":"Дєєв Володимир Васильович"},"Дєєв Володимир Васильович"]
[null,null,null,null,{"$f":"Лист1!B1037","v":"Сухачова Зоя Олександрівна"},"Сухачова Зоя Олександрівна"]
[null,null,null,null,{"$f":"Лист1!B1038","v":"Веремеєнко Аркадій Леонідович"},"Веремеєнко Аркадій Леонідович"]
[null,null,null,null,{"$f":"Лист1!B1039","v":"Негруца Степан Якович"},"Негруца Степан Якович"]
[null,null,null,null,{"$f":"Лист1!B1040","v":"Красножон Євген Олександрович"},"Красножон Євген Олександрович"]
[null,null,null,null,{"$f":"Лист1!B1041","v":"Івасько Павло Дмитрович"},"Івасько Павло Дмитрович"]
[null,null,null,null,{"$f":"Лист1!B1042","v":"Грибенюк Олена Олексіївна"},"Грибенюк Олена Олексіївна"]
[null,null,null,null,{"$f":"Лист1!B1043","v":"Пачева Ольга Олексіївна"},"Пачева Ольга Олексіївна"]
[null,null,null,null,{"$f":"Лист1!B1044","v":"Ганчев Петро Васильович"},"Ганчев Петро Васильович"]
[null,null,null,null,{"$f":"Лист1!B1045","v":"Карпенко Дмитро Вячеславович"},"Карпенко Дмитро Вячеславович"]
[null,null,null,null,{"$f":"Лист1!B1046","v":"Михайлов Владислав Сергійович"},"Михайлов Владислав Сергійович"]
[null,null,null,null,{"$f":"Лист1!B1047","v":"Гоголь Оксана Вікторівна"},"Гоголь Оксана Вікторівна"]
[null,null,null,null,{"$f":"Лист1!B1048","v":"Бричак Леонід Олександрович"},"Бричак Леонід Олександрович"]
[null,null,null,null,{"$f":"Лист1!B1049","v":"Поліщук Людмила Іванівна"},"Поліщук Людмила Іванівна"]
[null,null,null,null,{"$f":"Лист1!B1050","v":"Добровольський Юрій Анатолійович"},"Добровольський Юрій Анатолійович"]
[null,null,null,null,{"$f":"Лист1!B1051","v":"Рославець Тамара Петрівна"},"Рославець Тамара Петрівна"]
[null,null,null,null,{"$f":"Лист1!B1052","v":"Гончарук Олександр Васильович"},"Гончарук Олександр Васильович"]
[null,null,null,null,{"$f":"Лист1!B1053","v":"Коцофляк Олександр Васильович"},"Коцофляк Олександр Васильович"]
[null,null,null,null,{"$f":"Лист1!B1054","v":"Чернявський Андрій Петрович"},"Чернявський Андрій Петрович"]
[null,null,null,null,{"$f":"Лист1!B1055","v":"Славов Микола Ананійович"},"Славов Микола Ананійович"]
[null,null,null,null,{"$f":"Лист1!B1056","v":"Войчишен Олександр Ананійович"},"Войчишен Олександр Ананійович"]
[null,null,null,null,{"$f":"Лист1!B1057","v":"Лазикін Віталій Анатолійович"},"Лазикін Віталій Анатолійович"]
[null,null,null,null,{"$f":"Лист1!B1058","v":"Лінкевич Дмитро Вікторович"},"Лінкевич Дмитро Вікторович"]
[null,null,null,null,{"$f":"Лист1!B1059","v":"Сіраковська Таїсія Володимирівна"},"Сіраковська Таїсія Володимирівна"]
[null,null,null,null,{"$f":"Лист1!B1060","v":"Шкуратов Михайло Вікторович"},"Шкуратов Михайло Вікторович"]
[null,null,null,null,{"$f":"Лист1!B1061","v":"Паюл Георгій Олексійович"},"Паюл Георгій Олексійович"]
[null,null,null,null,{"$f":"Лист1!B1062","v":"Ольхова Наталія Петрівна"},"Ольхова Наталія Петрівна"]
[null,null,null,null,{"$f":"Лист1!B1063","v":"Левицький Василь Вікторович"},"Левицький Василь Вікторович"]
[null,null,null,null,{"$f":"Лист1!B1064","v":"Малецька Світлана Леонідівна"},"Малецька Світлана Леонідівна"]
[null,null,null,null,{"$f":"Лист1!B1065","v":"Орлюк Олег В'ячеславович"},"Орлюк Олег В'ячеславович"]
[null,null,null,null,{"$f":"Лист1!B1066","v":"Терзіогло Лілія Едипівна"},"Терзіогло Лілія Едипівна"]
[null,null,null,null,{"$f":"Лист1!B1067","v":"Русескул Раїса Петрівна"},"Русескул Раїса Петрівна"]
[null,null,null,null,{"$f":"Лист1!B1068","v":"Дукова Олена Георгіївна"},"Дукова Олена Георгіївна"]
[null,null,null,null,{"$f":"Лист1!B1069","v":"Балашенко Роман Олександрович"},"Балашенко Роман Олександрович"]
[null,null,null,null,{"$f":"Лист1!B1070","v":"Савчук Іван Анатолійович"},"Савчук Іван Анатолійович"]
[null,null,null,null,{"$f":"Лист1!B1071","v":"Бондар Віктор Миколайович"},"Бондар Віктор Миколайович"]
[null,null,null,null,{"$f":"Лист1!B1072","v":"Горбуненко Костянтин Олегович"},"Горбуненко Костянтин Олегович"]
[null,null,null,null,{"$f":"Лист1!B1073","v":"Мелешак Олександр Петрович"},"Мелешак Олександр Петрович"]
[null,null,null,null,{"$f":"Лист1!B1074","v":"Студницький Едуард Леонідович"},"Студницький Едуард Леонідович"]
[null,null,null,null,{"$f":"Лист1!B1075","v":"Пушкіна Валентина Іванівна"},"Пушкіна Валентина Іванівна"]
[null,null,null,null,{"$f":"Лист1!B1076","v":"Єфрем Раїса Дмитрівна"},"Єфрем Раїса Дмитрівна"]
[null,null,null,null,{"$f":"Лист1!B1077","v":"Гапчук Андрій Анатолійович"},"Гапчук Андрій Анатолійович"]
[null,null,null,null,{"$f":"Лист1!B1078","v":"Воропай Світлана Анатоліївна"},"Воропай Світлана Анатоліївна"]
[null,null,null,null,{"$f":"Лист1!B1079","v":"Кудря Світлана Вікторівна"},"Кудря Світлана Вікторівна"]
[null,null,null,null,{"$f":"Лист1!B1080","v":"Щербина Олексій Ігорович"},"Щербина Олексій Ігорович"]
[null,null,null,null,{"$f":"Лист1!B1081","v":"Верченко Максим Сергійович"},"Верченко Максим Сергійович"]
[null,null,null,null,{"$f":"Лист1!B1082","v":"Нікольнікова Євгенія Володимирівна"},"Нікольнікова Євгенія Володимирівна"]
[null,null,null,null,{"$f":"Лист1!B1083","v":"Губар Людмила Іванівна"},"Губар Людмила Іванівна"]
[null,null,null,null,{"$f":"Лист1!B1084","v":"Шимко Олексій Віталійович"},"Шимко Олексій Віталійович"]
[null,null,null,null,{"$f":"Лист1!B1085","v":"Кузнєцов Анатолій Євдокимович"},"Кузнєцов Анатолій Євдокимович"]
[null,null,null,null,{"$f":"Лист1!B1086","v":"Сімова Ольга Михайлівна"},"Сімова Ольга Михайлівна"]
[null,null,null,null,{"$f":"Лист1!B1087","v":"Швечкова Наталія Валеріївна"},"Швечкова Наталія Валеріївна"]
[null,null,null,null,{"$f":"Лист1!B1088","v":"Звіжинський Роман Степанович"},"Звіжинський Роман Степанович"]
[null,null,null,null,{"$f":"Лист1!B1089","v":"Тютюник Юрій Олексійович"},"Тютюник Юрій Олексійович"]
[null,null,null,null,{"$f":"Лист1!B1090","v":"Кіртока Олександр Федорович"},"Кіртока Олександр Федорович"]
[null,null,null,null,{"$f":"Лист1!B1091","v":"Данилюк Людмила Станіславівна"},"Данилюк Людмила Станіславівна"]
[null,null,null,null,{"$f":"Лист1!B1092","v":"Лунькова Катерина Михайлівна"},"Лунькова Катерина Михайлівна"]
[null,null,null,null,{"$f":"Лист1!B1093","v":"Гузь Олександр Євгенович"},"Гузь Олександр Євгенович"]
[null,null,null,null,{"$f":"Лист1!B1094","v":"Артеменко Руслан Юрійович"},"Артеменко Руслан Юрійович"]
[null,null,null,null,{"$f":"Лист1!B1095","v":"Дума Олена Федорівна"},"Дума Олена Федорівна"]
[null,null,null,null,{"$f":"Лист1!B1096","v":"Берчанська Світлана Павлівна"},"Берчанська Світлана Павлівна"]
[null,null,null,null,{"$f":"Лист1!B1097","v":"Платонова Тетяна Іванівна"},"Платонова Тетяна Іванівна"]
[null,null,null,null,{"$f":"Лист1!B1098","v":"Нечепуренко Олег Володимирович"},"Нечепуренко Олег Володимирович"]
[null,null,null,null,{"$f":"Лист1!B1099","v":"Сандул Євгеній Миколайович"},"Сандул Євгеній Миколайович"]
[null,null,null,null,{"$f":"Лист1!B1100","v":"Педченко Інна Миколаївна"},"Педченко Інна Миколаївна"]
[null,null,null,null,{"$f":"Лист1!B1101","v":"Наумова Тетяна Євгеніївна"},"Наумова Тетяна Євгеніївна"]
[null,null,null,null,{"$f":"Лист1!B1102","v":"Ціхольський Валентин Антонович"},"Ціхольський Валентин Антонович"]
[null,null,null,null,{"$f":"Лист1!B1103","v":"Романов Микола Миколайович"},"Романов Микола Миколайович"]
[null,null,null,null,{"$f":"Лист1!B1104","v":"Андронік Любов Віталіївна"},"Андронік Любов Віталіївна"]
[null,null,null,null,{"$f":"Лист1!B1105","v":"Донець Анатолій Леонідович"},"Донець Анатолій Леонідович"]
[null,null,null,null,{"$f":"Лист1!B1106","v":"Кейбаш Федір Петрович"},"Кейбаш Федір Петрович"]
[null,null,null,null,{"$f":"Лист1!B1107","v":"Кочман Олег Іванович"},"Кочман Олег Іванович"]
[null,null,null,null,{"$f":"Лист1!B1108","v":"Боренко Сергій Володимирович"},"Боренко Сергій Володимирович"]
[null,null,null,null,{"$f":"Лист1!B1109","v":"Фомін Михайло Вікторович"},"Фомін Михайло Вікторович"]
[null,null,null,null,{"$f":"Лист1!B1110","v":"Бібік Ксенія Максимівна"},"Бібік Ксенія Максимівна"]
[null,null,null,null,{"$f":"Лист1!B1111","v":"Поліщук Сергій Іванович"},"Поліщук Сергій Іванович"]
[null,null,null,null,{"$f":"Лист1!B1112","v":"Караіван Олег Ілліч"},"Караіван Олег Ілліч"]
[null,null,null,null,{"$f":"Лист1!B1113","v":"Логінов Антон Олексійович"},"Логінов Антон Олексійович"]
[null,null,null,null,{"$f":"Лист1!B1114","v":"Мельник Вадим Олександрович"},"Мельник Вадим Олександрович"]
[null,null,null,null,{"$f":"Лист1!B1115","v":"Безродний Сергій Валентинович"},"Безродний Сергій Валентинович"]
[null,null,null,null,{"$f":"Лист1!B1116","v":"Зуб Олександр Євгенович"},"Зуб Олександр Євгенович"]
[null,null,null,null,{"$f":"Лист1!B1117","v":"Станчук Петро Георгійович"},"Станчук Петро Георгійович"]
[null,null,null,null,{"$f":"Лист1!B1118","v":"Сафончик Іван Васильович"},"Сафончик Іван Васильович"]
[null,null,null,null,{"$f":"Лист1!B1119","v":"Дука Тамара Павлівна"},"Дука Тамара Павлівна"]
[null,null,null,null,{"$f":"Лист1!B1120","v":"Савченко Юрій Юрійович"},"Савченко Юрій Юрійович"]
[null,null,null,null,{"$f":"Лист1!B1121","v":"Чупілка Олена Володимирівна"},"Чупілка Олена Володимирівна"]
[null,null,null,null,{"$f":"Лист1!B1122","v":"Кушнеренко Олександр Михайлович"},"Кушнеренко Олександр Михайлович"]
[null,null,null,null,{"$f":"Лист1!B1123","v":"Полінгер Володимир Саульович"},"Полінгер Володимир Саульович"]
[null,null,null,null,{"$f":"Лист1!B1124","v":"Носков Олександр Борисович"},"Носков Олександр Борисович"]
[null,null,null,null,{"$f":"Лист1!B1125","v":"Паровик Олена Трохимівна"},"Паровик Олена Трохимівна"]
[null,null,null,null,{"$f":"Лист1!B1126","v":"Басанець Ганна Сергіївна"},"Басанець Ганна Сергіївна"]
[null,null,null,null,{"$f":"Лист1!B1127","v":"Россомаха Людмила Миколаївна"},"Россомаха Людмила Миколаївна"]
[null,null,null,null,{"$f":"Лист1!B1128","v":"Кучурке Максим Максимович"},"Кучурке Максим Максимович"]
[null,null,null,null,{"$f":"Лист1!B1129","v":"Кривунець Дем'ян Олександрович"},"Кривунець Дем'ян Олександрович"]
[null,null,null,null,{"$f":"Лист1!B1130","v":"Собко Віталій Євгенович"},"Собко Віталій Євгенович"]
[null,null,null,null,{"$f":"Лист1!B1131","v":"Погойдаш Олександр Петрович"},"Погойдаш Олександр Петрович"]
[null,null,null,null,{"$f":"Лист1!B1132","v":"Непейцев Василь Миколайович"},"Непейцев Василь Миколайович"]
[null,null,null,null,{"$f":"Лист1!B1133","v":"Єремьянц Борис Григорович"},"Єремьянц Борис Григорович"]
[null,null,null,null,{"$f":"Лист1!B1134","v":"Анікеєв Юрій Миколайович"},"Анікеєв Юрій Миколайович"]
[null,null,null,null,{"$f":"Лист1!B1135","v":"Сума Олексій Олексійович"},"Сума Олексій Олексійович"]
[null,null,null,null,{"$f":"Лист1!B1136","v":"Жовтобрюх Вадим Володимирович"},"Жовтобрюх Вадим Володимирович"]
[null,null,null,null,{"$f":"Лист1!B1137","v":"Злотеско Іван Михайлович"},"Злотеско Іван Михайлович"]
[null,null,null,null,{"$f":"Лист1!B1138","v":"Козловський Олексій Вікторович"},"Козловський Олексій Вікторович"]
[null,null,null,null,{"$f":"Лист1!B1139","v":"Федорін Денис Михайлович"},"Федорін Денис Михайлович"]
[null,null,null,null,{"$f":"Лист1!B1140","v":"Полянський Валентин Вікторович"},"Полянський Валентин Вікторович"]
[null,null,null,null,{"$f":"Лист1!B1141","v":"Радченко Павло Іванович"},"Радченко Павло Іванович"]
[null,null,null,null,{"$f":"Лист1!B1142","v":"Стрижак Ольга Григорівна"},"Стрижак Ольга Григорівна"]
[null,null,null,null,{"$f":"Лист1!B1143","v":"Капітан Василь Сергійович"},"Капітан Василь Сергійович"]
[null,null,null,null,{"$f":"Лист1!B1144","v":"Машанов Олег Васильович"},"Машанов Олег Васильович"]
[null,null,null,null,{"$f":"Лист1!B1145","v":"Колісніченко Вадим Миколайович"},"Колісніченко Вадим Миколайович"]
[null,null,null,null,{"$f":"Лист1!B1146","v":"Слєпцов Ігор Миколайович"},"Слєпцов Ігор Миколайович"]
[null,null,null,null,{"$f":"Лист1!B1147","v":"Іщук Артем Сергійович"},"Іщук Артем Сергійович"]
[null,null,null,null,{"$f":"Лист1!B1148","v":"Семчук Оксана Анатоліївна"},"Семчук Оксана Анатоліївна"]
[null,null,null,null,{"$f":"Лист1!B1149","v":"Демчишина Лариса Сергіївна"},"Демчишина Лариса Сергіївна"]
[null,null,null,null,{"$f":"Лист1!B1150","v":"Будугай Любов Романівна"},"Будугай Любов Романівна"]
[null,null,null,null,{"$f":"Лист1!B1151","v":"Непомящий Юрій Миколайович"},"Непомящий Юрій Миколайович"]
[null,null,null,null,{"$f":"Лист1!B1152","v":"Албул Олексій Васильович"},"Албул Олексій Васильович"]
[null,null,null,null,{"$f":"Лист1!B1153","v":"Матвєєв Віктор Вікторович"},"Матвєєв Віктор Вікторович"]
[null,null,null,null,{"$f":"Лист1!B1154","v":"Сімчук Євген Ігорович"},"Сімчук Євген Ігорович"]
[null,null,null,null,{"$f":"Лист1!B1155","v":"Алєксєєв Андрій Вікторович"},"Алєксєєв Андрій Вікторович"]
[null,null,null,null,{"$f":"Лист1!B1156","v":"Седенко Олександр Ігорович"},"Седенко Олександр Ігорович"]
[null,null,null,null,{"$f":"Лист1!B1157","v":"Бондаренко Артур Анатолійович"},"Бондаренко Артур Анатолійович"]
[null,null,null,null,{"$f":"Лист1!B1158","v":"Стовман Олександр Віталійович"},"Стовман Олександр Віталійович"]
[null,null,null,null,{"$f":"Лист1!B1159","v":"Остапчук Максим Володимирович"},"Остапчук Максим Володимирович"]
[null,null,null,null,{"$f":"Лист1!B1160","v":"Катихіна Лариса Миколаївна"},"Катихіна Лариса Миколаївна"]
[null,null,null,null,{"$f":"Лист1!B1161","v":"Лукін Олександр Сергійович"},"Лукін Олександр Сергійович"]
[null,null,null,null,{"$f":"Лист1!B1162","v":"Хаджи Вероніка Михайлівна"},"Хаджи Вероніка Михайлівна"]
[null,null,null,null,{"$f":"Лист1!B1163","v":"Урсул Олена Олександрівна"},"Урсул Олена Олександрівна"]
[null,null,null,null,{"$f":"Лист1!B1164","v":"Кудряков Віталій Іванович"},"Кудряков Віталій Іванович"]
[null,null,null,null,{"$f":"Лист1!B1165","v":"Прушинський Олександр Васильович"},"Прушинський Олександр Васильович"]
[null,null,null,null,{"$f":"Лист1!B1166","v":"Найбауер Ганна Григорівна"},"Найбауер Ганна Григорівна"]
[null,null,null,null,{"$f":"Лист1!B1167","v":"Нестерова Людмила Іванівна"},"Нестерова Людмила Іванівна"]
[null,null,null,null,{"$f":"Лист1!B1168","v":"Літянський Віталій Вікторович"},"Літянський Віталій Вікторович"]
[null,null,null,null,{"$f":"Лист1!B1169","v":"Стоянов Сергій Михайлович"},"Стоянов Сергій Михайлович"]
[null,null,null,null,{"$f":"Лист1!B1170","v":"Здоровцов Ігор Павлович"},"Здоровцов Ігор Павлович"]
[null,null,null,null,{"$f":"Лист1!B1171","v":"Алачева Домнікія Георгіївна"},"Алачева Домнікія Георгіївна"]
[null,null,null,null,{"$f":"Лист1!B1172","v":"Утємішева Ірина Анатоліївна"},"Утємішева Ірина Анатоліївна"]
[null,null,null,null,{"$f":"Лист1!B1173","v":"Кошева Олена Василівна"},"Кошева Олена Василівна"]
[null,null,null,null,{"$f":"Лист1!B1174","v":"Притула Галина Анатоліївна"},"Притула Галина Анатоліївна"]
[null,null,null,null,{"$f":"Лист1!B1175","v":"Бондаренко Тетяна Федорівна"},"Бондаренко Тетяна Федорівна"]
[null,null,null,null,{"$f":"Лист1!B1176","v":"Шпаковський Микола Володимирович"},"Шпаковський Микола Володимирович"]
[null,null,null,null,{"$f":"Лист1!B1177","v":"Рибальченко Юрій Борисович"},"Рибальченко Юрій Борисович"]
[null,null,null,null,{"$f":"Лист1!B1178","v":"Приймак Олександр Васильович"},"Приймак Олександр Васильович"]
[null,null,null,null,{"$f":"Лист1!B1179","v":"Стадніков Костянтин Юрійович"},"Стадніков Костянтин Юрійович"]
[null,null,null,null,{"$f":"Лист1!B1180","v":"Гнатюк Денис Васильович"},"Гнатюк Денис Васильович"]
[null,null,null,null,{"$f":"Лист1!B1181","v":"Попозогло Ольга Панасівна"},"Попозогло Ольга Панасівна"]
[null,null,null,null,{"$f":"Лист1!B1182","v":"Басараб Ілля Ілліч"},"Басараб Ілля Ілліч"]
[null,null,null,null,{"$f":"Лист1!B1183","v":"Гришагіна Ілона Андріївна"},"Гришагіна Ілона Андріївна"]
[null,null,null,null,{"$f":"Лист1!B1184","v":"Юр'єва Тетяна Володимирівна"},"Юр'єва Тетяна Володимирівна"]
[null,null,null,null,{"$f":"Лист1!B1185","v":"Суховатий Віктор Олександрович"},"Суховатий Віктор Олександрович"]
[null,null,null,null,{"$f":"Лист1!B1186","v":"Аканін Ігор Юрійович"},"Аканін Ігор Юрійович"]
[null,null,null,null,{"$f":"Лист1!B1187","v":"Попазов Іван Дмитрович"},"Попазов Іван Дмитрович"]
[null,null,null,null,{"$f":"Лист1!B1188","v":"Пирожанський Віталій Володимирович"},"Пирожанський Віталій Володимирович"]
[null,null,null,null,{"$f":"Лист1!B1189","v":"Боржицька Людмила Олександрівна"},"Боржицька Людмила Олександрівна"]
[null,null,null,null,{"$f":"Лист1!B1190","v":"Резник Світлана Олександрівна"},"Резник Світлана Олександрівна"]
[null,null,null,null,{"$f":"Лист1!B1191","v":"Захарчук Аксенія Митрофанівна"},"Захарчук Аксенія Митрофанівна"]
[null,null,null,null,{"$f":"Лист1!B1192","v":"Зуб Олександр Валерійович"},"Зуб Олександр Валерійович"]
[null,null,null,null,{"$f":"Лист1!B1193","v":"Ніколаєва Олена Василівна"},"Ніколаєва Олена Василівна"]
[null,null,null,null,{"$f":"Лист1!B1194","v":"Жиганюк Руслан Олександрович"},"Жиганюк Руслан Олександрович"]
[null,null,null,null,{"$f":"Лист1!B1195","v":"Коржов Василь Юрійович"},"Коржов Василь Юрійович"]
[null,null,null,null,{"$f":"Лист1!B1196","v":"Озерова Наталія  Георгіївна"},"Озерова Наталія  Георгіївна"]
[null,null,null,null,{"$f":"Лист1!B1197","v":"Новак Максим Васильович"},"Новак Максим Васильович"]
[null,null,null,null,{"$f":"Лист1!B1198","v":"Лисюк Ірина Анатоліївна"},"Лисюк Ірина Анатоліївна"]
[null,null,null,null,{"$f":"Лист1!B1199","v":"Дмитрієв Андрій Юрійович"},"Дмитрієв Андрій Юрійович"]
[null,null,null,null,{"$f":"Лист1!B1200","v":"Процепов Олексій Володимирович"},"Процепов Олексій Володимирович"]
[null,null,null,null,{"$f":"Лист1!B1201","v":"Поліщук Едуард Митрофанович"},"Поліщук Едуард Митрофанович"]
[null,null,null,null,{"$f":"Лист1!B1202","v":"Левчук Олександр Анатолійович"},"Левчук Олександр Анатолійович"]
[null,null,null,null,{"$f":"Лист1!B1203","v":"Тітов Сергій Іванович"},"Тітов Сергій Іванович"]
[null,null,null,null,{"$f":"Лист1!B1204","v":"Федотова Любов Євгенівна"},"Федотова Любов Євгенівна"]
[null,null,null,null,{"$f":"Лист1!B1205","v":"Кирейченко Олександр Олександрович"},"Кирейченко Олександр Олександрович"]
[null,null,null,null,{"$f":"Лист1!B1206","v":"Мельниченко Микола Федорович"},"Мельниченко Микола Федорович"]
[null,null,null,null,{"$f":"Лист1!B1207","v":"Закревська Ірина Володимирівна"},"Закревська Ірина Володимирівна"]
[null,null,null,null,{"$f":"Лист1!B1208","v":"Морозовська Людмила Юріївна"},"Морозовська Людмила Юріївна"]
[null,null,null,null,{"$f":"Лист1!B1209","v":"Кривоберець Максим Миколайович"},"Кривоберець Максим Миколайович"]
[null,null,null,null,{"$f":"Лист1!B1210","v":"Коваленко Валерій Васильович"},"Коваленко Валерій Васильович"]
[null,null,null,null,{"$f":"Лист1!B1211","v":"Вишневський Сергій Олександрович"},"Вишневський Сергій Олександрович"]
[null,null,null,null,{"$f":"Лист1!B1212","v":"Мурадов Геркулес Герасимович"},"Мурадов Геркулес Герасимович"]
[null,null,null,null,{"$f":"Лист1!B1213","v":"Овчаренко Сергій Іванович"},"Овчаренко Сергій Іванович"]
[null,null,null,null,{"$f":"Лист1!B1214","v":"Новосадова Альона Володимирівна"},"Новосадова Альона Володимирівна"]
[null,null,null,null,{"$f":"Лист1!B1215","v":"Кузь Валентин Григорович"},"Кузь Валентин Григорович"]
[null,null,null,null,{"$f":"Лист1!B1216","v":"Сендик Олег Олександрович"},"Сендик Олег Олександрович"]
[null,null,null,null,{"$f":"Лист1!B1217","v":"Коржинський Василь Миколайович"},"Коржинський Василь Миколайович"]
[null,null,null,null,{"$f":"Лист1!B1218","v":"Мовчан Валерій Іванович"},"Мовчан Валерій Іванович"]
[null,null,null,null,{"$f":"Лист1!B1219","v":"Шудрак Ігор Юрійович"},"Шудрак Ігор Юрійович"]
[null,null,null,null,{"$f":"Лист1!B1220","v":"Антіпов Євген Вікторович"},"Антіпов Євген Вікторович"]
[null,null,null,null,{"$f":"Лист1!B1221","v":"Онищенко Василь Михайлович"},"Онищенко Василь Михайлович"]
[null,null,null,null,{"$f":"Лист1!B1222","v":"Рингач Наталя Валеріївна"},"Рингач Наталя Валеріївна"]
[null,null,null,null,{"$f":"Лист1!B1223","v":"Дімов Іван Іванович"},"Дімов Іван Іванович"]
[null,null,null,null,{"$f":"Лист1!B1224","v":"Михайлова Світлана Георгіївна"},"Михайлова Світлана Георгіївна"]
[null,null,null,null,{"$f":"Лист1!B1225","v":"Вєлєва Світлана Павлівна"},"Вєлєва Світлана Павлівна"]
[null,null,null,null,{"$f":"Лист1!B1226","v":"Соломонюк Валерій Петрович"},"Соломонюк Валерій Петрович"]
[null,null,null,null,{"$f":"Лист1!B1227","v":"Ткач Ніна Авксентіївна"},"Ткач Ніна Авксентіївна"]
[null,null,null,null,{"$f":"Лист1!B1228","v":"Платонова Людмила Миколаївна"},"Платонова Людмила Миколаївна"]
[null,null,null,null,{"$f":"Лист1!B1229","v":"Триколич Наталія Вікторівна"},"Триколич Наталія Вікторівна"]
[null,null,null,null,{"$f":"Лист1!B1230","v":"Бєлоконь Марія Дмитрівна"},"Бєлоконь Марія Дмитрівна"]
[null,null,null,null,{"$f":"Лист1!B1231","v":"Пліханов Анатолій Олександрович"},"Пліханов Анатолій Олександрович"]
[null,null,null,null,{"$f":"Лист1!B1232","v":"Пащенко Сергій Вікторович"},"Пащенко Сергій Вікторович"]
[null,null,null,null,{"$f":"Лист1!B1233","v":"Рисований Віталій Володимирович"},"Рисований Віталій Володимирович"]
[null,null,null,null,{"$f":"Лист1!B1234","v":"Хлевний Олексій Валерійович"},"Хлевний Олексій Валерійович"]
[null,null,null,null,{"$f":"Лист1!B1235","v":"Тарасов Володимир Миколайович"},"Тарасов Володимир Миколайович"]
[null,null,null,null,{"$f":"Лист1!B1236","v":"Алєксєєнко Валентина Федорівна"},"Алєксєєнко Валентина Федорівна"]
[null,null,null,null,{"$f":"Лист1!B1237","v":"Тарасенко Любов Василівна"},"Тарасенко Любов Василівна"]
[null,null,null,null,{"$f":"Лист1!B1238","v":"Шляхтьонова Єлизавета Олександрівна"},"Шляхтьонова Єлизавета Олександрівна"]
[null,null,null,null,{"$f":"Лист1!B1239","v":"Перкун Надія Миколаївна"},"Перкун Надія Миколаївна"]
[null,null,null,null,{"$f":"Лист1!B1240","v":"Колесник Валентина Олексіївна"},"Колесник Валентина Олексіївна"]
[null,null,null,null,{"$f":"Лист1!B1241","v":"Мітітєлу Ростислав Андрійович"},"Мітітєлу Ростислав Андрійович"]
[null,null,null,null,{"$f":"Лист1!B1242","v":"Галущак Ігор Іванович"},"Галущак Ігор Іванович"]
[null,null,null,null,{"$f":"Лист1!B1243","v":"Чебан Олександр Володимирович"},"Чебан Олександр Володимирович"]
[null,null,null,null,{"$f":"Лист1!B1244","v":"Копач Олександр Іванович"},"Копач Олександр Іванович"]
[null,null,null,null,{"$f":"Лист1!B1245","v":"Дєлієргієв Петро Георгійович"},"Дєлієргієв Петро Георгійович"]
[null,null,null,null,{"$f":"Лист1!B1246","v":"Козьма Алла Петрівна"},"Козьма Алла Петрівна"]
[null,null,null,null,{"$f":"Лист1!B1247","v":"Чередніченко Зінаїда Іванівна"},"Чередніченко Зінаїда Іванівна"]
[null,null,null,null,{"$f":"Лист1!B1248","v":"Бабчук Сергій Михайлович"},"Бабчук Сергій Михайлович"]
[null,null,null,null,{"$f":"Лист1!B1249","v":"Святківський Сергій Андрійович"},"Святківський Сергій Андрійович"]
[null,null,null,null,{"$f":"Лист1!B1250","v":"Фурдуй Олександр Олександрович"},"Фурдуй Олександр Олександрович"]
[null,null,null,null,{"$f":"Лист1!B1251","v":"Моторний Вадим Дмитрович"},"Моторний Вадим Дмитрович"]
[null,null,null,null,{"$f":"Лист1!B1252","v":"Марку Максим Сергійович"},"Марку Максим Сергійович"]
[null,null,null,null,{"$f":"Лист1!B1253","v":"Білоус Володимир Олегович"},"Білоус Володимир Олегович"]
[null,null,null,null,{"$f":"Лист1!B1254","v":"Огороднік Ілля Михайлович"},"Огороднік Ілля Михайлович"]
[null,null,null,null,{"$f":"Лист1!B1255","v":"Павлюк Вячеслав Михайлович"},"Павлюк Вячеслав Михайлович"]
[null,null,null,null,{"$f":"Лист1!B1256","v":"Шимов Сергій Вікторович"},"Шимов Сергій Вікторович"]
[null,null,null,null,{"$f":"Лист1!B1257","v":"Лужанський В'ячеслав Ігорович"},"Лужанський В'ячеслав Ігорович"]
[null,null,null,null,{"$f":"Лист1!B1258","v":"Куличевський Андрій Євгенович"},"Куличевський Андрій Євгенович"]
[null,null,null,null,{"$f":"Лист1!B1259","v":"Попряга Іван Іванович"},"Попряга Іван Іванович"]
[null,null,null,null,{"$f":"Лист1!B1260","v":"Балабко Олександр Григорович"},"Балабко Олександр Григорович"]
[null,null,null,null,{"$f":"Лист1!B1261","v":"Біда Михайло Вікторович"},"Біда Михайло Вікторович"]
[null,null,null,null,{"$f":"Лист1!B1262","v":"Стоянов Федір Іванович"},"Стоянов Федір Іванович"]
[null,null,null,null,{"$f":"Лист1!B1263","v":"Шведенко Сергій Анатолійович"},"Шведенко Сергій Анатолійович"]
[null,null,null,null,{"$f":"Лист1!B1264","v":"Личак Костянтин Віталійович"},"Личак Костянтин Віталійович"]
[null,null,null,null,{"$f":"Лист1!B1265","v":"Зайцев Микола Валентинович"},"Зайцев Микола Валентинович"]
[null,null,null,null,{"$f":"Лист1!B1266","v":"Вихрист Світлана Володимирівна"},"Вихрист Світлана Володимирівна"]
[null,null,null,null,{"$f":"Лист1!B1267","v":"Матюшко Сергій Миколайович"},"Матюшко Сергій Миколайович"]
[null,null,null,null,{"$f":"Лист1!B1268","v":"Беліков Микола Олександрович"},"Беліков Микола Олександрович"]
[null,null,null,null,{"$f":"Лист1!B1269","v":"Станчева Віра Григорівна"},"Станчева Віра Григорівна"]
[null,null,null,null,{"$f":"Лист1!B1270","v":"Вітер Ольга Михайлівна"},"Вітер Ольга Михайлівна"]
[null,null,null,null,{"$f":"Лист1!B1271","v":"Олєйніченко Світлана Георгіївна"},"Олєйніченко Світлана Георгіївна"]
[null,null,null,null,{"$f":"Лист1!B1272","v":"Бенедіко Ігор Володимирович"},"Бенедіко Ігор Володимирович"]
[null,null,null,null,{"$f":"Лист1!B1273","v":"Козловський Сергій Олександрович"},"Козловський Сергій Олександрович"]
[null,null,null,null,{"$f":"Лист1!B1274","v":"Левицький Олександр Анатолійович"},"Левицький Олександр Анатолійович"]
[null,null,null,null,{"$f":"Лист1!B1275","v":"Демченко Іван Олегович"},"Демченко Іван Олегович"]
[null,null,null,null,{"$f":"Лист1!B1276","v":"Печенюк Марина Анатоліївна"},"Печенюк Марина Анатоліївна"]
[null,null,null,null,{"$f":"Лист1!B1277","v":"Черногородов Володимир Станіславович"},"Черногородов Володимир Станіславович"]
[null,null,null,null,{"$f":"Лист1!B1278","v":"Пересунько Олексій Олександрович"},"Пересунько Олексій Олександрович"]
[null,null,null,null,{"$f":"Лист1!B1279","v":"Сергієнко Ярослава Василівна"},"Сергієнко Ярослава Василівна"]
[null,null,null,null,{"$f":"Лист1!B1280","v":"Сіньковський Микола Володимирович"},"Сіньковський Микола Володимирович"]
[null,null,null,null,{"$f":"Лист1!B1281","v":"Шаталюк Наталія Олександрівна"},"Шаталюк Наталія Олександрівна"]
[null,null,null,null,{"$f":"Лист1!B1282","v":"Львова Маріанна Олександрівна"},"Львова Маріанна Олександрівна"]
[null,null,null,null,{"$f":"Лист1!B1283","v":"Котляренко В'ячеслав Віталійович"},"Котляренко В'ячеслав Віталійович"]
[null,null,null,null,{"$f":"Лист1!B1284","v":"Кіосев Василь Васильович"},"Кіосев Василь Васильович"]
[null,null,null,null,{"$f":"Лист1!B1285","v":"Голосюк Леонід Миколайович"},"Голосюк Леонід Миколайович"]
[null,null,null,null,{"$f":"Лист1!B1286","v":"Пеньковська Ірина Костянтинівна"},"Пеньковська Ірина Костянтинівна"]
[null,null,null,null,{"$f":"Лист1!B1287","v":"Романенко Галина Миколаївна"},"Романенко Галина Миколаївна"]
[null,null,null,null,{"$f":"Лист1!B1288","v":"Палаткін Олег Володимирович"},"Палаткін Олег Володимирович"]
[null,null,null,null,{"$f":"Лист1!B1289","v":"Попов Євгеній Ігорович"},"Попов Євгеній Ігорович"]
[null,null,null,null,{"$f":"Лист1!B1290","v":"Науменко Юрій Вячеславович"},"Науменко Юрій Вячеславович"]
[null,null,null,null,{"$f":"Лист1!B1291","v":"Руснак Тетяна Іванівна"},"Руснак Тетяна Іванівна"]
[null,null,null,null,{"$f":"Лист1!B1292","v":"Зорило Олександр Ілліч"},"Зорило Олександр Ілліч"]
[null,null,null,null,{"$f":"Лист1!B1293","v":"Курбанов Гідаят Гюльахмед"},"Курбанов Гідаят Гюльахмед"]
[null,null,null,null,{"$f":"Лист1!B1294","v":"Тросін Андрій Вікторович"},"Тросін Андрій Вікторович"]
[null,null,null,null,{"$f":"Лист1!B1295","v":"Осокіна Світлана Сергіївна"},"Осокіна Світлана Сергіївна"]
[null,null,null,null,{"$f":"Лист1!B1296","v":"Загороднюк Вікторія Володимирівна"},"Загороднюк Вікторія Володимирівна"]
[null,null,null,null,{"$f":"Лист1!B1297","v":"Слюсар Олександра Миколаївна"},"Слюсар Олександра Миколаївна"]
[null,null,null,null,{"$f":"Лист1!B1298","v":"Барган Віктор Федорович"},"Барган Віктор Федорович"]
[null,null,null,null,{"$f":"Лист1!B1299","v":"Чернєв Віктор Сергійович"},"Чернєв Віктор Сергійович"]
[null,null,null,null,{"$f":"Лист1!B1300","v":"Серветнік Віктор  Михайлович"},"Серветнік Віктор  Михайлович"]
[null,null,null,null,{"$f":"Лист1!B1301","v":"Торішня Олена Анатоліївна"},"Торішня Олена Анатоліївна"]
[null,null,null,null,{"$f":"Лист1!B1302","v":"Парван Анатолій Іванович"},"Парван Анатолій Іванович"]
[null,null,null,null,{"$f":"Лист1!B1303","v":"Нараєвська Тетяна Валентинівна"},"Нараєвська Тетяна Валентинівна"]
[null,null,null,null,{"$f":"Лист1!B1304","v":"Желєва Світлана Олексіївна"},"Желєва Світлана Олексіївна"]
[null,null,null,null,{"$f":"Лист1!B1305","v":"Варецький Борис Борисович"},"Варецький Борис Борисович"]
[null,null,null,null,{"$f":"Лист1!B1306","v":"Гедерим Володимир Миколайович"},"Гедерим Володимир Миколайович"]
[null,null,null,null,{"$f":"Лист1!B1307","v":"Кузьменко Марія Степанівна"},"Кузьменко Марія Степанівна"]
[null,null,null,null,{"$f":"Лист1!B1308","v":"Галушка Валентина Василівна"},"Галушка Валентина Василівна"]
[null,null,null,null,{"$f":"Лист1!B1309","v":"Варчук Віктор Афанасійович"},"Варчук Віктор Афанасійович"]
[null,null,null,null,{"$f":"Лист1!B1310","v":"Дмитренко Віктор Вікторович"},"Дмитренко Віктор Вікторович"]
[null,null,null,null,{"$f":"Лист1!B1311","v":"Киба Сергій Павлович"},"Киба Сергій Павлович"]
[null,null,null,null,{"$f":"Лист1!B1312","v":"Медюк Олег Віталійович"},"Медюк Олег Віталійович"]
[null,null,null,null,{"$f":"Лист1!B1313","v":"Буюклі Олена Володимирівна"},"Буюклі Олена Володимирівна"]
[null,null,null,null,{"$f":"Лист1!B1314","v":"Іванькович Гліб Костянтинович"},"Іванькович Гліб Костянтинович"]
[null,null,null,null,{"$f":"Лист1!B1315","v":"Стоянов Дмитро Андрійович"},"Стоянов Дмитро Андрійович"]
[null,null,null,null,{"$f":"Лист1!B1316","v":"Уманиць Олена Василівна"},"Уманиць Олена Василівна"]
[null,null,null,null,{"$f":"Лист1!B1317","v":"Савєльєва Зоя Петрівна"},"Савєльєва Зоя Петрівна"]
[null,null,null,null,{"$f":"Лист1!B1318","v":"Лабунець Олег Олександрович"},"Лабунець Олег Олександрович"]
[null,null,null,null,{"$f":"Лист1!B1319","v":"Кочин Сергій Вікторович"},"Кочин Сергій Вікторович"]
[null,null,null,null,{"$f":"Лист1!B1320","v":"Дойчев Микола Васильович"},"Дойчев Микола Васильович"]
[null,null,null,null,{"$f":"Лист1!B1321","v":"Луданий Валерій Анатолійович"},"Луданий Валерій Анатолійович"]
[null,null,null,null,{"$f":"Лист1!B1322","v":"Лисенко Анатолій Володимирович"},"Лисенко Анатолій Володимирович"]
[null,null,null,null,{"$f":"Лист1!B1323","v":"Устюгова Оксана Іванівна"},"Устюгова Оксана Іванівна"]
[null,null,null,null,{"$f":"Лист1!B1324","v":"Палига Сергій Миколайович"},"Палига Сергій Миколайович"]
[null,null,null,null,{"$f":"Лист1!B1325","v":"Снятков Євген Валерійович"},"Снятков Євген Валерійович"]
[null,null,null,null,{"$f":"Лист1!B1326","v":"Ватагіна Марина Георгіївна"},"Ватагіна Марина Георгіївна"]
[null,null,null,null,{"$f":"Лист1!B1327","v":"Каташинський Андрій Миколайович"},"Каташинський Андрій Миколайович"]
[null,null,null,null,{"$f":"Лист1!B1328","v":"Горбачов Олександр Анатолійович"},"Горбачов Олександр Анатолійович"]
[null,null,null,null,{"$f":"Лист1!B1329","v":"Мищенко Алла Іллівна"},"Мищенко Алла Іллівна"]
[null,null,null,null,{"$f":"Лист1!B1330","v":"Рожкова Ірина Іванівна"},"Рожкова Ірина Іванівна"]
[null,null,null,null,{"$f":"Лист1!B1331","v":"Тетко Ігор Віталійович"},"Тетко Ігор Віталійович"]
[null,null,null,null,{"$f":"Лист1!B1332","v":"Бризгалова Лариса Петрівна"},"Бризгалова Лариса Петрівна"]
[null,null,null,null,{"$f":"Лист1!B1333","v":"Таха Махмуд"},"Таха Махмуд"]
[null,null,null,null,{"$f":"Лист1!B1334","v":"Михайлик Олег Станіславович"},"Михайлик Олег Станіславович"]
[null,null,null,null,{"$f":"Лист1!B1335","v":"Лаврьонов Сергій Олександрович"},"Лаврьонов Сергій Олександрович"]
[null,null,null,null,{"$f":"Лист1!B1336","v":"Медведєв Андрій Валерійович"},"Медведєв Андрій Валерійович"]
[null,null,null,null,{"$f":"Лист1!B1337","v":"Івасик Сергій Анатолійович"},"Івасик Сергій Анатолійович"]
[null,null,null,null,{"$f":"Лист1!B1338","v":"Мишоловська Олена Леонідівна"},"Мишоловська Олена Леонідівна"]
[null,null,null,null,{"$f":"Лист1!B1339","v":"Затока Аліна Сергіївна"},"Затока Аліна Сергіївна"]
[null,null,null,null,{"$f":"Лист1!B1340","v":"Федотов Олексій Юрійович"},"Федотов Олексій Юрійович"]
[null,null,null,null,{"$f":"Лист1!B1341","v":"Рудь Олена Валентинівна"},"Рудь Олена Валентинівна"]
[null,null,null,null,{"$f":"Лист1!B1342","v":"Гончар Валентина Володимирівна"},"Гончар Валентина Володимирівна"]
[null,null,null,null,{"$f":"Лист1!B1343","v":"Столбов Микола Миколайович"},"Столбов Микола Миколайович"]
[null,null,null,null,{"$f":"Лист1!B1344","v":"Паламарчук Микола Олегович"},"Паламарчук Микола Олегович"]
[null,null,null,null,{"$f":"Лист1!B1345","v":"Малойван Валентина Василівна"},"Малойван Валентина Василівна"]
[null,null,null,null,{"$f":"Лист1!B1346","v":"Равічев Сергій Геннадійович"},"Равічев Сергій Геннадійович"]
[null,null,null,null,{"$f":"Лист1!B1347","v":"Штефан Іван Яношович"},"Штефан Іван Яношович"]
[null,null,null,null,{"$f":"Лист1!B1348","v":"Черновол Артур Олександрович"},"Черновол Артур Олександрович"]
[null,null,null,null,{"$f":"Лист1!B1349","v":"Воронюк Євген Анатолійович"},"Воронюк Євген Анатолійович"]
[null,null,null,null,{"$f":"Лист1!B1350","v":"Алексеєва Світлана Леонідівна"},"Алексеєва Світлана Леонідівна"]
[null,null,null,null,{"$f":"Лист1!B1351","v":"Брінзюк Ольга Володимирівна"},"Брінзюк Ольга Володимирівна"]
[null,null,null,null,{"$f":"Лист1!B1352","v":"Вєлєва Світлана Павлівна"},"Вєлєва Світлана Павлівна"]
[null,null,null,null,{"$f":"Лист1!B1353","v":"Теряєв Андрій Олександрович"},"Теряєв Андрій Олександрович"]
[null,null,null,null,{"$f":"Лист1!B1354","v":"Заборін Михайло Леонідович"},"Заборін Михайло Леонідович"]
[null,null,null,null,{"$f":"Лист1!B1355","v":"Кочин Сергій Вікторович"},"Кочин Сергій Вікторович"]
[null,null,null,null,{"$f":"Лист1!B1356","v":"Дімов Сергій Прокопович"},"Дімов Сергій Прокопович"]
[null,null,null,null,{"$f":"Лист1!B1357","v":"Мисик Максим Олексійович"},"Мисик Максим Олексійович"]
[null,null,null,null,{"$f":"Лист1!B1358","v":"Засовенко Юрій Петрович"},"Засовенко Юрій Петрович"]
[null,null,null,null,{"$f":"Лист1!B1359","v":"Новак Андрій Миколайович"},"Новак Андрій Миколайович"]
[null,null,null,null,{"$f":"Лист1!B1360","v":"Єлькін Олександр Вікторович"},"Єлькін Олександр Вікторович"]
[null,null,null,null,{"$f":"Лист1!B1361","v":"Ковальчук Ірина Анатоліївна"},"Ковальчук Ірина Анатоліївна"]
[null,null,null,null,{"$f":"Лист1!B1362","v":"Довженко Євген Сергійович"},"Довженко Євген Сергійович"]
[null,null,null,null,{"$f":"Лист1!B1363","v":"Наку Тамара Іллівна"},"Наку Тамара Іллівна"]
[null,null,null,null,{"$f":"Лист1!B1364","v":"Діхтяр Сергій Андрійович"},"Діхтяр Сергій Андрійович"]
[null,null,null,null,{"$f":"Лист1!B1365","v":"Караман Степан Георгійович"},"Караман Степан Георгійович"]
[null,null,null,null,{"$f":"Лист1!B1366","v":"Ткачов Геннадій Олександрович"},"Ткачов Геннадій Олександрович"]
[null,null,null,null,{"$f":"Лист1!B1367","v":"Головцов Юрій Олексійович"},"Головцов Юрій Олексійович"]
[null,null,null,null,{"$f":"Лист1!B1368","v":"Мардар Надія Володимирівна"},"Мардар Надія Володимирівна"]
[null,null,null,null,{"$f":"Лист1!B1369","v":"Григорук Валентина Анатоліївна"},"Григорук Валентина Анатоліївна"]
[null,null,null,null,{"$f":"Лист1!B1370","v":"Волковська Олена Олексіївна"},"Волковська Олена Олексіївна"]
[null,null,null,null,{"$f":"Лист1!B1371","v":"Севастьянов Дмитро Олександрович"},"Севастьянов Дмитро Олександрович"]
[null,null,null,null,{"$f":"Лист1!B1372","v":"Стегній Інеса Андріївна"},"Стегній Інеса Андріївна"]
[null,null,null,null,{"$f":"Лист1!B1373","v":"Катихіна Лариса Миколаївна"},"Катихіна Лариса Миколаївна"]
[null,null,null,null,{"$f":"Лист1!B1374","v":"Вольський Олександр Станіславович"},"Вольський Олександр Станіславович"]
[null,null,null,null,{"$f":"Лист1!B1375","v":"Синиця Микола Іванович"},"Синиця Микола Іванович"]
[null,null,null,null,{"$f":"Лист1!B1376","v":"Климов Олексій Анатолійович"},"Климов Олексій Анатолійович"]
[null,null,null,null,{"$f":"Лист1!B1377","v":"Кучер Володимир Петрович"},"Кучер Володимир Петрович"]
[null,null,null,null,{"$f":"Лист1!B1378","v":"Сасевич Ігор Олексійович"},"Сасевич Ігор Олексійович"]
[null,null,null,null,{"$f":"Лист1!B1379","v":"Стецьків Віталій Тарасович"},"Стецьків Віталій Тарасович"]
[null,null,null,null,{"$f":"Лист1!B1380","v":"Дубов Олександр Олександрович"},"Дубов Олександр Олександрович"]
[null,null,null,null,{"$f":"Лист1!B1381","v":"Горбачов Максим Сергійович"},"Горбачов Максим Сергійович"]
[null,null,null,null,{"$f":"Лист1!B1382","v":"Ковальова Олена Миколаївна"},"Ковальова Олена Миколаївна"]
[null,null,null,null,{"$f":"Лист1!B1383","v":"Погорєлов Владислав Олександрович"},"Погорєлов Владислав Олександрович"]
[null,null,null,null,{"$f":"Лист1!B1384","v":"Соцький Михайло Назарович"},"Соцький Михайло Назарович"]
[null,null,null,null,{"$f":"Лист1!B1385","v":"Гусєв Сергій Євгенійович"},"Гусєв Сергій Євгенійович"]
[null,null,null,null,{"$f":"Лист1!B1386","v":"Хрустовський Андрій Григорович"},"Хрустовський Андрій Григорович"]
[null,null,null,null,{"$f":"Лист1!B1387","v":"Фаніка Світлана Миколаївна"},"Фаніка Світлана Миколаївна"]
[null,null,null,null,{"$f":"Лист1!B1388","v":"Груценко Ольга Василівна"},"Груценко Ольга Василівна"]
[null,null,null,null,{"$f":"Лист1!B1389","v":"Нєнку Іван Олегович"},"Нєнку Іван Олегович"]
[null,null,null,null,{"$f":"Лист1!B1390","v":"Джапарідзе Любов Семенівна"},"Джапарідзе Любов Семенівна"]
[null,null,null,null,{"$f":"Лист1!B1391","v":"Тіструга Наталія Анатоліївна"},"Тіструга Наталія Анатоліївна"]
[null,null,null,null,{"$f":"Лист1!B1392","v":"Волощук Віталій Вікторович"},"Волощук Віталій Вікторович"]
[null,null,null,null,{"$f":"Лист1!B1393","v":"Широкий Дмитро Олександрович"},"Широкий Дмитро Олександрович"]
[null,null,null,null,{"$f":"Лист1!B1394","v":"Паулаускас Артур Вікторасович"},"Паулаускас Артур Вікторасович"]
[null,null,null,null,{"$f":"Лист1!B1395","v":"Татар Юрй Васильович"},"Татар Юрй Васильович"]
[null,null,null,null,{"$f":"Лист1!B1396","v":"Веселовський Сергій Володимирович"},"Веселовський Сергій Володимирович"]
[null,null,null,null,{"$f":"Лист1!B1397","v":"Чистов Сергій Сергійович"},"Чистов Сергій Сергійович"]
[null,null,null,null,{"$f":"Лист1!B1398","v":"Гавриленко Микола Юрійович"},"Гавриленко Микола Юрійович"]
[null,null,null,null,{"$f":"Лист1!B1399","v":"Тихомир Микола Іванович"},"Тихомир Микола Іванович"]
[null,null,null,null,{"$f":"Лист1!B1400","v":"Белєєвський Андрій Андрійович"},"Белєєвський Андрій Андрійович"]
[null,null,null,null,{"$f":"Лист1!B1401","v":"Тулякова Олена Вікторівна"},"Тулякова Олена Вікторівна"]
[null,null,null,null,{"$f":"Лист1!B1402","v":"Рябець Тетяна Василівна"},"Рябець Тетяна Василівна"]
[null,null,null,null,{"$f":"Лист1!B1403","v":"Кожем'якін Валерій Григорович"},"Кожем'якін Валерій Григорович"]
[null,null,null,null,{"$f":"Лист1!B1404","v":"Шатохіна Світлана Миколаївна"},"Шатохіна Світлана Миколаївна"]
[null,null,null,null,{"$f":"Лист1!B1405","v":"Джаламага Віталій Аркадійович"},"Джаламага Віталій Аркадійович"]
[null,null,null,null,{"$f":"Лист1!B1406","v":"Алєксєєнко Володимир Володимирович"},"Алєксєєнко Володимир Володимирович"]
[null,null,null,null,{"$f":"Лист1!B1407","v":"Зайцев Анатолій Анатолійович"},"Зайцев Анатолій Анатолійович"]
[null,null,null,null,{"$f":"Лист1!B1408","v":"Глевицька Марина Вікторівна"},"Глевицька Марина Вікторівна"]
[null,null,null,null,{"$f":"Лист1!B1409","v":"Свистун Станіслав Олексійович"},"Свистун Станіслав Олексійович"]
[null,null,null,null,{"$f":"Лист1!B1410","v":"Тригубчак Сергій Володимирович"},"Тригубчак Сергій Володимирович"]
[null,null,null,null,{"$f":"Лист1!B1411","v":"Кувшинов Андрій Олексійович"},"Кувшинов Андрій Олексійович"]
[null,null,null,null,{"$f":"Лист1!B1412","v":"Кирилов Валерій Володимирович"},"Кирилов Валерій Володимирович"]
[null,null,null,null,{"$f":"Лист1!B1413","v":"Волочай Валерій Олексійович"},"Волочай Валерій Олексійович"]
[null,null,null,null,{"$f":"Лист1!B1414","v":"Кондратенко Вячеслав Анатолійович"},"Кондратенко Вячеслав Анатолійович"]
[null,null,null,null,{"$f":"Лист1!B1415","v":"Свідер Віталій Олексійович"},"Свідер Віталій Олексійович"]
[null,null,null,null,{"$f":"Лист1!B1416","v":"Куркудим Віталій Петрович"},"Куркудим Віталій Петрович"]
[null,null,null,null,{"$f":"Лист1!B1417","v":"Ципряк Юрій Володимирович"},"Ципряк Юрій Володимирович"]
[null,null,null,null,{"$f":"Лист1!B1418","v":"Чистова Ірина Петрівна"},"Чистова Ірина Петрівна"]
[null,null,null,null,{"$f":"Лист1!B1419","v":"Гаврюшкін Артем Олександрович"},"Гаврюшкін Артем Олександрович"]
[null,null,null,null,{"$f":"Лист1!B1420","v":"Подкопаєв Ігор Анатолійович"},"Подкопаєв Ігор Анатолійович"]
[null,null,null,null,{"$f":"Лист1!B1421","v":"Бережна Ірина Валентинівна"},"Бережна Ірина Валентинівна"]
[null,null,null,null,{"$f":"Лист1!B1422","v":"Попов Андрій Георгійович"},"Попов Андрій Георгійович"]
[null,null,null,null,{"$f":"Лист1!B1423","v":"Ганенко Вадим Анатолійович"},"Ганенко Вадим Анатолійович"]
[null,null,null,null,{"$f":"Лист1!B1424","v":"Дорошенко Андрій Олександрович"},"Дорошенко Андрій Олександрович"]
[null,null,null,null,{"$f":"Лист1!B1425","v":"Максименко Вячеслав Володимирович"},"Максименко Вячеслав Володимирович"]
[null,null,null,null,{"$f":"Лист1!B1426","v":"Должников Олександр Іванович"},"Должников Олександр Іванович"]
[null,null,null,null,{"$f":"Лист1!B1427","v":"Кічук Петро Дмитрович"},"Кічук Петро Дмитрович"]
[null,null,null,null,{"$f":"Лист1!B1428","v":"Бабаєва Тетяна Миколаївна"},"Бабаєва Тетяна Миколаївна"]
[null,null,null,null,{"$f":"Лист1!B1429","v":"Реуцька Валентина Іванівна"},"Реуцька Валентина Іванівна"]
[null,null,null,null,{"$f":"Лист1!B1430","v":"Чорний Микола Миколайович"},"Чорний Микола Миколайович"]
[null,null,null,null,{"$f":"Лист1!B1431","v":"Дюбіна Олена Олександрівна"},"Дюбіна Олена Олександрівна"]
[null,null,null,null,{"$f":"Лист1!B1432","v":"Павлюк Олена Олексіївна"},"Павлюк Олена Олексіївна"]
[null,null,null,null,{"$f":"Лист1!B1433","v":"Ячменьов Сергій Євгенович"},"Ячменьов Сергій Євгенович"]
[null,null,null,null,{"$f":"Лист1!B1434","v":"Москаленко Денис Миколайович"},"Москаленко Денис Миколайович"]
[null,null,null,null,{"$f":"Лист1!B1435","v":"Каражелясков Станіслав Іванович"},"Каражелясков Станіслав Іванович"]
[null,null,null,null,{"$f":"Лист1!B1436","v":"Молотов Вадим Борисович"},"Молотов Вадим Борисович"]
[null,null,null,null,{"$f":"Лист1!B1437","v":"Дрожин Олексій Юрійович"},"Дрожин Олексій Юрійович"]
[null,null,null,null,{"$f":"Лист1!B1438","v":"Сальченко Сергій Миколайович"},"Сальченко Сергій Миколайович"]
[null,null,null,null,{"$f":"Лист1!B1439","v":"Григор'єв Сергій Вікторович"},"Григор'єв Сергій Вікторович"]
[null,null,null,null,{"$f":"Лист1!B1440","v":"Мішанчук Наталя Миколаївна"},"Мішанчук Наталя Миколаївна"]
[null,null,null,null,{"$f":"Лист1!B1441","v":"Новгородов Сергій Вікторович"},"Новгородов Сергій Вікторович"]
[null,null,null,null,{"$f":"Лист1!B1442","v":"Масюк Олена Валеріївна"},"Масюк Олена Валеріївна"]
[null,null,null,null,{"$f":"Лист1!B1443","v":"Галушкевич Віктор Миколайович"},"Галушкевич Віктор Миколайович"]
[null,null,null,null,{"$f":"Лист1!B1444","v":"Акдерлі Олег Андрійович"},"Акдерлі Олег Андрійович"]
[null,null,null,null,{"$f":"Лист1!B1445","v":"Каштанов Максим Андрійович"},"Каштанов Максим Андрійович"]
[null,null,null,null,{"$f":"Лист1!B1446","v":"Лужецька Галина Петрівна"},"Лужецька Галина Петрівна"]
[null,null,null,null,{"$f":"Лист1!B1447","v":"Пєнов Микола Миколайович"},"Пєнов Микола Миколайович"]
[null,null,null,null,{"$f":"Лист1!B1448","v":"Бондарєв Володимир Олександрович"},"Бондарєв Володимир Олександрович"]
[null,null,null,null,{"$f":"Лист1!B1449","v":"Шевчук Михайло Михайлович"},"Шевчук Михайло Михайлович"]
[null,null,null,null,{"$f":"Лист1!B1450","v":"Васьків Сергій Володимирович"},"Васьків Сергій Володимирович"]
[null,null,null,null,{"$f":"Лист1!B1451","v":"Балан Андрій Володимирович"},"Балан Андрій Володимирович"]
[null,null,null,null,{"$f":"Лист1!B1452","v":"Коваленко Раїса Олексіївна"},"Коваленко Раїса Олексіївна"]
[null,null,null,null,{"$f":"Лист1!B1453","v":"Ніколаєв Анатолій Іванович"},"Ніколаєв Анатолій Іванович"]
[null,null,null,null,{"$f":"Лист1!B1454","v":"Бошков Юрій Федорович"},"Бошков Юрій Федорович"]
[null,null,null,null,{"$f":"Лист1!B1455","v":"Узун Сергій Георгійович"},"Узун Сергій Георгійович"]
[null,null,null,null,{"$f":"Лист1!B1456","v":"Карнаух Тетяна Анатоліївна"},"Карнаух Тетяна Анатоліївна"]
[null,null,null,null,{"$f":"Лист1!B1457","v":"Кустол Михайло Афанасійович"},"Кустол Михайло Афанасійович"]
[null,null,null,null,{"$f":"Лист1!B1458","v":"Зозуля Інна Іванівна"},"Зозуля Інна Іванівна"]
[null,null,null,null,{"$f":"Лист1!B1459","v":"Міхполь Андрій Яковлевич"},"Міхполь Андрій Яковлевич"]
[null,null,null,null,{"$f":"Лист1!B1460","v":"Борисенко Олександр Сергійович"},"Борисенко Олександр Сергійович"]
[null,null,null,null,{"$f":"Лист1!B1461","v":"Лозан Андрій Вікторович"},"Лозан Андрій Вікторович"]
[null,null,null,null,{"$f":"Лист1!B1462","v":"Якунін Валерій Іванович"},"Якунін Валерій Іванович"]
[null,null,null,null,{"$f":"Лист1!B1463","v":"Клименко Дмитро Олександрович"},"Клименко Дмитро Олександрович"]
[null,null,null,null,{"$f":"Лист1!B1464","v":"Шепелєв Костянтин Андрійович"},"Шепелєв Костянтин Андрійович"]
[null,null,null,null,{"$f":"Лист1!B1465","v":"Ісмаїлов Сулейман Немет Огли"},"Ісмаїлов Сулейман Немет Огли"]
[null,null,null,null,{"$f":"Лист1!B1466","v":"Грабарчук Любов Стахівна"},"Грабарчук Любов Стахівна"]
[null,null,null,null,{"$f":"Лист1!B1467","v":"Ткачук Діана Дмитрівна"},"Ткачук Діана Дмитрівна"]
[null,null,null,null,{"$f":"Лист1!B1468","v":"Міфодін Віктор Анатолійович"},"Міфодін Віктор Анатолійович"]
[null,null,null,null,{"$f":"Лист1!B1469","v":"Бакіров Ельнар Енверович"},"Бакіров Ельнар Енверович"]
[null,null,null,null,{"$f":"Лист1!B1470","v":"Павліченко Світлана Миколаївна"},"Павліченко Світлана Миколаївна"]
[null,null,null,null,{"$f":"Лист1!B1471","v":"Щербань Едуард Олександрович"},"Щербань Едуард Олександрович"]
[null,null,null,null,{"$f":"Лист1!B1472","v":"Алексєєнко Сергій Ілліч"},"Алексєєнко Сергій Ілліч"]
[null,null,null,null,{"$f":"Лист1!B1473","v":"Михайліна Галина Михайлівна"},"Михайліна Галина Михайлівна"]
[null,null,null,null,{"$f":"Лист1!B1474","v":"Заворотна Галина Степанівна"},"Заворотна Галина Степанівна"]
[null,null,null,null,{"$f":"Лист1!B1475","v":"Дундук Анатолій Іванович"},"Дундук Анатолій Іванович"]
[null,null,null,null,{"$f":"Лист1!B1476","v":"Драченко Михайло Юрійович"},"Драченко Михайло Юрійович"]
[null,null,null,null,{"$f":"Лист1!B1477","v":"Гольдвар Ірина Петрівна"},"Гольдвар Ірина Петрівна"]
[null,null,null,null,{"$f":"Лист1!B1478","v":"Бянова Наталія Вікторівна"},"Бянова Наталія Вікторівна"]
[null,null,null,null,{"$f":"Лист1!B1479","v":"Ченцов Ярослав Миколайович"},"Ченцов Ярослав Миколайович"]
[null,null,null,null,{"$f":"Лист1!B1480","v":"Щелакова Валентина Олексіївна"},"Щелакова Валентина Олексіївна"]
[null,null,null,null,{"$f":"Лист1!B1481","v":"Каніковська Валентина Василівна"},"Каніковська Валентина Василівна"]
[null,null,null,null,{"$f":"Лист1!B1482","v":"Чорний Олександр Анатолійович"},"Чорний Олександр Анатолійович"]
[null,null,null,null,{"$f":"Лист1!B1483","v":"Бербат Дмитро Юрійович"},"Бербат Дмитро Юрійович"]
[null,null,null,null,{"$f":"Лист1!B1484","v":"Репецький Юрій Леонідович"},"Репецький Юрій Леонідович"]
[null,null,null,null,{"$f":"Лист1!B1485","v":"Маніта Ілля Іванович"},"Маніта Ілля Іванович"]
[null,null,null,null,{"$f":"Лист1!B1486","v":"Томілов Вячеслав Вікторович"},"Томілов Вячеслав Вікторович"]
[null,null,null,null,{"$f":"Лист1!B1487","v":"Бабенко Руслан Анатолійович"},"Бабенко Руслан Анатолійович"]
[null,null,null,null,{"$f":"Лист1!B1488","v":"Балановський Юрій Володимирович"},"Балановський Юрій Володимирович"]
[null,null,null,null,{"$f":"Лист1!B1489","v":"Боросюк Віталій Вікторович"},"Боросюк Віталій Вікторович"]
[null,null,null,null,{"$f":"Лист1!B1490","v":"Старовойтова Жанна Анатоліївна"},"Старовойтова Жанна Анатоліївна"]
[null,null,null,null,{"$f":"Лист1!B1491","v":"Воробйов Олександр Миколайович"},"Воробйов Олександр Миколайович"]
[null,null,null,null,{"$f":"Лист1!B1492","v":"Геворгян Віктор Едуардович"},"Геворгян Віктор Едуардович"]
[null,null,null,null,{"$f":"Лист1!B1493","v":"Гончаров Олег Сергійович"},"Гончаров Олег Сергійович"]
[null,null,null,null,{"$f":"Лист1!B1494","v":"Карасенко Ігор Валентинович"},"Карасенко Ігор Валентинович"]
[null,null,null,null,{"$f":"Лист1!B1495","v":"Маслов Андрій Стефанович"},"Маслов Андрій Стефанович"]
[null,null,null,null,{"$f":"Лист1!B1496","v":"Полонський Анатолій Леонідович"},"Полонський Анатолій Леонідович"]
[null,null,null,null,{"$f":"Лист1!B1497","v":"Купченко Тетяна Анатоліївна"},"Купченко Тетяна Анатоліївна"]
[null,null,null,null,{"$f":"Лист1!B1498","v":"Чибісова Любов Іванівна"},"Чибісова Любов Іванівна"]
[null,null,null,null,{"$f":"Лист1!B1499","v":"Коваленко Валерій Борисович"},"Коваленко Валерій Борисович"]
[null,null,null,null,{"$f":"Лист1!B1500","v":"Політаєв Володимир Миколайович"},"Політаєв Володимир Миколайович"]
[null,null,null,null,{"$f":"Лист1!B1501","v":"Халай Тетяна Василівна"},"Халай Тетяна Василівна"]
[null,null,null,null,{"$f":"Лист1!B1502","v":"Кириленко Пантелій Семенович"},"Кириленко Пантелій Семенович"]
[null,null,null,null,{"$f":"Лист1!B1503","v":"Гаврильчук Едуард Іванович"},"Гаврильчук Едуард Іванович"]
[null,null,null,null,{"$f":"Лист1!B1504","v":"Соболєва Лариса Миколаївна"},"Соболєва Лариса Миколаївна"]
[null,null,null,null,{"$f":"Лист1!B1505","v":"Карамавров Валерій Петрович"},"Карамавров Валерій Петрович"]
[null,null,null,null,{"$f":"Лист1!B1506","v":"Васильченко Сергій Михайлович"},"Васильченко Сергій Михайлович"]
[null,null,null,null,{"$f":"Лист1!B1507","v":"Сєдов Олексій Анатолійович"},"Сєдов Олексій Анатолійович"]
[null,null,null,null,{"$f":"Лист1!B1508","v":"Лінкар Євген Анатолійович"},"Лінкар Євген Анатолійович"]
[null,null,null,null,{"$f":"Лист1!B1509","v":"Апостолова Ельнара Адалятівна"},"Апостолова Ельнара Адалятівна"]
[null,null,null,null,{"$f":"Лист1!B1510","v":"Драганов Василь Андрійович"},"Драганов Василь Андрійович"]
[null,null,null,null,{"$f":"Лист1!B1511","v":"Земель Олег Олександрович"},"Земель Олег Олександрович"]
[null,null,null,null,{"$f":"Лист1!B1512","v":"Андрієнко Тамара Семенівна"},"Андрієнко Тамара Семенівна"]
[null,null,null,null,{"$f":"Лист1!B1513","v":"Сидоренко Вадим Петрович"},"Сидоренко Вадим Петрович"]
[null,null,null,null,{"$f":"Лист1!B1514","v":"Мельников Ігор Олександрович"},"Мельников Ігор Олександрович"]
[null,null,null,null,{"$f":"Лист1!B1515","v":"Нестеренко Вальдемарда Анатоліївна"},"Нестеренко Вальдемарда Анатоліївна"]
[null,null,null,null,{"$f":"Лист1!B1516","v":"Боровін Юрій Володимирович"},"Боровін Юрій Володимирович"]
[null,null,null,null,{"$f":"Лист1!B1517","v":"Санжаровський Валерій Іванович"},"Санжаровський Валерій Іванович"]
[null,null,null,null,{"$f":"Лист1!B1518","v":"Спиридонов Олександр Володимирович"},"Спиридонов Олександр Володимирович"]
[null,null,null,null,{"$f":"Лист1!B1519","v":"Гуляновська Яна Володимирівна"},"Гуляновська Яна Володимирівна"]
[null,null,null,null,{"$f":"Лист1!B1520","v":"Геворгян Геворг Гашкович"},"Геворгян Геворг Гашкович"]
[null,null,null,null,{"$f":"Лист1!B1521","v":"Компанієць Сергій Олександрович"},"Компанієць Сергій Олександрович"]
[null,null,null,null,{"$f":"Лист1!B1522","v":"Козарь Галина Григорівна"},"Козарь Галина Григорівна"]
[null,null,null,null,{"$f":"Лист1!B1523","v":"Цопа Андрій Олександрович"},"Цопа Андрій Олександрович"]
[null,null,null,null,{"$f":"Лист1!B1524","v":"Мошан Тимофій Миколайович"},"Мошан Тимофій Миколайович"]
[null,null,null,null,{"$f":"Лист1!B1525","v":"Бугаєв Олександр Валентинович"},"Бугаєв Олександр Валентинович"]
[null,null,null,null,{"$f":"Лист1!B1526","v":"Вільчевський Віталій Едуардович"},"Вільчевський Віталій Едуардович"]
[null,null,null,null,{"$f":"Лист1!B1527","v":"Верниба Юрій Миколайович"},"Верниба Юрій Миколайович"]
[null,null,null,null,{"$f":"Лист1!B1528","v":"Сиваш Ігор Володимирович"},"Сиваш Ігор Володимирович"]
[null,null,null,null,{"$f":"Лист1!B1529","v":"Семікоз Віталій Володимирович"},"Семікоз Віталій Володимирович"]
[null,null,null,null,{"$f":"Лист1!B1530","v":"Олевинська Лідія Костянтинівна"},"Олевинська Лідія Костянтинівна"]
[null,null,null,null,{"$f":"Лист1!B1531","v":"Трибой Сергій Васильович"},"Трибой Сергій Васильович"]
[null,null,null,null,{"$f":"Лист1!B1532","v":"Зубков Юрій Леонідович"},"Зубков Юрій Леонідович"]
[null,null,null,null,{"$f":"Лист1!B1533","v":"Мица Катерина Іванівна"},"Мица Катерина Іванівна"]
[null,null,null,null,{"$f":"Лист1!B1534","v":"Дішлі Віктор Степанович"},"Дішлі Віктор Степанович"]
[null,null,null,null,{"$f":"Лист1!B1535","v":"Сєдлік Олег Сергійович"},"Сєдлік Олег Сергійович"]
[null,null,null,null,{"$f":"Лист1!B1536","v":"Духовська Ольга Юріївна"},"Духовська Ольга Юріївна"]
[null,null,null,null,{"$f":"Лист1!B1537","v":"Намазов Сакіт Іспандіяр Огли"},"Намазов Сакіт Іспандіяр Огли"]
[null,null,null,null,{"$f":"Лист1!B1538","v":"Варан Оксана Олександрівна"},"Варан Оксана Олександрівна"]
[null,null,null,null,{"$f":"Лист1!B1539","v":"Бурячок Наталія Миколаївна"},"Бурячок Наталія Миколаївна"]
[null,null,null,null,{"$f":"Лист1!B1540","v":"Сеньків Андрій Степанович"},"Сеньків Андрій Степанович"]
[null,null,null,null,{"$f":"Лист1!B1541","v":"Дандан Анатолій Дмитрович"},"Дандан Анатолій Дмитрович"]
[null,null,null,null,{"$f":"Лист1!B1542","v":"Палєсіка Андрій Іванович"},"Палєсіка Андрій Іванович"]
[null,null,null,null,{"$f":"Лист1!B1543","v":"Корнієнко Олександр Вікторович"},"Корнієнко Олександр Вікторович"]
[null,null,null,null,{"$f":"Лист1!B1544","v":"Дромашко Олег Григорович"},"Дромашко Олег Григорович"]
[null,null,null,null,{"$f":"Лист1!B1545","v":"Криниця Валентина Борисівна"},"Криниця Валентина Борисівна"]
[null,null,null,null,{"$f":"Лист1!B1546","v":"Ярошевич Євгеній Миколайович"},"Ярошевич Євгеній Миколайович"]
[null,null,null,null,{"$f":"Лист1!B1547","v":"Наумова Наталія Анатоліївна"},"Наумова Наталія Анатоліївна"]
[null,null,null,null,{"$f":"Лист1!B1548","v":"Федорончук Віталій Вікторович"},"Федорончук Віталій Вікторович"]
[null,null,null,null,{"$f":"Лист1!B1549","v":"Колєва Олена Іванівна"},"Колєва Олена Іванівна"]
[null,null,null,null,{"$f":"Лист1!B1550","v":"Чебан Галина Володимирівна"},"Чебан Галина Володимирівна"]
[null,null,null,null,{"$f":"Лист1!B1551","v":"Гулова Валентина Стефанівна"},"Гулова Валентина Стефанівна"]
[null,null,null,null,{"$f":"Лист1!B1552","v":"Пшеничний Сергій Олександрович"},"Пшеничний Сергій Олександрович"]
[null,null,null,null,{"$f":"Лист1!B1553","v":"Степанов Микола Іванович"},"Степанов Микола Іванович"]
[null,null,null,null,{"$f":"Лист1!B1554","v":"Степанов Олександр Георгійович"},"Степанов Олександр Георгійович"]
[null,null,null,null,{"$f":"Лист1!B1555","v":"Ступіна Олена Анатоліївна"},"Ступіна Олена Анатоліївна"]
[null,null,null,null,{"$f":"Лист1!B1556","v":"Воротинцев Андрій Володимирович"},"Воротинцев Андрій Володимирович"]
[null,null,null,null,{"$f":"Лист1!B1557","v":"Гетьман Олександр Геннадійович"},"Гетьман Олександр Геннадійович"]
[null,null,null,null,{"$f":"Лист1!B1558","v":"Петрусенко Лариса Іванівна"},"Петрусенко Лариса Іванівна"]
[null,null,null,null,{"$f":"Лист1!B1559","v":"Танурков Олександр Іванович"},"Танурков Олександр Іванович"]
[null,null,null,null,{"$f":"Лист1!B1560","v":"Піроженко Олександр Олександрович"},"Піроженко Олександр Олександрович"]
[null,null,null,null,{"$f":"Лист1!B1561","v":"Волков Євген Миколайович"},"Волков Євген Миколайович"]
[null,null,null,null,{"$f":"Лист1!B1562","v":"Пєрков Василь Вікторович"},"Пєрков Василь Вікторович"]
[null,null,null,null,{"$f":"Лист1!B1563","v":"Денисенко Олександр Семенович"},"Денисенко Олександр Семенович"]
[null,null,null,null,{"$f":"Лист1!B1564","v":"Тикул Олександра Геннадіївна"},"Тикул Олександра Геннадіївна"]
[null,null,null,null,{"$f":"Лист1!B1565","v":"Кокарча Ольга Михайлівна"},"Кокарча Ольга Михайлівна"]
[null,null,null,null,{"$f":"Лист1!B1566","v":"Воронов Андрій Петрович"},"Воронов Андрій Петрович"]
[null,null,null,null,{"$f":"Лист1!B1567","v":"Калінкін Володимир Юрійович"},"Калінкін Володимир Юрійович"]
[null,null,null,null,{"$f":"Лист1!B1568","v":"Васильченко Юрій Сергійович"},"Васильченко Юрій Сергійович"]
[null,null,null,null,{"$f":"Лист1!B1569","v":"Кочарян Гарнік Шурікович"},"Кочарян Гарнік Шурікович"]
[null,null,null,null,{"$f":"Лист1!B1570","v":"Шевченко Юрій Володимирович"},"Шевченко Юрій Володимирович"]
[null,null,null,null,{"$f":"Лист1!B1571","v":"Гранковська Надія Іванівна"},"Гранковська Надія Іванівна"]
[null,null,null,null,{"$f":"Лист1!B1572","v":"Какуша Тетяна Володимирівна"},"Какуша Тетяна Володимирівна"]
[null,null,null,null,{"$f":"Лист1!B1573","v":"Кусівський Кирило Михайлович"},"Кусівський Кирило Михайлович"]
[null,null,null,null,{"$f":"Лист1!B1574","v":"Янов Анатолій Степанович"},"Янов Анатолій Степанович"]
[null,null,null,null,{"$f":"Лист1!B1575","v":"Кіданчук Валентин Ігорович"},"Кіданчук Валентин Ігорович"]
[null,null,null,null,{"$f":"Лист1!B1576","v":"Сіренко Олександр Анатолійович"},"Сіренко Олександр Анатолійович"]
[null,null,null,null,{"$f":"Лист1!B1577","v":"Кідін Юрій Олексійович"},"Кідін Юрій Олексійович"]
[null,null,null,null,{"$f":"Лист1!B1578","v":"Тенькова Віра Дмитрівна"},"Тенькова Віра Дмитрівна"]
[null,null,null,null,{"$f":"Лист1!B1579","v":"Карпінський Олександр Михайлович"},"Карпінський Олександр Михайлович"]
[null,null,null,null,{"$f":"Лист1!B1580","v":"Агакішиєва Ельза Амруллак"},"Агакішиєва Ельза Амруллак"]
[null,null,null,null,{"$f":"Лист1!B1581","v":"Гураль Тетяна Валентинівна"},"Гураль Тетяна Валентинівна"]
[null,null,null,null,{"$f":"Лист1!B1582","v":"Нурієва Алевтина Гусейнівна"},"Нурієва Алевтина Гусейнівна"]
[null,null,null,null,{"$f":"Лист1!B1583","v":"Лунькова Раїса Аркадіївна"},"Лунькова Раїса Аркадіївна"]
[null,null,null,null,{"$f":"Лист1!B1584","v":"Хотькіна Людмила Олександрівна"},"Хотькіна Людмила Олександрівна"]
[null,null,null,null,{"$f":"Лист1!B1585","v":"Іовчев Георгій Дем'янович"},"Іовчев Георгій Дем'янович"]
[null,null,null,null,{"$f":"Лист1!B1586","v":"Цебренко Наталя Борисівна"},"Цебренко Наталя Борисівна"]
[null,null,null,null,{"$f":"Лист1!B1587","v":"Мокра Анна Максимівна"},"Мокра Анна Максимівна"]
[null,null,null,null,{"$f":"Лист1!B1588","v":"Кононенко Марія Олександрівна"},"Кононенко Марія Олександрівна"]
[null,null,null,null,{"$f":"Лист1!B1589","v":"Олексюк Ігор Дмитрович"},"Олексюк Ігор Дмитрович"]
[null,null,null,null,{"$f":"Лист1!B1590","v":"Архипов Дмитро Вікторович"},"Архипов Дмитро Вікторович"]
[null,null,null,null,{"$f":"Лист1!B1591","v":"Паненко Олена Миколаївна"},"Паненко Олена Миколаївна"]
[null,null,null,null,{"$f":"Лист1!B1592","v":"Бєлоусова Ірина Петрівна"},"Бєлоусова Ірина Петрівна"]
[null,null,null,null,{"$f":"Лист1!B1593","v":"Головчук Валерій Анатолійович"},"Головчук Валерій Анатолійович"]
[null,null,null,null,{"$f":"Лист1!B1594","v":"Кузічев Юрій Борисович"},"Кузічев Юрій Борисович"]
[null,null,null,null,{"$f":"Лист1!B1595","v":"Мешвез Ігор Юрійович"},"Мешвез Ігор Юрійович"]
[null,null,null,null,{"$f":"Лист1!B1596","v":"Грачковський Володимир Федорович"},"Грачковський Володимир Федорович"]
[null,null,null,null,{"$f":"Лист1!B1597","v":"Устименко Ольга Владиславівна"},"Устименко Ольга Владиславівна"]
[null,null,null,null,{"$f":"Лист1!B1598","v":"Слободніченко Михайло Володимирович"},"Слободніченко Михайло Володимирович"]
[null,null,null,null,{"$f":"Лист1!B1599","v":"Галюга Людмила Іванівна"},"Галюга Людмила Іванівна"]
[null,null,null,null,{"$f":"Лист1!B1600","v":"Ільяшенко Олексій Андрійович"},"Ільяшенко Олексій Андрійович"]
[null,null,null,null,{"$f":"Лист1!B1601","v":"Король Тетяна Володимирівна"},"Король Тетяна Володимирівна"]
[null,null,null,null,{"$f":"Лист1!B1602","v":"Марциненко Олена Олександрівна"},"Марциненко Олена Олександрівна"]
[null,null,null,null,{"$f":"Лист1!B1603","v":"Стадник Галина Василівна"},"Стадник Галина Василівна"]
[null,null,null,null,{"$f":"Лист1!B1604","v":"Маслов Микола Спиридонович"},"Маслов Микола Спиридонович"]
[null,null,null,null,{"$f":"Лист1!B1605","v":"Валявін Олексій Анатолійович"},"Валявін Олексій Анатолійович"]
[null,null,null,null,{"$f":"Лист1!B1606","v":"Снігур Віктор Костянтинович"},"Снігур Віктор Костянтинович"]
[null,null,null,null,{"$f":"Лист1!B1607","v":"Дякевич Сергій Олексійович"},"Дякевич Сергій Олексійович"]
[null,null,null,null,{"$f":"Лист1!B1608","v":"Степаненко Юрій Валерійович"},"Степаненко Юрій Валерійович"]
[null,null,null,null,{"$f":"Лист1!B1609","v":"Ісайко Юрій Олександрович"},"Ісайко Юрій Олександрович"]
[null,null,null,null,{"$f":"Лист1!B1610","v":"Драгой Владислав Васильович"},"Драгой Владислав Васильович"]
[null,null,null,null,{"$f":"Лист1!B1611","v":"Слюсаренко Віталій Олександрович"},"Слюсаренко Віталій Олександрович"]
[null,null,null,null,{"$f":"Лист1!B1612","v":"Сербін Руслан Павлович"},"Сербін Руслан Павлович"]
[null,null,null,null,{"$f":"Лист1!B1613","v":"Грабовий Микола Миколайович"},"Грабовий Микола Миколайович"]
[null,null,null,null,{"$f":"Лист1!B1614","v":"Бабіч Анастасія Олександрівна"},"Бабіч Анастасія Олександрівна"]
[null,null,null,null,{"$f":"Лист1!B1615","v":"Куріпко Сергій Віталійович"},"Куріпко Сергій Віталійович"]
[null,null,null,null,{"$f":"Лист1!B1616","v":"Мазур Віталій Миколайович"},"Мазур Віталій Миколайович"]
[null,null,null,null,{"$f":"Лист1!B1617","v":"Гаврилович Світлана Євстафіївна"},"Гаврилович Світлана Євстафіївна"]
[null,null,null,null,{"$f":"Лист1!B1618","v":"Савченко В'ячеслав Ігорович"},"Савченко В'ячеслав Ігорович"]
[null,null,null,null,{"$f":"Лист1!B1619","v":"Булгару Костянтин Федорович"},"Булгару Костянтин Федорович"]
[null,null,null,null,{"$f":"Лист1!B1620","v":"Кольцов Владислав Володимирович"},"Кольцов Владислав Володимирович"]
[null,null,null,null,{"$f":"Лист1!B1621","v":"Стоянов Ігор Миколайович"},"Стоянов Ігор Миколайович"]
[null,null,null,null,{"$f":"Лист1!B1622","v":"Орел Едуард Миколайович"},"Орел Едуард Миколайович"]
[null,null,null,null,{"$f":"Лист1!B1623","v":"Клименко Дмитро Олександрович"},"Клименко Дмитро Олександрович"]
[null,null,null,null,{"$f":"Лист1!B1624","v":"Щукін Сергій Олександрович"},"Щукін Сергій Олександрович"]
[null,null,null,null,{"$f":"Лист1!B1625","v":"Недкова Алла Василівна"},"Недкова Алла Василівна"]
[null,null,null,null,{"$f":"Лист1!B1626","v":"Олєйніков Вадим Олексійович"},"Олєйніков Вадим Олексійович"]
[null,null,null,null,{"$f":"Лист1!B1627","v":"Бальжик Петро Михайлович"},"Бальжик Петро Михайлович"]
[null,null,null,null,{"$f":"Лист1!B1628","v":"Мішуріна Сніжана Володимирівна"},"Мішуріна Сніжана Володимирівна"]
[null,null,null,null,{"$f":"Лист1!B1629","v":"Талпа Мар'яна Русланівна"},"Талпа Мар'яна Русланівна"]
[null,null,null,null,{"$f":"Лист1!B1630","v":"Савченко Анатолій Анатолійович"},"Савченко Анатолій Анатолійович"]
[null,null,null,null,{"$f":"Лист1!B1631","v":"Патратій Сніжана Іллівна"},"Патратій Сніжана Іллівна"]
[null,null,null,null,{"$f":"Лист1!B1632","v":"Серветнік Віктор  Михайлович"},"Серветнік Віктор  Михайлович"]
[null,null,null,null,{"$f":"Лист1!B1633","v":"Шпак Дмитро Аркадійович"},"Шпак Дмитро Аркадійович"]
[null,null,null,null,{"$f":"Лист1!B1634","v":"Марчук Ніна Миколаївна"},"Марчук Ніна Миколаївна"]
[null,null,null,null,{"$f":"Лист1!B1635","v":"Бабин Анатолій Васильович"},"Бабин Анатолій Васильович"]
[null,null,null,null,{"$f":"Лист1!B1636","v":"Барашков Євген Миколайович"},"Барашков Євген Миколайович"]
[null,null,null,null,{"$f":"Лист1!B1637","v":"Єнютіна Ірина Вадимівна"},"Єнютіна Ірина Вадимівна"]
[null,null,null,null,{"$f":"Лист1!B1638","v":"Московчук Анатолій Анатолійович"},"Московчук Анатолій Анатолійович"]
[null,null,null,null,{"$f":"Лист1!B1639","v":"Кривошей Валентина Іванівна"},"Кривошей Валентина Іванівна"]
[null,null,null,null,{"$f":"Лист1!B1640","v":"Глубінцова Людмила Василівна"},"Глубінцова Людмила Василівна"]
[null,null,null,null,{"$f":"Лист1!B1641","v":"Дмитренко Сергій Павлович"},"Дмитренко Сергій Павлович"]
[null,null,null,null,{"$f":"Лист1!B1642","v":"Суглоб Дмитро Леонідович"},"Суглоб Дмитро Леонідович"]
[null,null,null,null,{"$f":"Лист1!B1643","v":"Кірічук Олександра Олександрівна"},"Кірічук Олександра Олександрівна"]
[null,null,null,null,{"$f":"Лист1!B1644","v":"Демченко Іван Олегович"},"Демченко Іван Олегович"]
[null,null,null,null,{"$f":"Лист1!B1645","v":"Маяченко Андрій Олександрович"},"Маяченко Андрій Олександрович"]
[null,null,null,null,{"$f":"Лист1!B1646","v":"Нечитайлов Віктор Валентинович"},"Нечитайлов Віктор Валентинович"]
[null,null,null,null,{"$f":"Лист1!B1647","v":"Гребеннік Дмитро Вадимович"},"Гребеннік Дмитро Вадимович"]
[null,null,null,null,{"$f":"Лист1!B1648","v":"Ковтун Сергій Валерійович"},"Ковтун Сергій Валерійович"]
[null,null,null,null,{"$f":"Лист1!B1649","v":"Ткаченко Юрій Вікторович"},"Ткаченко Юрій Вікторович"]
[null,null,null,null,{"$f":"Лист1!B1650","v":"Мироненко Артур Юрійович"},"Мироненко Артур Юрійович"]
[null,null,null,null,{"$f":"Лист1!B1651","v":"Нємцева Наталія Вікторівна"},"Нємцева Наталія Вікторівна"]
[null,null,null,null,{"$f":"Лист1!B1652","v":"Сметанка Наталія Олександрівна"},"Сметанка Наталія Олександрівна"]
[null,null,null,null,{"$f":"Лист1!B1653","v":"Чумаченко Віктор Станіславович"},"Чумаченко Віктор Станіславович"]
[null,null,null,null,{"$f":"Лист1!B1654","v":"Хлопцев Сергій Федорович"},"Хлопцев Сергій Федорович"]
[null,null,null,null,{"$f":"Лист1!B1655","v":"Амелічкін Олександр Володимирович"},"Амелічкін Олександр Володимирович"]
[null,null,null,null,{"$f":"Лист1!B1656","v":"Пєнкова Лідія Степанівна"},"Пєнкова Лідія Степанівна"]
[null,null,null,null,{"$f":"Лист1!B1657","v":"Семікоз Віталій Володимирович"},"Семікоз Віталій Володимирович"]
[null,null,null,null,{"$f":"Лист1!B1658","v":"Пірус Андрій Олегович"},"Пірус Андрій Олегович"]
[null,null,null,null,{"$f":"Лист1!B1659","v":"Павлішин Святослав Ігорович"},"Павлішин Святослав Ігорович"]
[null,null,null,null,{"$f":"Лист1!B1660","v":"Кузьминська Людмила Анатоліївна"},"Кузьминська Людмила Анатоліївна"]
[null,null,null,null,{"$f":"Лист1!B1661","v":"Топал Катерина Іванівна"},"Топал Катерина Іванівна"]
[null,null,null,null,{"$f":"Лист1!B1662","v":"Хлевний Олексій Валерійович"},"Хлевний Олексій Валерійович"]
[null,null,null,null,{"$f":"Лист1!B1663","v":"Дудаков Сергій Ігорович"},"Дудаков Сергій Ігорович"]
[null,null,null,null,{"$f":"Лист1!B1664","v":"Бріденко Юрій Володимирович"},"Бріденко Юрій Володимирович"]
[null,null,null,null,{"$f":"Лист1!B1665","v":"Войцехівський Вадим Григорович"},"Войцехівський Вадим Григорович"]
[null,null,null,null,{"$f":"Лист1!B1666","v":"Саріогло Михайло Пантелійович"},"Саріогло Михайло Пантелійович"]
[null,null,null,null,{"$f":"Лист1!B1667","v":"Маринов Олег Петрович"},"Маринов Олег Петрович"]
[null,null,null,null,{"$f":"Лист1!B1668","v":"Гречановський Андрій Павлович"},"Гречановський Андрій Павлович"]
[null,null,null,null,{"$f":"Лист1!B1669","v":"Лавринчук Олена Пилипівна"},"Лавринчук Олена Пилипівна"]
[null,null,null,null,{"$f":"Лист1!B1670","v":"Грищенко Оксана Миколаївна"},"Грищенко Оксана Миколаївна"]
[null,null,null,null,{"$f":"Лист1!B1671","v":"Гайдай Олена Василівна"},"Гайдай Олена Василівна"]
[null,null,null,null,{"$f":"Лист1!B1672","v":"Панченко Світлана Анатоліївна"},"Панченко Світлана Анатоліївна"]
[null,null,null,null,{"$f":"Лист1!B1673","v":"Житник Євгеній В'ячеславович"},"Житник Євгеній В'ячеславович"]
[null,null,null,null,{"$f":"Лист1!B1674","v":"Перчемлі Ганна Іванівна"},"Перчемлі Ганна Іванівна"]
[null,null,null,null,{"$f":"Лист1!B1675","v":"Мітрова Валентина Миколаївна"},"Мітрова Валентина Миколаївна"]
[null,null,null,null,{"$f":"Лист1!B1676","v":"Гладун Надія Миколаївна"},"Гладун Надія Миколаївна"]
[null,null,null,null,{"$f":"Лист1!B1677","v":"Шевченко Андрій Сергійович"},"Шевченко Андрій Сергійович"]
[null,null,null,null,{"$f":"Лист1!B1678","v":"Кіру Дмитро Володимирович"},"Кіру Дмитро Володимирович"]
[null,null,null,null,{"$f":"Лист1!B1679","v":"Дмитрієв Олександр В'ячеславович"},"Дмитрієв Олександр В'ячеславович"]
[null,null,null,null,{"$f":"Лист1!B1680","v":"Ковальов Анатолій Тимофійович"},"Ковальов Анатолій Тимофійович"]
[null,null,null,null,{"$f":"Лист1!B1681","v":"Лукієнко Григорій Павлович"},"Лукієнко Григорій Павлович"]
[null,null,null,null,{"$f":"Лист1!B1682","v":"Лазуткин Олександр Сергійович"},"Лазуткин Олександр Сергійович"]
[null,null,null,null,{"$f":"Лист1!B1683","v":"Баловнєва Віталіна Вікторівна"},"Баловнєва Віталіна Вікторівна"]
[null,null,null,null,{"$f":"Лист1!B1684","v":"Васильєва Тетяна Миколаївна"},"Васильєва Тетяна Миколаївна"]
[null,null,null,null,{"$f":"Лист1!B1685","v":"Кисельова Галина Геннадіївна"},"Кисельова Галина Геннадіївна"]
[null,null,null,null,{"$f":"Лист1!B1686","v":"Юдіна Мая Миколаївна"},"Юдіна Мая Миколаївна"]
[null,null,null,null,{"$f":"Лист1!B1687","v":"Демьяненко Олександр Русланович"},"Демьяненко Олександр Русланович"]
[null,null,null,null,{"$f":"Лист1!B1688","v":"Часник Катерина Іванівна"},"Часник Катерина Іванівна"]
[null,null,null,null,{"$f":"Лист1!B1689","v":"Митрофанський Олег Анатолійович"},"Митрофанський Олег Анатолійович"]
[null,null,null,null,{"$f":"Лист1!B1690","v":"Цюсьмак Олександр Романович"},"Цюсьмак Олександр Романович"]
[null,null,null,null,{"$f":"Лист1!B1691","v":"Завгородній Максим  Володимирович"},"Завгородній Максим  Володимирович"]
[null,null,null,null,{"$f":"Лист1!B1692","v":"Мангул Сергій Вікторович"},"Мангул Сергій Вікторович"]
[null,null,null,null,{"$f":"Лист1!B1693","v":"Рубля Сергій Васильович"},"Рубля Сергій Васильович"]
[null,null,null,null,{"$f":"Лист1!B1694","v":"Сірант Микола Петрович"},"Сірант Микола Петрович"]
[null,null,null,null,{"$f":"Лист1!B1695","v":"Ткаченко Світлана Борисівна"},"Ткаченко Світлана Борисівна"]
[null,null,null,null,{"$f":"Лист1!B1696","v":"Тараненко Петро Володимирович"},"Тараненко Петро Володимирович"]
[null,null,null,null,{"$f":"Лист1!B1697","v":"Дьома Олена Тарасівна"},"Дьома Олена Тарасівна"]
[null,null,null,null,{"$f":"Лист1!B1698","v":"Торгових Кароліна Миколаївна"},"Торгових Кароліна Миколаївна"]
[null,null,null,null,{"$f":"Лист1!B1699","v":"Чеботар Ірина Василівна"},"Чеботар Ірина Василівна"]
[null,null,null,null,{"$f":"Лист1!B1700","v":"Кострома Валерій Валерійович"},"Кострома Валерій Валерійович"]
[null,null,null,null,{"$f":"Лист1!B1701","v":"Бутенко Тетяна Володимирівна"},"Бутенко Тетяна Володимирівна"]
[null,null,null,null,{"$f":"Лист1!B1702","v":"Грігоренко Ірина Марківна"},"Грігоренко Ірина Марківна"]
[null,null,null,null,{"$f":"Лист1!B1703","v":"Білоус Роман Олександрович"},"Білоус Роман Олександрович"]
[null,null,null,null,{"$f":"Лист1!B1704","v":"Погорілов Василь Володимирович"},"Погорілов Василь Володимирович"]
[null,null,null,null,{"$f":"Лист1!B1705","v":"Дурбалова Марія Михайлівна"},"Дурбалова Марія Михайлівна"]
[null,null,null,null,{"$f":"Лист1!B1706","v":"Шевченко Галина Григорівна"},"Шевченко Галина Григорівна"]
[null,null,null,null,{"$f":"Лист1!B1707","v":"Василькова Олена Олегівна"},"Василькова Олена Олегівна"]
[null,null,null,null,{"$f":"Лист1!B1708","v":"Єфремов Володимир Миколайович"},"Єфремов Володимир Миколайович"]
[null,null,null,null,{"$f":"Лист1!B1709","v":"Стоянов Федір Іванович"},"Стоянов Федір Іванович"]
[null,null,null,null,{"$f":"Лист1!B1710","v":"Бугацька Ольга Анатоліївна"},"Бугацька Ольга Анатоліївна"]
[null,null,null,null,{"$f":"Лист1!B1711","v":"Александрова Оксана Віталіївна"},"Александрова Оксана Віталіївна"]
[null,null,null,null,{"$f":"Лист1!B1712","v":"Гапічєва Марина Іванівна"},"Гапічєва Марина Іванівна"]
[null,null,null,null,{"$f":"Лист1!B1713","v":"Спіріна Тетяна Михайлівна"},"Спіріна Тетяна Михайлівна"]
[null,null,null,null,{"$f":"Лист1!B1714","v":"Мамай Анатолій Григорович"},"Мамай Анатолій Григорович"]
[null,null,null,null,{"$f":"Лист1!B1715","v":"Бенеш Анатолій Юрійович"},"Бенеш Анатолій Юрійович"]
[null,null,null,null,{"$f":"Лист1!B1716","v":0}]
[null,null,null,null,{"$f":"Лист1!B1717","v":0}]
[null,null,null,null,{"$f":"Лист1!B1718","v":0}]
[null,null,null,null,{"$f":"Лист1!B1719","v":0}]
[null,null,null,null,{"$f":"Лист1!B1720","v":0}]
[null,null,null,null,{"$f":"Лист1!B1721","v":0}]
[null,null,null,null,{"$f":"Лист1!B1722","v":0}]
[null,null,null,null,{"$f":"Лист1!B1723","v":0}]
[null,null,null,null,{"$f":"Лист1!B1724","v":0}]
[null,null,null,null,{"$f":"Лист1!B1725","v":0}]
[null,null,null,null,{"$f":"Лист1!B1726","v":0}]
[null,null,null,null,{"$f":"Лист1!B1727","v":0}]
[null,null,null,null,{"$f":"Лист1!B1728","v":0}]
[null,null,null,null,{"$f":"Лист1!B1729","v":0}]
[null,null,null,null,{"$f":"Лист1!B1730","v":0}]
[null,null,null,null,{"$f":"Лист1!B1731","v":0}]
[null,null,null,null,{"$f":"Лист1!B1732","v":0}]
[null,null,null,null,{"$f":"Лист1!B1733","v":0}]
[null,null,null,null,{"$f":"Лист1!B1734","v":0}]
[null,null,null,null,{"$f":"Лист1!B1735","v":0}]
[null,null,null,null,{"$f":"Лист1!B1736","v":0}]
[null,null,null,null,{"$f":"Лист1!B1737","v":0}]
[null,null,null,null,{"$f":"Лист1!B1738","v":0}]
[null,null,null,null,{"$f":"Лист1!B1739","v":0}]
[null,null,null,null,{"$f":"Лист1!B1740","v":0}]
[null,null,null,null,{"$f":"Лист1!B1741","v":0}]
[null,null,null,null,{"$f":"Лист1!B1742","v":0}]
[null,null,null,null,{"$f":"Лист1!B1743","v":0}]
[null,null,null,null,{"$f":"Лист1!B1744","v":0}]
[null,null,null,null,{"$f":"Лист1!B1745","v":0}]
[null,null,null,null,{"$f":"Лист1!B1746","v":0}]
[null,null,null,null,{"$f":"Лист1!B1747","v":0}]
[null,null,null,null,{"$f":"Лист1!B1748","v":0}]
[null,null,null,null,{"$f":"Лист1!B1749","v":0}]
[null,null,null,null,{"$f":"Лист1!B1750","v":0}]
[null,null,null,null,{"$f":"Лист1!B1751","v":0}]
[null,null,null,null,{"$f":"Лист1!B1752","v":0}]
[null,null,null,null,{"$f":"Лист1!B1753","v":0}]
[null,null,null,null,{"$f":"Лист1!B1754","v":0}]
[null,null,null,null,{"$f":"Лист1!B1755","v":0}]
[null,null,null,null,{"$f":"Лист1!B1756","v":0}]
[null,null,null,null,{"$f":"Лист1!B1757","v":0}]
[null,null,null,null,{"$f":"Лист1!B1758","v":0}]
[null,null,null,null,{"$f":"Лист1!B1759","v":0}]
[null,null,null,null,{"$f":"Лист1!B1760","v":0}]
[null,null,null,null,{"$f":"Лист1!B1761","v":0}]
[null,null,null,null,{"$f":"Лист1!B1762","v":0}]
[null,null,null,null,{"$f":"Лист1!B1763","v":0}]
[null,null,null,null,{"$f":"Лист1!B1764","v":0}]
[null,null,null,null,{"$f":"Лист1!B1765","v":0}]
[null,null,null,null,{"$f":"Лист1!B1766","v":0}]
[null,null,null,null,{"$f":"Лист1!B1767","v":0}]
[null,null,null,null,{"$f":"Лист1!B1768","v":0}]
[null,null,null,null,{"$f":"Лист1!B1769","v":0}]
[null,null,null,null,{"$f":"Лист1!B1770","v":0}]
[null,null,null,null,{"$f":"Лист1!B1771","v":0}]
[null,null,null,null,{"$f":"Лист1!B1772","v":0}]
[null,null,null,null,{"$f":"Лист1!B1773","v":0}]
[null,null,null,null,{"$f":"Лист1!B1774","v":0}]
[null,null,null,null,{"$f":"Лист1!B1775","v":0}]
[null,null,null,null,{"$f":"Лист1!B1776","v":0}]
[null,null,null,null,{"$f":"Лист1!B1777","v":0}]
[null,null,null,null,{"$f":"Лист1!B1778","v":0}]
[null,null,null,null,{"$f":"Лист1!B1779","v":0}]
[null,null,null,null,{"$f":"Лист1!B1780","v":0}]
[null,null,null,null,{"$f":"Лист1!B1781","v":0}]
[null,null,null,null,{"$f":"Лист1!B1782","v":0}]
[null,null,null,null,{"$f":"Лист1!B1783","v":0}]
[null,null,null,null,{"$f":"Лист1!B1784","v":0}]
[null,null,null,null,{"$f":"Лист1!B1785","v":0}]
[null,null,null,null,{"$f":"Лист1!B1786","v":0}]
[null,null,null,null,{"$f":"Лист1!B1787","v":0}]
[null,null,null,null,{"$f":"Лист1!B1788","v":0}]
[null,null,null,null,{"$f":"Лист1!B1789","v":0}]
[null,null,null,null,{"$f":"Лист1!B1790","v":0}]
[null,null,null,null,{"$f":"Лист1!B1791","v":0}]
[null,null,null,null,{"$f":"Лист1!B1792","v":0}]
[null,null,null,null,{"$f":"Лист1!B1793","v":0}]
[null,null,null,null,{"$f":"Лист1!B1794","v":0}]
[null,null,null,null,{"$f":"Лист1!B1795","v":0}]
[null,null,null,null,{"$f":"Лист1!B1796","v":0}]
[null,null,null,null,{"$f":"Лист1!B1797","v":0}]
[null,null,null,null,{"$f":"Лист1!B1798","v":0}]
[null,null,null,null,{"$f":"Лист1!B1799","v":0}]
[null,null,null,null,{"$f":"Лист1!B1800","v":0}]
[null,null,null,null,{"$f":"Лист1!B1801","v":0}]
[null,null,null,null,{"$f":"Лист1!B1802","v":0}]
[null,null,null,null,{"$f":"Лист1!B1803","v":0}]
[null,null,null,null,{"$f":"Лист1!B1804","v":0}]
[null,null,null,null,{"$f":"Лист1!B1805","v":0}]
[null,null,null,null,{"$f":"Лист1!B1806","v":0}]
[null,null,null,null,{"$f":"Лист1!B1807","v":0}]
[null,null,null,null,{"$f":"Лист1!B1808","v":0}]
[null,null,null,null,{"$f":"Лист1!B1809","v":0}]
[null,null,null,null,{"$f":"Лист1!B1810","v":0}]
[null,null,null,null,{"$f":"Лист1!B1811","v":0}]
[null,null,null,null,{"$f":"Лист1!B1812","v":0}]
[null,null,null,null,{"$f":"Лист1!B1813","v":0}]
[null,null,null,null,{"$f":"Лист1!B1814","v":0}]
[null,null,null,null,{"$f":"Лист1!B1815","v":0}]
[null,null,null,null,{"$f":"Лист1!B1816","v":0}]
[null,null,null,null,{"$f":"Лист1!B1817","v":0}]
[null,null,null,null,{"$f":"Лист1!B1818","v":0}]
[null,null,null,null,{"$f":"Лист1!B1819","v":0}]
[null,null,null,null,{"$f":"Лист1!B1820","v":0}]
[null,null,null,null,{"$f":"Лист1!B1821","v":0}]
[null,null,null,null,{"$f":"Лист1!B1822","v":0}]
[null,null,null,null,{"$f":"Лист1!B1823","v":0}]
[null,null,null,null,{"$f":"Лист1!B1824","v":0}]
[null,null,null,null,{"$f":"Лист1!B1825","v":0}]
[null,null,null,null,{"$f":"Лист1!B1826","v":0}]
[null,null,null,null,{"$f":"Лист1!B1827","v":0}]
[null,null,null,null,{"$f":"Лист1!B1828","v":0}]
[null,null,null,null,{"$f":"Лист1!B1829","v":0}]
[null,null,null,null,{"$f":"Лист1!B1830","v":0}]
[null,null,null,null,{"$f":"Лист1!B1831","v":0}]
[null,null,null,null,{"$f":"Лист1!B1832","v":0}]
[null,null,null,null,{"$f":"Лист1!B1833","v":0}]
[null,null,null,null,{"$f":"Лист1!B1834","v":0}]
[null,null,null,null,{"$f":"Лист1!B1835","v":0}]
[null,null,null,null,{"$f":"Лист1!B1836","v":0}]
[null,null,null,null,{"$f":"Лист1!B1837","v":0}]
[null,null,null,null,{"$f":"Лист1!B1838","v":0}]
[null,null,null,null,{"$f":"Лист1!B1839","v":0}]
[null,null,null,null,{"$f":"Лист1!B1840","v":0}]
[null,null,null,null,{"$f":"Лист1!B1841","v":0}]
[null,null,null,null,{"$f":"Лист1!B1842","v":0}]
[null,null,null,null,{"$f":"Лист1!B1843","v":0}]
[null,null,null,null,{"$f":"Лист1!B1844","v":0}]
[null,null,null,null,{"$f":"Лист1!B1845","v":0}]
[null,null,null,null,{"$f":"Лист1!B1846","v":0}]
[null,null,null,null,{"$f":"Лист1!B1847","v":0}]
[null,null,null,null,{"$f":"Лист1!B1848","v":0}]
[null,null,null,null,{"$f":"Лист1!B1849","v":0}]
[null,null,null,null,{"$f":"Лист1!B1850","v":0}]
[null,null,null,null,{"$f":"Лист1!B1851","v":0}]
[null,null,null,null,{"$f":"Лист1!B1852","v":0}]
[null,null,null,null,{"$f":"Лист1!B1853","v":0}]
[null,null,null,null,{"$f":"Лист1!B1854","v":0}]
[null,null,null,null,{"$f":"Лист1!B1855","v":0}]
[null,null,null,null,{"$f":"Лист1!B1856","v":0}]
[null,null,null,null,{"$f":"Лист1!B1857","v":0}]
[null,null,null,null,{"$f":"Лист1!B1858","v":0}]
[null,null,null,null,{"$f":"Лист1!B1859","v":0}]
[null,null,null,null,{"$f":"Лист1!B1860","v":0}]
[null,null,null,null,{"$f":"Лист1!B1861","v":0}]
[null,null,null,null,{"$f":"Лист1!B1862","v":0}]
[null,null,null,null,{"$f":"Лист1!B1863","v":0}]
[null,null,null,null,{"$f":"Лист1!B1864","v":0}]
[null,null,null,null,{"$f":"Лист1!B1865","v":0}]
[null,null,null,null,{"$f":"Лист1!B1866","v":0}]
[null,null,null,null,{"$f":"Лист1!B1867","v":0}]
[null,null,null,null,{"$f":"Лист1!B1868","v":0}]
[null,null,null,null,{"$f":"Лист1!B1869","v":0}]
[null,null,null,null,{"$f":"Лист1!B1870","v":0}]
[null,null,null,null,{"$f":"Лист1!B1871","v":0}]
[null,null,null,null,{"$f":"Лист1!B1872","v":0}]
[null,null,null,null,{"$f":"Лист1!B1873","v":0}]
[null,null,null,null,{"$f":"Лист1!B1874","v":0}]
[null,null,null,null,{"$f":"Лист1!B1875","v":0}]
[null,null,null,null,{"$f":"Лист1!B1876","v":0}]
[null,null,null,null,{"$f":"Лист1!B1877","v":0}]
[null,null,null,null,{"$f":"Лист1!B1878","v":0}]
[null,null,null,null,{"$f":"Лист1!B1879","v":0}]
[null,null,null,null,{"$f":"Лист1!B1880","v":0}]
[null,null,null,null,{"$f":"Лист1!B1881","v":0}]
[null,null,null,null,{"$f":"Лист1!B1882","v":0}]
[null,null,null,null,{"$f":"Лист1!B1883","v":0}]
[null,null,null,null,{"$f":"Лист1!B1884","v":0}]
[null,null,null,null,{"$f":"Лист1!B1885","v":0}]
[null,null,null,null,{"$f":"Лист1!B1886","v":0}]
[null,null,null,null,{"$f":"Лист1!B1887","v":0}]
[null,null,null,null,{"$f":"Лист1!B1888","v":0}]
[null,null,null,null,{"$f":"Лист1!B1889","v":0}]
[null,null,null,null,{"$f":"Лист1!B1890","v":0}]
[null,null,null,null,{"$f":"Лист1!B1891","v":0}]
[null,null,null,null,{"$f":"Лист1!B1892","v":0}]
[null,null,null,null,{"$f":"Лист1!B1893","v":0}]
[null,null,null,null,{"$f":"Лист1!B1894","v":0}]
[null,null,null,null,{"$f":"Лист1!B1895","v":0}]
[null,null,null,null,{"$f":"Лист1!B1896","v":0}]
[null,null,null,null,{"$f":"Лист1!B1897","v":0}]
[null,null,null,null,{"$f":"Лист1!B1898","v":0}]
[null,null,null,null,{"$f":"Лист1!B1899","v":0}]
[null,null,null,null,{"$f":"Лист1!B1900","v":0}]
[null,null,null,null,{"$f":"Лист1!B1901","v":0}]
[null,null,null,null,{"$f":"Лист1!B1902","v":0}]
[null,null,null,null,{"$f":"Лист1!B1903","v":0}]
[null,null,null,null,{"$f":"Лист1!B1904","v":0}]
[null,null,null,null,{"$f":"Лист1!B1905","v":0}]
[null,null,null,null,{"$f":"Лист1!B1906","v":0}]
[null,null,null,null,{"$f":"Лист1!B1907","v":0}]
[null,null,null,null,{"$f":"Лист1!B1908","v":0}]
[null,null,null,null,{"$f":"Лист1!B1909","v":0}]
[null,null,null,null,{"$f":"Лист1!B1910","v":0}]
[null,null,null,null,{"$f":"Лист1!B1911","v":0}]
[null,null,null,null,{"$f":"Лист1!B1912","v":0}]
[null,null,null,null,{"$f":"Лист1!B1913","v":0}]
[null,null,null,null,{"$f":"Лист1!B1914","v":0}]
[null,null,null,null,{"$f":"Лист1!B1915","v":0}]
[null,null,null,null,{"$f":"Лист1!B1916","v":0}]
[null,null,null,null,{"$f":"Лист1!B1917","v":0}]
[null,null,null,null,{"$f":"Лист1!B1918","v":0}]
[null,null,null,null,{"$f":"Лист1!B1919","v":0}]
[null,null,null,null,{"$f":"Лист1!B1920","v":0}]
[null,null,null,null,{"$f":"Лист1!B1921","v":0}]
[null,null,null,null,{"$f":"Лист1!B1922","v":0}]
[null,null,null,null,{"$f":"Лист1!B1923","v":0}]
[null,null,null,null,{"$f":"Лист1!B1924","v":0}]
[null,null,null,null,{"$f":"Лист1!B1925","v":0}]
[null,null,null,null,{"$f":"Лист1!B1926","v":0}]
[null,null,null,null,{"$f":"Лист1!B1927","v":0}]
[null,null,null,null,{"$f":"Лист1!B1928","v":0}]
[null,null,null,null,{"$f":"Лист1!B1929","v":0}]
[null,null,null,null,{"$f":"Лист1!B1930","v":0}]
[null,null,null,null,{"$f":"Лист1!B1931","v":0}]
[null,null,null,null,{"$f":"Лист1!B1932","v":0}]
[null,null,null,null,{"$f":"Лист1!B1933","v":0}]
[null,null,null,null,{"$f":"Лист1!B1934","v":0}]
[null,null,null,null,{"$f":"Лист1!B1935","v":0}]
[null,null,null,null,{"$f":"Лист1!B1936","v":0}]
[null,null,null,null,{"$f":"Лист1!B1937","v":0}]
[null,null,null,null,{"$f":"Лист1!B1938","v":0}]
[null,null,null,null,{"$f":"Лист1!B1939","v":0}]
[null,null,null,null,{"$f":"Лист1!B1940","v":0}]
[null,null,null,null,{"$f":"Лист1!B1941","v":0}]
[null,null,null,null,{"$f":"Лист1!B1942","v":0}]
[null,null,null,null,{"$f":"Лист1!B1943","v":0}]
[null,null,null,null,{"$f":"Лист1!B1944","v":0}]
[null,null,null,null,{"$f":"Лист1!B1945","v":0}]
[null,null,null,null,{"$f":"Лист1!B1946","v":0}]
[null,null,null,null,{"$f":"Лист1!B1947","v":0}]
[null,null,null,null,{"$f":"Лист1!B1948","v":0}]
[null,null,null,null,{"$f":"Лист1!B1949","v":0}]
[null,null,null,null,{"$f":"Лист1!B1950","v":0}]
[null,null,null,null,{"$f":"Лист1!B1951","v":0}]
[null,null,null,null,{"$f":"Лист1!B1952","v":0}]
[null,null,null,null,{"$f":"Лист1!B1953","v":0}]
[null,null,null,null,{"$f":"Лист1!B1954","v":0}]
[null,null,null,null,{"$f":"Лист1!B1955","v":0}]
[null,null,null,null,{"$f":"Лист1!B1956","v":0}]
[null,null,null,null,{"$f":"Лист1!B1957","v":0}]
[null,null,null,null,{"$f":"Лист1!B1958","v":0}]
[null,null,null,null,{"$f":"Лист1!B1959","v":0}]
[null,null,null,null,{"$f":"Лист1!B1960","v":0}]
[null,null,null,null,{"$f":"Лист1!B1961","v":0}]
[null,null,null,null,{"$f":"Лист1!B1962","v":0}]
[null,null,null,null,{"$f":"Лист1!B1963","v":0}]
[null,null,null,null,{"$f":"Лист1!B1964","v":0}]
[null,null,null,null,{"$f":"Лист1!B1965","v":0}]
[null,null,null,null,{"$f":"Лист1!B1966","v":0}]
[null,null,null,null,{"$f":"Лист1!B1967","v":0}]
[null,null,null,null,{"$f":"Лист1!B1968","v":0}]
[null,null,null,null,{"$f":"Лист1!B1969","v":0}]
[null,null,null,null,{"$f":"Лист1!B1970","v":0}]
[null,null,null,null,{"$f":"Лист1!B1971","v":0}]
[null,null,null,null,{"$f":"Лист1!B1972","v":0}]
[null,null,null,null,{"$f":"Лист1!B1973","v":0}]
[null,null,null,null,{"$f":"Лист1!B1974","v":0}]
[null,null,null,null,{"$f":"Лист1!B1975","v":0}]
[null,null,null,null,{"$f":"Лист1!B1976","v":0}]
[null,null,null,null,{"$f":"Лист1!B1977","v":0}]
[null,null,null,null,{"$f":"Лист1!B1978","v":0}]
[null,null,null,null,{"$f":"Лист1!B1979","v":0}]
[null,null,null,null,{"$f":"Лист1!B1980","v":0}]
[null,null,null,null,{"$f":"Лист1!B1981","v":0}]
[null,null,null,null,{"$f":"Лист1!B1982","v":0}]
[null,null,null,null,{"$f":"Лист1!B1983","v":0}]
[null,null,null,null,{"$f":"Лист1!B1984","v":0}]
[null,null,null,null,{"$f":"Лист1!B1985","v":0}]
[null,null,null,null,{"$f":"Лист1!B1986","v":0}]
[null,null,null,null,{"$f":"Лист1!B1987","v":0}]
[null,null,null,null,{"$f":"Лист1!B1988","v":0}]
[null,null,null,null,{"$f":"Лист1!B1989","v":0}]
[null,null,null,null,{"$f":"Лист1!B1990","v":0}]
[null,null,null,null,{"$f":"Лист1!B1991","v":0}]
[null,null,null,null,{"$f":"Лист1!B1992","v":0}]
[null,null,null,null,{"$f":"Лист1!B1993","v":0}]
[null,null,null,null,{"$f":"Лист1!B1994","v":0}]
[null,null,null,null,{"$f":"Лист1!B1995","v":0}]
[null,null,null,null,{"$f":"Лист1!B1996","v":0}]
[null,null,null,null,{"$f":"Лист1!B1997","v":0}]
[null,null,null,null,{"$f":"Лист1!B1998","v":0}]
[null,null,null,null,{"$f":"Лист1!B1999","v":0}]